Local authority department which incurred the expenditure,Service Division,Cost Centre,Summary of the Purpose of Expenditure,Expense Type,Expense Code,Detailed Expense Type,Date of Transaction,Transaction Number,Beneficiary,Merchant Category Number,Merchant Category,Gross Amount,VAT,Net Amount
"Regeneration, Economy and Growth",Development and Housing,030544,Rural Employability - Client Engagement,Employees,040149,Recruitment Instruction and Training,01-Jul-2021,000007595943688,PEARSON ED LTD,8299,Training-all costs,47.00,0.00,47.00
Children and Young Peoples Services,Head of Early Help Inclusion & Vulnerable Children.,085956,Lumley,Supplies and Services,328041,Clothing uniforms and laundry E328,01-Jul-2021,000007595943758,NEW LOOK INTERNET,5621,Clothing uniforms and laundry,-27.78,0.00,-27.78
Neighbourhoods and Climate Change,Environmental Services,011060,C&G - Hardwick Park Catering,Supplies and Services,324117,Provisions E324,01-Jul-2021,000007595944420,BATLEYS PERTH,5300,Catering costs - provisions,358.74,59.79,298.95
Neighbourhoods and Climate Change,Environmental Services,011060,C&G - Hardwick Park Catering,Supplies and Services,324117,Provisions E324,01-Jul-2021,000007595944420 - 1,BATLEYS PERTH,5300,Catering costs - provisions,140.41,,140.41
Resources BK0010,Digital and Customer Services,065335,School Services - Implementations,Supplies and Services,304303,Equipment and Materials,01-Jul-2021,000007595945160,AMZNMKTPLACE AMAZON.CO,5999,Network for resale,441.72,73.62,368.10
"Regeneration, Economy and Growth",Development and Housing,030776,LINKCD Flexible Fund,Supplies and Services,304221,Equipment and Materials,01-Jul-2021,000007595945656,WWW.ARCO.CO.UK,5085,Direct materials,53.93,8.99,44.94
Neighbourhoods and Climate Change,Environmental Services,011060,C&G - Hardwick Park Catering,Supplies and Services,324117,Provisions E324,01-Jul-2021,000007628176484,BATLEYS PERTH,5300,Catering costs - provisions,17.64,2.94,14.70
Neighbourhoods and Climate Change,Environmental Services,011060,C&G - Hardwick Park Catering,Supplies and Services,324117,Provisions E324,01-Jul-2021,000007628176484 - 1,BATLEYS PERTH,5300,Catering costs - provisions,3.73,,3.73
"Regeneration, Economy and Growth",Business Durham CL0850,030689,Inward Investment and Aftercare,Supplies and Services,342033,Computers and Communications,01-Jul-2021,000009607418093,AdRoll_EMEA,7372,Computer hardware,57.95,0.00,57.95
"Regeneration, Economy and Growth",Business Durham CL0850,030689,Inward Investment and Aftercare,Supplies and Services,342033,Computers and Communications,01-Jul-2021,000009607418095,AdRoll_EMEA,7372,Computer hardware,1.59,0.00,1.59
"Regeneration, Economy and Growth",Culture Sport and Tourism,030712,VCD - Project Delivery,Supplies and Services,384199,Miscellaneous Expenses,01-Jul-2021,000009607418155,FACEBK P84PS4XUC2,7311,Other hired and contracted services,7.47,0.00,7.47
Children and Young Peoples Services,Head of Childrens Social Care,085342,16 Hickstead Rise (previously 9 Cedar Ave),Supplies and Services,372009,Subscriptions E372,01-Jul-2021,000009607418289,Netflix.com,4899,Subscriptions 372009,13.99,0.00,13.99
"Regeneration, Economy and Growth",Business Durham CL0850,030689,Inward Investment and Aftercare,Supplies and Services,336005,Advertising E336,01-Jul-2021,000009611175065,LINKEDIN-677 7297954,7311,Advertising other than for staff,11.44,0.00,11.44
"Regeneration, Economy and Growth",Business Durham CL0850,030689,Inward Investment and Aftercare,Supplies and Services,336005,Advertising E336,01-Jul-2021,000009611175069,LINKEDIN-677 7444384,7311,Advertising other than for staff,61.73,0.00,61.73
Children and Young Peoples Services,Head of Childrens Social Care,085633,Families First Chester-Le-Street,Supplies and Services,364340,Grants to Voluntary Organisations,01-Jul-2021,000009611175091,WWW.GONORTHEAST.CO.UK,4111,Contact expenses,20.00,0.00,20.00
Children and Young Peoples Services,Head of Childrens Social Care,085633,Families First Chester-Le-Street,Supplies and Services,364340,Grants to Voluntary Organisations,01-Jul-2021,000009611175097,WWW.GONORTHEAST.CO.UK,4111,Contact expenses,20.00,0.00,20.00
Children and Young Peoples Services,Head of Education and Skills,071801,Selby Cottage Childcare Centre,Supplies and Services,304403,Equipment and Materials,01-Jul-2021,000009611175109,AMZNMktplace,5999,Other consumables,52.59,8.77,43.82
Children and Young Peoples Services,Head of Education and Skills,071801,Selby Cottage Childcare Centre,Supplies and Services,324117,Provisions E324,01-Jul-2021,000009611175113,WILKO RETAIL LIMITED,5399,Catering costs - provisions,40.10,0.00,40.10
Resources BK0010,Finance & Transactional Services,065180,Collections,Supplies and Services,338045,Services,01-Jul-2021,000009611175221,HMCOURTS-SERVICE.G,9222,Legal expenses 338045,497.50,0.00,497.50
"Regeneration, Economy and Growth",Corporate Property and Land,010932,CCS-Construction Consultancy Service (CCS),Supplies and Services,312009,Newspapers books and periodicals E312,01-Jul-2021,000009611175255,AMZN Mktp UK 2070633S4,5942,Newspapers books and periodicals,9.99,0.00,9.99
"Regeneration, Economy and Growth",Culture Sport and Tourism,054990,Cultural Services Management,Supplies and Services,304259,Equipment and Materials,01-Jul-2021,000009611175473,SP KITRONIK LTD,5734,Equipment-purchase and rental,544.13,90.69,453.44
"Regeneration, Economy and Growth",Culture Sport and Tourism,011265,Empire Theatre (Operations),Supplies and Services,324117,Provisions E324,01-Jul-2021,000009611175753,JR HOLLAND FOODSERVICE,5499,Catering costs - provisions,29.88,0.00,29.88
Children and Young Peoples Services,Head of Childrens Social Care,085331,New Lea Childrens Home,Supplies and Services,348037,Subsistence E348,01-Jul-2021,000009611175765,MCDONALDS,5812,Subsistence,8.49,0.00,8.49
Children and Young Peoples Services,Head of Childrens Social Care,085331,New Lea Childrens Home,Supplies and Services,304259,Equipment and Materials,01-Jul-2021,000009611175769,J D SPORTS,5941,Equipment-purchase and rental,80.00,0.00,80.00
"Regeneration, Economy and Growth",Culture Sport and Tourism,054233,Bishop Auckland Town Hall Library,Supplies and Services,324117,Provisions E324,01-Jul-2021,000009611175823,HERON FOODS,5411,Catering costs - provisions,8.32,0.00,8.32
"Regeneration, Economy and Growth",Culture Sport and Tourism,054233,Bishop Auckland Town Hall Library,Supplies and Services,304403,Equipment and Materials,01-Jul-2021,000009611175831,HOLLAND & BARRETT,5999,Other consumables,5.55,0.00,5.55
Children and Young Peoples Services,Head of Early Help Inclusion & Vulnerable Children.,085954,Walworth,Supplies and Services,328041,Clothing uniforms and laundry E328,01-Jul-2021,000009611176001,Mainline Menswear Ltd,5611,Clothing uniforms and laundry,110.00,0.00,110.00
Children and Young Peoples Services,Head of Early Help Inclusion & Vulnerable Children.,085954,Walworth,Supplies and Services,328041,Clothing uniforms and laundry E328,01-Jul-2021,000009611176005,SP LORENZOVERATTI,5691,Clothing uniforms and laundry,65.00,0.00,65.00
Children and Young Peoples Services,Head of Early Help Inclusion & Vulnerable Children.,085954,Walworth,Supplies and Services,304259,Equipment and Materials,01-Jul-2021,000009611176015,JD SPORTS INTERNET,5941,Equipment-purchase and rental,67.99,0.00,67.99
Children and Young Peoples Services,Head of Childrens Social Care,085362,LAC & Permanence Team 2,Supplies and Services,338045,Services,01-Jul-2021,000009611176055,GEN REGISTER OFFICE,9399,Legal expenses 338045,66.00,0.00,66.00
Children and Young Peoples Services,Head of Childrens Social Care,085361,LAC & Permanence Team 1,Supplies and Services,338045,Services,01-Jul-2021,000009611176061,Durham County CNCL,9399,Legal expenses 338045,11.00,0.00,11.00
"Regeneration, Economy and Growth",Culture Sport and Tourism,011292,Seaham Leisure Centre,Supplies and Services,384999,Miscellaneous Expenses,01-Jul-2021,000009611176089,DISPLAYSENSE.CO.UK,5046,Other expenses,128.00,0.00,128.00
Neighbourhoods and Climate Change,Environmental Services,010367,C&G - South Grounds Maintenance,Supplies and Services,304999,Equipment and Materials,01-Jul-2021,000009611176123,GRALANDS WOODWORK SUPP,5251,Misc equipment tools and materials,2.95,0.00,2.95
Neighbourhoods and Climate Change,Environmental Services,010367,C&G - South Grounds Maintenance,Supplies and Services,304403,Equipment and Materials,01-Jul-2021,000009611176129,TIMPSON LTD,5999,Other consumables,7.00,0.00,7.00
Neighbourhoods and Climate Change,Environmental Services,010367,C&G - South Grounds Maintenance,Supplies and Services,304403,Equipment and Materials,01-Jul-2021,000009611176135,BESCOL,5231,Other consumables,86.30,0.00,86.30
"Regeneration, Economy and Growth",Culture Sport and Tourism,010664,Freemans Quay Leisure Centre,Supplies and Services,304403,Equipment and Materials,01-Jul-2021,000009611176193,AMZNMktplace,5999,Other consumables,709.80,118.40,591.40
Neighbourhoods and Climate Change,Environmental Services,026591,C&G - Hardwick Park,Supplies and Services,304083,Equipment and Materials,01-Jul-2021,000009611176311,AMZNMKTPLACE AMAZON.CO,5999,Catering equipment,35.40,5.90,29.50
Adult and Health Services,Head of Adults,055202,Support and Recovery,Supplies and Services,304403,Equipment and Materials,01-Jul-2021,000009611176465,AMZNMktplace,5999,Other consumables,12.99,2.17,10.82
"Regeneration, Economy and Growth",Development and Housing,031576,B& B - Temp Accom,Supplies and Services,364320,Grants to Voluntary Organisations,01-Jul-2021,000009611176521,CROXDALE INN,5812,Accommodation assistance,500.00,0.00,500.00
"Regeneration, Economy and Growth",Development and Housing,031576,B& B - Temp Accom,Supplies and Services,364320,Grants to Voluntary Organisations,01-Jul-2021,000009611176525,CROXDALE INN,5812,Accommodation assistance,500.00,0.00,500.00
"Regeneration, Economy and Growth",Development and Housing,031576,B& B - Temp Accom,Supplies and Services,364320,Grants to Voluntary Organisations,01-Jul-2021,000009611176529,CROXDALE INN,5812,Accommodation assistance,500.00,0.00,500.00
"Regeneration, Economy and Growth",Development and Housing,031576,B& B - Temp Accom,Supplies and Services,364320,Grants to Voluntary Organisations,01-Jul-2021,000009611176537,CROXDALE INN,5812,Accommodation assistance,500.00,0.00,500.00
"Regeneration, Economy and Growth",Development and Housing,031576,B& B - Temp Accom,Supplies and Services,364320,Grants to Voluntary Organisations,01-Jul-2021,000009611176539,CROXDALE INN,5812,Accommodation assistance,500.00,0.00,500.00
"Regeneration, Economy and Growth",Development and Housing,031576,B& B - Temp Accom,Supplies and Services,364320,Grants to Voluntary Organisations,01-Jul-2021,000009611176545,CROXDALE INN,5812,Accommodation assistance,500.00,0.00,500.00
Children and Young Peoples Services,Head of Childrens Social Care,085334,West Rainton Satelite Home,Supplies and Services,304403,Equipment and Materials,01-Jul-2021,000009611176589,AMZNMktplace,5999,Other consumables,108.00,0.00,108.00
Children and Young Peoples Services,Head of Early Help Inclusion & Vulnerable Children.,085962,Aycliffe Secure - Durham,Transfer Payments,515002,Social Services Clients,01-Jul-2021,000009611176601,HM Hennes Mauritz U,5651,Pocket money,95.91,0.00,95.91
Children and Young Peoples Services,Head of Early Help Inclusion & Vulnerable Children.,085956,Lumley,Supplies and Services,312009,Newspapers books and periodicals E312,01-Jul-2021,000009611176605,Amazon.co.uk 201XO73L4,5969,Newspapers books and periodicals,37.49,0.00,37.49
Neighbourhoods and Climate Change,Environmental Services,011060,C&G - Hardwick Park Catering,Premises,145009,Cleaning and Domestic Supplies,01-Jul-2021,000009611176669,ALLIANCE DISPOSABLES L,2842,Other cleaning and domestic costs,147.83,24.64,123.19
Neighbourhoods and Climate Change,Environmental Services,011060,C&G - Hardwick Park Catering,Premises,145009,Cleaning and Domestic Supplies,01-Jul-2021,000009611176673,ALLIANCE DISPOSABLES L,2842,Other cleaning and domestic costs,170.68,28.45,142.23
Neighbourhoods and Climate Change,Environmental Services,011060,C&G - Hardwick Park Catering,Premises,145009,Cleaning and Domestic Supplies,01-Jul-2021,000009611176677,ALLIANCE DISPOSABLES L,2842,Other cleaning and domestic costs,131.24,21.87,109.37
Children and Young Peoples Services,Head of Education and Skills,075021,DurhamWorks Progression and Learning,Supplies and Services,364301,Grants to Voluntary Organisations,01-Jul-2021,000009611176719,SCREWFIX DIRECT,5211,Hardship,128.21,21.37,106.84
Resources BK0010,People & Talent Management,010984,Training and Development,Employees,040149,Recruitment Instruction and Training,01-Jul-2021,000009611176745,PAYPAL NPORS LTD,8699,Training-all costs,48.00,8.00,40.00
Resources BK0010,People & Talent Management,010984,Training and Development,Employees,040149,Recruitment Instruction and Training,01-Jul-2021,000009611176749,PAYPAL NPORS LTD,8699,Training-all costs,36.00,6.00,30.00
Neighbourhoods and Climate Change,Environmental Services,011058,C&G - Wharton Park,Supplies and Services,304259,Equipment and Materials,01-Jul-2021,000009611176761,Amazon.co.uk 203XH53M4,5969,Equipment-purchase and rental,75.99,12.67,63.32
Children and Young Peoples Services,Head of Childrens Social Care,085331,New Lea Childrens Home,Supplies and Services,372009,Subscriptions E372,01-Jul-2021,000009611176853,NETFLIX.COM,4899,Subscriptions 372009,13.99,0.00,13.99
Children and Young Peoples Services,Head of Childrens Social Care,085331,New Lea Childrens Home,Supplies and Services,328041,Clothing uniforms and laundry E328,01-Jul-2021,000009611176859,MATALAN,5691,Clothing uniforms and laundry,87.00,0.00,87.00
Children and Young Peoples Services,Head of Childrens Social Care,085331,New Lea Childrens Home,Supplies and Services,328041,Clothing uniforms and laundry E328,01-Jul-2021,000009611176863,MATALAN,5691,Clothing uniforms and laundry,23.00,0.00,23.00
Children and Young Peoples Services,Head of Childrens Social Care,085331,New Lea Childrens Home,Supplies and Services,324117,Provisions E324,01-Jul-2021,000009611176867,WM MORRISONS STORE,5411,Catering costs - provisions,10.50,0.00,10.50
Children and Young Peoples Services,Head of Childrens Social Care,085331,New Lea Childrens Home,Supplies and Services,324117,Provisions E324,01-Jul-2021,000009611176873,WM MORRISONS STORE,5411,Catering costs - provisions,62.45,0.00,62.45
"Regeneration, Economy and Growth",Development and Housing,030771,Durham Advance Flexible Fund,Supplies and Services,304259,Equipment and Materials,01-Jul-2021,000009611176979,HALFORDS ON LINE,5940,Equipment-purchase and rental,165.00,27.50,137.50
Children and Young Peoples Services,Head of Childrens Social Care,085551,Short Break Services-Park Hse Sher,Supplies and Services,324117,Provisions E324,01-Jul-2021,000009611177029,TESCO STORES 2371,5411,Catering costs - provisions,24.75,0.00,24.75
Children and Young Peoples Services,Head of Childrens Social Care,085551,Short Break Services-Park Hse Sher,Supplies and Services,328041,Clothing uniforms and laundry E328,01-Jul-2021,000009611177031,ARGOS LTD,5310,Clothing uniforms and laundry,29.99,0.00,29.99
Children and Young Peoples Services,Head of Childrens Social Care,085551,Short Break Services-Park Hse Sher,Supplies and Services,324117,Provisions E324,01-Jul-2021,000009611177035,ALDI 12 774,5411,Catering costs - provisions,77.78,0.00,77.78
Resources BK0010,Procurement Sales & Business Services,065503,Business Support - Spectrum,Supplies and Services,304403,Equipment and Materials,01-Jul-2021,000009611177119,AMZNMKTPLACE AMAZON.CO,5999,Other consumables,224.70,37.50,187.20
Resources BK0010,Procurement Sales & Business Services,065503,Business Support - Spectrum,Supplies and Services,304403,Equipment and Materials,01-Jul-2021,000009611177121,AMZNMktplace,5999,Other consumables,9.95,1.66,8.29
Children and Young Peoples Services,Head of Childrens Social Care,085351,Framwellgate Moor CU,Supplies and Services,324117,Provisions E324,01-Jul-2021,000009611177333,ASDA GROCERIES ONLINE,5411,Catering costs - provisions,144.13,0.00,144.13
"Regeneration, Economy and Growth",Culture Sport and Tourism,010599,Newton Aycliffe Leisure Ctr-General,Premises,145023,Cleaning and Domestic Supplies,01-Jul-2021,000009611177353,AMZNMktplace,5999,Cleaning and domestic materials,76.49,0.00,76.49
Children and Young Peoples Services,Head of Early Help Inclusion & Vulnerable Children.,088103,Consett & Stanley 0-19 Community Family Hub,Supplies and Services,384302,Miscellaneous Expenses,01-Jul-2021,000009611177525,AMZNMktplace,5999,Activity expenses,17.98,3.00,14.98
Children and Young Peoples Services,Head of Early Help Inclusion & Vulnerable Children.,088103,Consett & Stanley 0-19 Community Family Hub,Supplies and Services,384302,Miscellaneous Expenses,01-Jul-2021,000009611177531,AMZNMktplace,5999,Activity expenses,7.65,1.28,6.37
Resources BK0010,Digital and Customer Services,065335,School Services - Implementations,Supplies and Services,304259,Equipment and Materials,01-Jul-2021,000009611177571,TOOLSTATION UK,5251,Equipment-purchase and rental,70.85,0.00,70.85
Resources BK0010,Digital and Customer Services,065323,Operations - Installations,Supplies and Services,304639,Equipment and Materials,01-Jul-2021,000009611177583,TOOLSTATION UK,5251,Technicians-supplies,18.25,0.00,18.25
Resources BK0010,Digital and Customer Services,065335,School Services - Implementations,Supplies and Services,304303,Equipment and Materials,01-Jul-2021,000009611177589,TOOLSTATION UK,5251,Network for resale,89.76,0.00,89.76
Children and Young Peoples Services,Head of Childrens Social Care,085342,16 Hickstead Rise (previously 9 Cedar Ave),Supplies and Services,324117,Provisions E324,01-Jul-2021,000009611177607,TESCO STORES 2916,5411,Catering costs - provisions,8.30,0.00,8.30
Children and Young Peoples Services,Head of Childrens Social Care,085342,16 Hickstead Rise (previously 9 Cedar Ave),Supplies and Services,304403,Equipment and Materials,01-Jul-2021,000009611177611,AMZNMktplace,5999,Other consumables,14.99,0.00,14.99
"Regeneration, Economy and Growth",Culture Sport and Tourism,054235,Bishop Auckland Town Hall Cafe,Supplies and Services,324117,Provisions E324,01-Jul-2021,000009611177717,JR HOLLAND FOODSERVICE,5499,Catering costs - provisions,7.50,0.00,7.50
Children and Young Peoples Services,Head of Childrens Social Care,085332,Middlestone Moor CU,Supplies and Services,304999,Equipment and Materials,01-Jul-2021,000009611177757,Microsoft Console 1-Mo,5816,Misc equipment tools and materials,7.99,0.00,7.99
Children and Young Peoples Services,Head of Childrens Social Care,085332,Middlestone Moor CU,Supplies and Services,348037,Subsistence E348,01-Jul-2021,000009611177761,EXTRA TIME TAKEAWAY,5812,Subsistence,5.20,0.00,5.20
Children and Young Peoples Services,Head of Early Help Inclusion & Vulnerable Children.,085801,CDYJS - Support,Supplies and Services,324117,Provisions E324,01-Jul-2021,000009611177823,HERON FOODS CROOK,5411,Catering costs - provisions,11.89,0.00,11.89
Children and Young Peoples Services,Head of Childrens Social Care,085333,Coxhoe Satelite Home,Supplies and Services,324117,Provisions E324,01-Jul-2021,000009611177857,COOPLANDS BAKERY,5462,Catering costs - provisions,8.90,0.00,8.90
Children and Young Peoples Services,Head of Childrens Social Care,085333,Coxhoe Satelite Home,Supplies and Services,324117,Provisions E324,01-Jul-2021,000009611177861,WILKO RETAIL LIMITED,5399,Catering costs - provisions,33.60,0.00,33.60
Children and Young Peoples Services,Head of Childrens Social Care,085333,Coxhoe Satelite Home,Supplies and Services,324117,Provisions E324,01-Jul-2021,000009611177863,TESCO STORES 2916,5411,Catering costs - provisions,89.58,0.00,89.58
Neighbourhoods and Climate Change,Environmental Services,031200,North Pennines Core,Third Party Payments,430100,Rendered by Private Contractors,01-Jul-2021,000009611177963,EB LANDSCAPES FOR LIF,7399,Payments to sub-contractors,80.00,0.00,80.00
Children and Young Peoples Services,Head of Childrens Social Care,085332,Middlestone Moor CU,Supplies and Services,304999,Equipment and Materials,01-Jul-2021,000009611178043,HOME BARGAINS SPENNYMO,5251,Misc equipment tools and materials,11.71,0.00,11.71
Children and Young Peoples Services,Head of Childrens Social Care,085332,Middlestone Moor CU,Supplies and Services,324117,Provisions E324,01-Jul-2021,000009611178047,CO-OP GROUP 108249,5411,Catering costs - provisions,3.70,0.00,3.70
Children and Young Peoples Services,Head of Early Help Inclusion & Vulnerable Children.,085962,Aycliffe Secure - Durham,Supplies and Services,304403,Equipment and Materials,01-Jul-2021,000009611178119,AMZNMKTPLACE AMAZON.CO,5999,Other consumables,28.45,0.00,28.45
"Regeneration, Economy and Growth",Development and Housing,030776,LINKCD Flexible Fund,Supplies and Services,304221,Equipment and Materials,01-Jul-2021,000009611178183,SCREWFIX DIRECT,5211,Direct materials,24.96,4.16,20.80
"Regeneration, Economy and Growth",Development and Housing,030776,LINKCD Flexible Fund,Supplies and Services,304221,Equipment and Materials,01-Jul-2021,000009611178183 - 1,SCREWFIX DIRECT,5211,Direct materials,30.02,,30.02
"Regeneration, Economy and Growth",Development and Housing,030776,LINKCD Flexible Fund,Supplies and Services,328041,Clothing uniforms and laundry E328,01-Jul-2021,000009611178189,ARGOS LTD,5310,Clothing uniforms and laundry,43.90,0.00,43.90
Children and Young Peoples Services,Head of Childrens Social Care,085341,High Etherley Satelite Home,Supplies and Services,324117,Provisions E324,01-Jul-2021,000009611178217,SAINSBURYS 2199,5411,Catering costs - provisions,2.05,0.00,2.05
Resources BK0010,People & Talent Management,066895,Advice & Guidance,Employees,040149,Recruitment Instruction and Training,01-Jul-2021,000009611178287,CIPD MEMBERSHIP RENEWA,8999,Training-all costs,98.00,0.00,98.00
"Regeneration, Economy and Growth",Development and Housing,031576,B& B - Temp Accom,Supplies and Services,364320,Grants to Voluntary Organisations,01-Jul-2021,000009611178349,H52STANLEY,7011,Accommodation assistance,115.00,0.00,115.00
"Regeneration, Economy and Growth",Development and Housing,031576,B& B - Temp Accom,Supplies and Services,364320,Grants to Voluntary Organisations,01-Jul-2021,000009611178353,Rustica,5812,Accommodation assistance,19.95,0.00,19.95
Neighbourhoods and Climate Change,Environmental Services,010383,C&G - South Street Cleansing,Supplies and Services,324117,Provisions E324,01-Jul-2021,000009611178445,B&M 147 - FERRYHILL,5399,Catering costs - provisions,53.51,0.00,53.51
Children and Young Peoples Services,Head of Childrens Social Care,085551,Short Break Services-Park Hse Sher,Supplies and Services,324117,Provisions E324,01-Jul-2021,000009611178497,WWW.ICELAND.CO.UK,5411,Catering costs - provisions,88.60,0.00,88.60
Children and Young Peoples Services,Head of Childrens Social Care,085333,Coxhoe Satelite Home,Supplies and Services,328041,Clothing uniforms and laundry E328,01-Jul-2021,000009611178609,BOOHOO.COM,5691,Clothing uniforms and laundry,24.99,0.00,24.99
Children and Young Peoples Services,Head of Childrens Social Care,085333,Coxhoe Satelite Home,Supplies and Services,328041,Clothing uniforms and laundry E328,01-Jul-2021,000009611178617,PRETTYLITTLETHING.COM,5691,Clothing uniforms and laundry,13.99,0.00,13.99
Children and Young Peoples Services,Head of Childrens Social Care,085333,Coxhoe Satelite Home,Supplies and Services,324117,Provisions E324,01-Jul-2021,000009611178621,CO-OP GROUP 310016,5411,Catering costs - provisions,7.75,0.00,7.75
"Regeneration, Economy and Growth",Corporate Property and Land,021235,Catering - Wharton Park,Supplies and Services,324117,Provisions E324,01-Jul-2021,7595945750,BATLEYS PERTH,5300,Catering costs - provisions,163.26,27.21,136.05
"Regeneration, Economy and Growth",Corporate Property and Land,021235,Catering - Wharton Park,Supplies and Services,324117,Provisions E324,01-Jul-2021,7595945750 - 1,BATLEYS PERTH,5300,Catering costs - provisions,11.61,,11.61
"Regeneration, Economy and Growth",Culture Sport and Tourism,054812,Gala Theatre - Catering etc,Premises,145009,Cleaning and Domestic Supplies,01-Jul-2021,9611175929,ALLIANCE DISPOSABLES L,2842,Other cleaning and domestic costs,9.64,1.61,8.03
"Regeneration, Economy and Growth",Corporate Property and Land,030691,Catering - Durham Dales Centre,Premises,145009,Cleaning and Domestic Supplies,01-Jul-2021,9611177363,ALLIANCE DISPOSABLES L,2842,Other cleaning and domestic costs,187.62,31.27,156.35
"Regeneration, Economy and Growth",Corporate Property and Land,030691,Catering - Durham Dales Centre,Premises,145009,Cleaning and Domestic Supplies,01-Jul-2021,9611177363 - 1,ALLIANCE DISPOSABLES L,2842,Other cleaning and domestic costs,25.42,,25.42
"Regeneration, Economy and Growth",Corporate Property and Land,021235,Catering - Wharton Park,Supplies and Services,324117,Provisions E324,01-Jul-2021,9611178425,JR HOLLAND FOODSERVICE,5499,Catering costs - provisions,16.83,0.00,16.83
"Regeneration, Economy and Growth",Business Durham CL0850,030689,Inward Investment and Aftercare,Supplies and Services,304403,Equipment and Materials,02-Jul-2021,000007595943196,ADOBE CREATIVE CLOUD,5734,Other consumables,49.94,0.00,49.94
"Regeneration, Economy and Growth",Business Durham CL0850,030689,Inward Investment and Aftercare,Supplies and Services,342222,Computers and Communications,02-Jul-2021,000007595943232,FASTHOSTS INTERNET,4816,Comp hardware purch-network servers,72.66,0.00,72.66
"Regeneration, Economy and Growth",Business Durham CL0850,030689,Inward Investment and Aftercare,Supplies and Services,342222,Computers and Communications,02-Jul-2021,000007595943234,FASTHOSTS INTERNET,4816,Comp hardware purch-network servers,67.20,0.00,67.20
Children and Young Peoples Services,Head of Education and Skills,071801,Selby Cottage Childcare Centre,Supplies and Services,384999,Miscellaneous Expenses,02-Jul-2021,000007595943254,Amazon.co.uk 201YO7J64,5969,Other expenses,16.00,2.67,13.33
Children and Young Peoples Services,Head of Education and Skills,071801,Selby Cottage Childcare Centre,Supplies and Services,324117,Provisions E324,02-Jul-2021,000007595943260,ASDA GROCERIES ONLINE,5411,Catering costs - provisions,101.14,0.00,101.14
Children and Young Peoples Services,Head of Education and Skills,071801,Selby Cottage Childcare Centre,Supplies and Services,324117,Provisions E324,02-Jul-2021,000007595943264,ASDA GROCERIES ONLINE,5411,Catering costs - provisions,-3.14,0.00,-3.14
"Regeneration, Economy and Growth",Development and Housing,031576,B& B - Temp Accom,Supplies and Services,352001,Conference Expenses,02-Jul-2021,000007595943300,TRAVELODGE,3615,Conferencesseminars fees etc,230.46,0.00,230.46
Children and Young Peoples Services,Head of Education and Skills,075021,DurhamWorks Progression and Learning,Supplies and Services,364301,Grants to Voluntary Organisations,02-Jul-2021,000007595943372,DVLA DRIVER ONLINE,9399,Hardship,34.00,0.00,34.00
"Regeneration, Economy and Growth",Culture Sport and Tourism,030712,VCD - Project Delivery,Supplies and Services,384199,Miscellaneous Expenses,02-Jul-2021,000007595943420,MAILCHIMP MONTHLY,5968,Other hired and contracted services,205.16,0.00,205.16
"Regeneration, Economy and Growth",Culture Sport and Tourism,011265,Empire Theatre (Operations),Supplies and Services,324117,Provisions E324,02-Jul-2021,000007595943630,JR HOLLAND FOODSERVICE,5499,Catering costs - provisions,26.00,0.00,26.00
"Regeneration, Economy and Growth",Development and Housing,030777,FLEX,Supplies and Services,304259,Equipment and Materials,02-Jul-2021,000007595943644,GEN REGISTER OFFICE,9399,Equipment-purchase and rental,14.00,0.00,14.00
Children and Young Peoples Services,Head of Early Help Inclusion & Vulnerable Children.,085952,Secure Education,Supplies and Services,384999,Miscellaneous Expenses,02-Jul-2021,000007595943734,Amazon.co.uk 204152J94,5969,Other expenses,10.29,0.00,10.29
Children and Young Peoples Services,Head of Early Help Inclusion & Vulnerable Children.,085952,Secure Education,Supplies and Services,384999,Miscellaneous Expenses,02-Jul-2021,000007595943736,Amazon.co.uk 206NJ1J04,5969,Other expenses,5.99,1.00,4.99
Children and Young Peoples Services,Head of Early Help Inclusion & Vulnerable Children.,085952,Secure Education,Supplies and Services,304403,Equipment and Materials,02-Jul-2021,000007595943740,AMZNMktplace,5999,Other consumables,38.15,0.00,38.15
Children and Young Peoples Services,Head of Early Help Inclusion & Vulnerable Children.,085952,Secure Education,Supplies and Services,384999,Miscellaneous Expenses,02-Jul-2021,000007595943748,Amazon.co.uk 207866JJ4,5969,Other expenses,5.79,0.97,4.82
Children and Young Peoples Services,Head of Early Help Inclusion & Vulnerable Children.,085962,Aycliffe Secure - Durham,Supplies and Services,384999,Miscellaneous Expenses,02-Jul-2021,000007595943752,Amazon.co.uk 2098B5JY4,5969,Other expenses,9.99,1.67,8.32
Children and Young Peoples Services,Head of Early Help Inclusion & Vulnerable Children.,073998,TTF-Co-ordinator Grant,Supplies and Services,324117,Provisions E324,02-Jul-2021,000007595943772,ASDA GEORGE COM LEEDS,5411,Catering costs - provisions,136.92,22.82,114.10
Children and Young Peoples Services,Head of Early Help Inclusion & Vulnerable Children.,073998,TTF-Co-ordinator Grant,Supplies and Services,324117,Provisions E324,02-Jul-2021,000007595943772 - 1,ASDA GEORGE COM LEEDS,5411,Catering costs - provisions,0.03,,0.03
Children and Young Peoples Services,Head of Childrens Social Care,085551,Short Break Services-Park Hse Sher,Supplies and Services,324117,Provisions E324,02-Jul-2021,000007595943802,TESCO STORES 2371,5411,Catering costs - provisions,14.88,0.00,14.88
"Regeneration, Economy and Growth",Culture Sport and Tourism,010664,Freemans Quay Leisure Centre,Supplies and Services,304403,Equipment and Materials,02-Jul-2021,000007595943868,AMZNMKTPLACE AMAZON.CO,5999,Other consumables,630.00,105.00,525.00
Children and Young Peoples Services,Head of Education and Skills,071732,Dean Bank Childcare,Supplies and Services,324117,Provisions E324,02-Jul-2021,000007595943890,SAINSBURYS SACAT (2303,5411,Catering costs - provisions,19.00,0.00,19.00
"Regeneration, Economy and Growth",Culture Sport and Tourism,054813,Gala Theatre - Technical,Supplies and Services,304403,Equipment and Materials,02-Jul-2021,000007595943916,AMZNMKTPLACE AMAZON.CO,5999,Other consumables,91.16,0.00,91.16
Neighbourhoods and Climate Change,Environmental Services,031221,North Pennines - Bowlees,Supplies and Services,384999,Miscellaneous Expenses,02-Jul-2021,000007595943960,RISUSLTDTRI,5945,Other expenses,187.86,0.00,187.86
Neighbourhoods and Climate Change,Environmental Services,031221,North Pennines - Bowlees,Supplies and Services,304221,Equipment and Materials,02-Jul-2021,000007595943974,WICKES BUILDING,5211,Direct materials,40.00,0.00,40.00
Children and Young Peoples Services,Head of Childrens Social Care,085334,West Rainton Satelite Home,Supplies and Services,304403,Equipment and Materials,02-Jul-2021,000007595943984,CEX,5065,Other consumables,210.10,0.00,210.10
Children and Young Peoples Services,Head of Childrens Social Care,085334,West Rainton Satelite Home,Supplies and Services,328041,Clothing uniforms and laundry E328,02-Jul-2021,000007595943990,SPORTSDIRECT.COM,5691,Clothing uniforms and laundry,44.99,0.00,44.99
Children and Young Peoples Services,Head of Childrens Social Care,085334,West Rainton Satelite Home,Supplies and Services,328041,Clothing uniforms and laundry E328,02-Jul-2021,000007595944000,All Safety Limited,7996,Clothing uniforms and laundry,70.40,0.00,70.40
Children and Young Peoples Services,Head of Childrens Social Care,085334,West Rainton Satelite Home,Supplies and Services,304221,Equipment and Materials,02-Jul-2021,000007595944002,B & Q 1343,5200,Direct materials,52.39,0.00,52.39
Neighbourhoods and Climate Change,Environmental Services,026591,C&G - Hardwick Park,Supplies and Services,304083,Equipment and Materials,02-Jul-2021,000007595944020,AMZNMKTPLACE AMAZON.CO,5999,Catering equipment,69.95,11.66,58.29
"Regeneration, Economy and Growth",Development and Housing,031500,Housing Solutions - Core,Supplies and Services,352001,Conference Expenses,02-Jul-2021,000007595944072,TOAST LETTINGS,7011,Conferencesseminars fees etc,490.00,0.00,490.00
"Regeneration, Economy and Growth",Development and Housing,031500,Housing Solutions - Core,Supplies and Services,352001,Conference Expenses,02-Jul-2021,000007595944074,TOAST LETTINGS,7011,Conferencesseminars fees etc,490.00,0.00,490.00
"Regeneration, Economy and Growth",Development and Housing,031500,Housing Solutions - Core,Supplies and Services,352001,Conference Expenses,02-Jul-2021,000007595944082,TOAST LETTINGS,7011,Conferencesseminars fees etc,490.00,0.00,490.00
"Regeneration, Economy and Growth",Development and Housing,031500,Housing Solutions - Core,Supplies and Services,352001,Conference Expenses,02-Jul-2021,000007595944084,TOAST LETTINGS,7011,Conferencesseminars fees etc,490.00,0.00,490.00
"Regeneration, Economy and Growth",Development and Housing,031500,Housing Solutions - Core,Supplies and Services,352001,Conference Expenses,02-Jul-2021,000007595944086,TOAST LETTINGS,7011,Conferencesseminars fees etc,490.00,0.00,490.00
"Regeneration, Economy and Growth",Development and Housing,031500,Housing Solutions - Core,Supplies and Services,352001,Conference Expenses,02-Jul-2021,000007595944098,TOAST LETTINGS,7011,Conferencesseminars fees etc,490.00,0.00,490.00
"Regeneration, Economy and Growth",Development and Housing,031500,Housing Solutions - Core,Supplies and Services,352001,Conference Expenses,02-Jul-2021,000007595944100,TOAST LETTINGS,7011,Conferencesseminars fees etc,490.00,0.00,490.00
"Regeneration, Economy and Growth",Development and Housing,031500,Housing Solutions - Core,Supplies and Services,352001,Conference Expenses,02-Jul-2021,000007595944102,TOAST LETTINGS,7011,Conferencesseminars fees etc,490.00,0.00,490.00
"Regeneration, Economy and Growth",Development and Housing,031500,Housing Solutions - Core,Supplies and Services,352001,Conference Expenses,02-Jul-2021,000007595944104,TOAST LETTINGS,7011,Conferencesseminars fees etc,490.00,0.00,490.00
"Regeneration, Economy and Growth",Development and Housing,031500,Housing Solutions - Core,Supplies and Services,352001,Conference Expenses,02-Jul-2021,000007595944116,TOAST LETTINGS,7011,Conferencesseminars fees etc,490.00,0.00,490.00
Children and Young Peoples Services,Head of Childrens Social Care,085332,Middlestone Moor CU,Supplies and Services,348037,Subsistence E348,02-Jul-2021,000007595944132,COSTA COFFEE NEWTON AY,5812,Subsistence,10.50,0.00,10.50
Children and Young Peoples Services,Head of Childrens Social Care,085332,Middlestone Moor CU,Supplies and Services,348037,Subsistence E348,02-Jul-2021,000007595944138,KFC THINFORD DURHAM PR,5814,Subsistence,64.84,0.00,64.84
Children and Young Peoples Services,Head of Childrens Social Care,085332,Middlestone Moor CU,Supplies and Services,324117,Provisions E324,02-Jul-2021,000007595944144,Thames Fruit And Veg,5411,Catering costs - provisions,3.00,0.00,3.00
"Regeneration, Economy and Growth",Development and Housing,031576,B& B - Temp Accom,Supplies and Services,364320,Grants to Voluntary Organisations,02-Jul-2021,000007595944250,TOAST LETTINGS,7011,Accommodation assistance,480.00,0.00,480.00
"Regeneration, Economy and Growth",Development and Housing,031576,B& B - Temp Accom,Supplies and Services,364320,Grants to Voluntary Organisations,02-Jul-2021,000007595944266,TOAST LETTINGS,7011,Accommodation assistance,480.00,0.00,480.00
"Regeneration, Economy and Growth",Development and Housing,030771,Durham Advance Flexible Fund,Employees,040149,Recruitment Instruction and Training,02-Jul-2021,000007595944282,VIRTUAL COLLEGE LIMITE,8299,Training-all costs,24.00,4.00,20.00
"Regeneration, Economy and Growth",Development and Housing,031576,B& B - Temp Accom,Supplies and Services,364320,Grants to Voluntary Organisations,02-Jul-2021,000007595944304,AYCLIFFE BIZ,7011,Accommodation assistance,114.00,0.00,114.00
"Regeneration, Economy and Growth",Development and Housing,031576,B& B - Temp Accom,Supplies and Services,364320,Grants to Voluntary Organisations,02-Jul-2021,000007595944306,AYCLIFFE BIZ,7011,Accommodation assistance,114.00,0.00,114.00
"Regeneration, Economy and Growth",Development and Housing,031576,B& B - Temp Accom,Supplies and Services,364320,Grants to Voluntary Organisations,02-Jul-2021,000007595944314,AYCLIFFE BIZ,7011,Accommodation assistance,114.00,0.00,114.00
"Regeneration, Economy and Growth",Development and Housing,030771,Durham Advance Flexible Fund,Employees,040149,Recruitment Instruction and Training,02-Jul-2021,000007595944334,ANIMAL COURSES DIRECT,8299,Training-all costs,399.00,0.00,399.00
Children and Young Peoples Services,Head of Early Help Inclusion & Vulnerable Children.,071446,Seaham One Point Hub,Supplies and Services,324117,Provisions E324,02-Jul-2021,000007595944372,ASDA GROCERIES ONLINE,5411,Catering costs - provisions,100.60,0.00,100.60
Children and Young Peoples Services,Head of Early Help Inclusion & Vulnerable Children.,071446,Seaham One Point Hub,Supplies and Services,324117,Provisions E324,02-Jul-2021,000007595944402,ASDA GROCERIES ONLINE,5411,Catering costs - provisions,-2.60,0.00,-2.60
Neighbourhoods and Climate Change,Environmental Services,011060,C&G - Hardwick Park Catering,Supplies and Services,324117,Provisions E324,02-Jul-2021,000007595944438,HOPWELLS LTD,5811,Catering costs - provisions,102.37,0.00,102.37
Neighbourhoods and Climate Change,Environmental Services,011060,C&G - Hardwick Park Catering,Supplies and Services,324117,Provisions E324,02-Jul-2021,000007595944446,HOPWELLS LTD,5811,Catering costs - provisions,82.67,0.00,82.67
Neighbourhoods and Climate Change,Environmental Services,011060,C&G - Hardwick Park Catering,Supplies and Services,324117,Provisions E324,02-Jul-2021,000007595944464,JR HOLLAND FOODSERVICE,5499,Catering costs - provisions,65.21,0.00,65.21
Children and Young Peoples Services,Head of Childrens Social Care,085331,New Lea Childrens Home,Supplies and Services,324117,Provisions E324,02-Jul-2021,000007595944688,TESCO STORES 6329,5411,Catering costs - provisions,28.83,0.00,28.83
"Regeneration, Economy and Growth",Business Durham CL0850,030672,Operations Team,Supplies and Services,324117,Provisions E324,02-Jul-2021,000007595944780,SumUp Durham Cricket,5811,Catering costs - provisions,110.50,0.00,110.50
Children and Young Peoples Services,Head of Childrens Social Care,085333,Coxhoe Satelite Home,Supplies and Services,324117,Provisions E324,02-Jul-2021,000007595944792,TESCO STORES 2371,5411,Catering costs - provisions,83.59,0.00,83.59
Children and Young Peoples Services,Head of Childrens Social Care,085333,Coxhoe Satelite Home,Supplies and Services,324117,Provisions E324,02-Jul-2021,000007595944794,TESCO STORES 2371,5411,Catering costs - provisions,34.30,0.00,34.30
Children and Young Peoples Services,Head of Childrens Social Care,085333,Coxhoe Satelite Home,Supplies and Services,308011,Furniture,02-Jul-2021,000007595944796,DUNELM LTD,5714,Furniture repair and replacement,44.80,0.00,44.80
Children and Young Peoples Services,Head of Childrens Social Care,085333,Coxhoe Satelite Home,Supplies and Services,308011,Furniture,02-Jul-2021,000007595944798,DUNELM LTD,5714,Furniture repair and replacement,43.60,0.00,43.60
Adult and Health Services,Head of Adults,055643,Hawthorn House LD Respite Unit,Supplies and Services,324117,Provisions E324,02-Jul-2021,000007595944968,HOPWELLS LTD,5811,Catering costs - provisions,49.68,0.00,49.68
Adult and Health Services,Head of Adults,055643,Hawthorn House LD Respite Unit,Supplies and Services,324117,Provisions E324,02-Jul-2021,000007595944970,HOPWELLS LTD,5811,Catering costs - provisions,9.18,1.53,7.65
Adult and Health Services,Head of Adults,055643,Hawthorn House LD Respite Unit,Supplies and Services,324117,Provisions E324,02-Jul-2021,000007595944970 - 1,HOPWELLS LTD,5811,Catering costs - provisions,84.27,,84.27
Adult and Health Services,Head of Adults,055643,Hawthorn House LD Respite Unit,Supplies and Services,324117,Provisions E324,02-Jul-2021,000007595944974,JR HOLLAND FOODSERVICE,5499,Catering costs - provisions,19.38,0.00,19.38
Adult and Health Services,Head of Adults,055643,Hawthorn House LD Respite Unit,Supplies and Services,324117,Provisions E324,02-Jul-2021,000007595944976,JR HOLLAND FOODSERVICE,5499,Catering costs - provisions,27.70,0.00,27.70
Adult and Health Services,Head of Adults,055643,Hawthorn House LD Respite Unit,Supplies and Services,324117,Provisions E324,02-Jul-2021,000007595944992,JR HOLLAND FOODSERVICE,5499,Catering costs - provisions,4.75,0.00,4.75
Adult and Health Services,Head of Adults,055643,Hawthorn House LD Respite Unit,Supplies and Services,324117,Provisions E324,02-Jul-2021,000007595944994,HOPWELLS LTD,5811,Catering costs - provisions,-1.06,0.00,-1.06
Children and Young Peoples Services,Head of Childrens Social Care,085334,West Rainton Satelite Home,Supplies and Services,324117,Provisions E324,02-Jul-2021,000007595944998,TESCO STORES 2371,5411,Catering costs - provisions,10.00,0.00,10.00
Children and Young Peoples Services,Head of Childrens Social Care,085334,West Rainton Satelite Home,Supplies and Services,324117,Provisions E324,02-Jul-2021,000007595945020,TESCO STORES 2371,5411,Catering costs - provisions,77.41,0.00,77.41
Children and Young Peoples Services,Head of Childrens Social Care,085334,West Rainton Satelite Home,Supplies and Services,324117,Provisions E324,02-Jul-2021,000007595945022,TESCO STORES 2371,5411,Catering costs - provisions,7.60,0.00,7.60
Children and Young Peoples Services,Head of Early Help Inclusion & Vulnerable Children.,088103,Consett & Stanley 0-19 Community Family Hub,Supplies and Services,384302,Miscellaneous Expenses,02-Jul-2021,000007595945130,AMZNMktplace,5999,Activity expenses,18.90,3.15,15.75
Children and Young Peoples Services,Head of Early Help Inclusion & Vulnerable Children.,088115,Young Parents Programme 088115,Supplies and Services,384302,Miscellaneous Expenses,02-Jul-2021,000007595945136,WWW.BEAMISH.ORG.UK,7922,Activity expenses,214.50,0.00,214.50
Children and Young Peoples Services,Head of Early Help Inclusion & Vulnerable Children.,088103,Consett & Stanley 0-19 Community Family Hub,Supplies and Services,364301,Grants to Voluntary Organisations,02-Jul-2021,000007595945138,ARGOS LTD,5310,Hardship,59.99,0.00,59.99
Resources BK0010,Procurement Sales & Business Services,065503,Business Support - Spectrum,Supplies and Services,304259,Equipment and Materials,02-Jul-2021,000007595945222,HM PASSPORT OFFICE,9399,Equipment-purchase and rental,75.50,0.00,75.50
Resources BK0010,Procurement Sales & Business Services,065503,Business Support - Spectrum,Supplies and Services,324117,Provisions E324,02-Jul-2021,000007595945256,WWW.ALDI.CO.UK,5411,Catering costs - provisions,354.91,0.00,354.91
Resources BK0010,Procurement Sales & Business Services,065503,Business Support - Spectrum,Supplies and Services,328041,Clothing uniforms and laundry E328,02-Jul-2021,000007595945258,ARGOS LTD,5310,Clothing uniforms and laundry,299.99,0.00,299.99
Resources BK0010,Procurement Sales & Business Services,065503,Business Support - Spectrum,Supplies and Services,328041,Clothing uniforms and laundry E328,02-Jul-2021,000007595945274,ARGOS LTD,5310,Clothing uniforms and laundry,293.95,0.00,293.95
"Regeneration, Economy and Growth",Culture Sport and Tourism,054235,Bishop Auckland Town Hall Cafe,Supplies and Services,324117,Provisions E324,02-Jul-2021,000007595945280,HOPWELLS LTD,5811,Catering costs - provisions,48.17,0.00,48.17
"Regeneration, Economy and Growth",Culture Sport and Tourism,054235,Bishop Auckland Town Hall Cafe,Supplies and Services,324117,Provisions E324,02-Jul-2021,000007595945298,JR HOLLAND FOODSERVICE,5499,Catering costs - provisions,33.40,0.00,33.40
Children and Young Peoples Services,Head of Childrens Social Care,085332,Middlestone Moor CU,Supplies and Services,324117,Provisions E324,02-Jul-2021,000007595945364,KEN WARNE LTD (O5),5411,Catering costs - provisions,5.18,0.00,5.18
Children and Young Peoples Services,Head of Childrens Social Care,085334,West Rainton Satelite Home,Supplies and Services,304403,Equipment and Materials,02-Jul-2021,000007595945422,AMZNMKTPLACE AMAZON.CO,5999,Other consumables,12.99,0.00,12.99
Children and Young Peoples Services,Head of Education and Skills,071802,Louisa Cent Nursery,Supplies and Services,324117,Provisions E324,02-Jul-2021,000007595945494,ASDA GROCERIES ONLINE,5411,Catering costs - provisions,201.39,0.00,201.39
Children and Young Peoples Services,Head of Education and Skills,071802,Louisa Cent Nursery,Supplies and Services,324117,Provisions E324,02-Jul-2021,000007595945496,ALDI 11 774,5411,Catering costs - provisions,5.39,0.00,5.39
Children and Young Peoples Services,Head of Childrens Social Care,085332,Middlestone Moor CU,Supplies and Services,304999,Equipment and Materials,02-Jul-2021,000007595945570,SUPERDRUG STORES PLC,5912,Misc equipment tools and materials,62.77,0.00,62.77
Children and Young Peoples Services,Head of Childrens Social Care,085332,Middlestone Moor CU,Supplies and Services,384999,Miscellaneous Expenses,02-Jul-2021,000007595945574,Amazon.co.uk 200EE5JW4,5969,Other expenses,23.99,4.00,19.99
Children and Young Peoples Services,Head of Childrens Social Care,085332,Middlestone Moor CU,Supplies and Services,304403,Equipment and Materials,02-Jul-2021,000007595945576,AMZNMktplace,5999,Other consumables,8.18,1.37,6.81
Children and Young Peoples Services,Head of Childrens Social Care,085332,Middlestone Moor CU,Supplies and Services,304259,Equipment and Materials,02-Jul-2021,000007595945580,JD SPORTS PLC,5941,Equipment-purchase and rental,96.10,0.00,96.10
Children and Young Peoples Services,Head of Childrens Social Care,085332,Middlestone Moor CU,Supplies and Services,304403,Equipment and Materials,02-Jul-2021,000007595945584,AMZNMKTPLACE AMAZON.CO,5999,Other consumables,11.95,1.99,9.96
"Regeneration, Economy and Growth",Culture Sport and Tourism,054233,Bishop Auckland Town Hall Library,Supplies and Services,324117,Provisions E324,02-Jul-2021,000007595945606,HERON FOODS,5411,Catering costs - provisions,4.25,0.00,4.25
Children and Young Peoples Services,Head of Childrens Social Care,085331,New Lea Childrens Home,Supplies and Services,324117,Provisions E324,02-Jul-2021,000007595945672,ASDA GROCERIES ONLINE,5411,Catering costs - provisions,185.67,0.00,185.67
Children and Young Peoples Services,Head of Childrens Social Care,085331,New Lea Childrens Home,Supplies and Services,324117,Provisions E324,02-Jul-2021,000007595945678,ASDA GROCERIES ONLINE,5411,Catering costs - provisions,-0.36,0.00,-0.36
"Regeneration, Economy and Growth",Development and Housing,039505,Seaham - Town Centre,Supplies and Services,304259,Equipment and Materials,02-Jul-2021,000007595945690,Durham County CNCL,9399,Equipment-purchase and rental,234.00,0.00,234.00
Resources BK0010,People & Talent Management,066895,Advice & Guidance,Employees,040149,Recruitment Instruction and Training,02-Jul-2021,000007595945692,CIPD MEMBERSHIP RENEWA,8999,Training-all costs,98.00,0.00,98.00
Neighbourhoods and Climate Change,Environmental Services,010383,C&G - South Street Cleansing,Supplies and Services,304403,Equipment and Materials,02-Jul-2021,000007595945764,AMZNMKTPLACE AMAZON.CO,5999,Other consumables,6.05,0.00,6.05
Neighbourhoods and Climate Change,Environmental Services,010383,C&G - South Street Cleansing,Employees,040149,Recruitment Instruction and Training,02-Jul-2021,000007595945766,VIRTUAL COLLEGE LIMITE,8299,Training-all costs,108.00,0.00,108.00
Children and Young Peoples Services,Head of Childrens Social Care,085551,Short Break Services-Park Hse Sher,Supplies and Services,324117,Provisions E324,02-Jul-2021,000007595945822,WM Morrisons Store,5411,Catering costs - provisions,19.93,0.00,19.93
Children and Young Peoples Services,Head of Childrens Social Care,085634,Families First Easington,Employees,040149,Recruitment Instruction and Training,02-Jul-2021,000007595945930,PREMIER INN,3811,Training-all costs,71.99,0.00,71.99
Children and Young Peoples Services,Head of Childrens Social Care,085632,Families First Seaham,Supplies and Services,328041,Clothing uniforms and laundry E328,02-Jul-2021,000007595945944,ARGOS LTD,5310,Clothing uniforms and laundry,34.99,0.00,34.99
"Regeneration, Economy and Growth",Corporate Property and Land,021242,Catering - County Hall,Supplies and Services,324117,Provisions E324,02-Jul-2021,000007614525554,BATLEYS PERTH,5300,Catering costs - provisions,30.96,5.16,25.80
"Regeneration, Economy and Growth",Corporate Property and Land,021242,Catering - County Hall,Supplies and Services,324117,Provisions E324,02-Jul-2021,000007614525554 - 1,BATLEYS PERTH,5300,Catering costs - provisions,80.14,,80.14
Children and Young Peoples Services,Head of Early Help Inclusion & Vulnerable Children.,085952,Secure Education,Supplies and Services,384999,Miscellaneous Expenses,02-Jul-2021,000009611176011,Amazon.co.uk 207SI3344,5969,Other expenses,89.00,14.83,74.17
"Regeneration, Economy and Growth",Culture Sport and Tourism,054812,Gala Theatre - Catering etc,Supplies and Services,324117,Provisions E324,02-Jul-2021,7595943718,HOPWELLS LTD,5811,Catering costs - provisions,29.62,0.00,29.62
"Regeneration, Economy and Growth",Culture Sport and Tourism,054812,Gala Theatre - Catering etc,Supplies and Services,324117,Provisions E324,02-Jul-2021,7595943722,HOPWELLS LTD,5811,Catering costs - provisions,14.91,0.00,14.91
"Regeneration, Economy and Growth",Culture Sport and Tourism,054812,Gala Theatre - Catering etc,Supplies and Services,324117,Provisions E324,02-Jul-2021,7595943732,JR HOLLAND FOODSERVICE,5499,Catering costs - provisions,54.92,0.00,54.92
"Regeneration, Economy and Growth",Corporate Property and Land,021234,Catering - Locomotion,Supplies and Services,324117,Provisions E324,02-Jul-2021,7595944542,HOPWELLS LTD,5811,Catering costs - provisions,79.26,13.21,66.05
"Regeneration, Economy and Growth",Corporate Property and Land,021234,Catering - Locomotion,Supplies and Services,324117,Provisions E324,02-Jul-2021,7595944542 - 1,HOPWELLS LTD,5811,Catering costs - provisions,237.13,,237.13
"Regeneration, Economy and Growth",Corporate Property and Land,021234,Catering - Locomotion,Supplies and Services,324117,Provisions E324,02-Jul-2021,7595944556,JR HOLLAND FOODSERVICE,5499,Catering costs - provisions,4.60,0.00,4.60
"Regeneration, Economy and Growth",Corporate Property and Land,021234,Catering - Locomotion,Supplies and Services,324117,Provisions E324,02-Jul-2021,7595944570,JR HOLLAND FOODSERVICE,5499,Catering costs - provisions,43.10,0.00,43.10
"Regeneration, Economy and Growth",Corporate Property and Land,030691,Catering - Durham Dales Centre,Supplies and Services,324117,Provisions E324,02-Jul-2021,7595944910,HOPWELLS LTD,5811,Catering costs - provisions,58.84,0.00,58.84
"Regeneration, Economy and Growth",Corporate Property and Land,030691,Catering - Durham Dales Centre,Supplies and Services,324117,Provisions E324,02-Jul-2021,7595944924,HOPWELLS LTD,5811,Catering costs - provisions,130.10,0.00,130.10
"Regeneration, Economy and Growth",Corporate Property and Land,030691,Catering - Durham Dales Centre,Supplies and Services,324117,Provisions E324,02-Jul-2021,7595944936,JR HOLLAND FOODSERVICE,5499,Catering costs - provisions,68.09,0.00,68.09
"Regeneration, Economy and Growth",Corporate Property and Land,021235,Catering - Wharton Park,Supplies and Services,324117,Provisions E324,02-Jul-2021,7595945758,HOPWELLS LTD,5811,Catering costs - provisions,228.42,38.07,190.35
"Regeneration, Economy and Growth",Corporate Property and Land,021235,Catering - Wharton Park,Supplies and Services,324117,Provisions E324,02-Jul-2021,7595945758 - 1,HOPWELLS LTD,5811,Catering costs - provisions,113.76,,113.76
"Regeneration, Economy and Growth",Corporate Property and Land,021235,Catering - Wharton Park,Supplies and Services,324117,Provisions E324,02-Jul-2021,7595945762,JR HOLLAND FOODSERVICE,5499,Catering costs - provisions,18.09,0.00,18.09
Children and Young Peoples Services,Head of Education and Skills,071801,Selby Cottage Childcare Centre,Supplies and Services,304999,Equipment and Materials,03-Jul-2021,000007595943270,APPLE.COM/BILL,5815,Misc equipment tools and materials,9.99,0.00,9.99
"Regeneration, Economy and Growth",Culture Sport and Tourism,054990,Cultural Services Management,Supplies and Services,304259,Equipment and Materials,03-Jul-2021,000007595943396,SP KITRONIK LTD,5734,Equipment-purchase and rental,155.52,25.92,129.60
"Regeneration, Economy and Growth",Culture Sport and Tourism,054990,Cultural Services Management,Supplies and Services,304259,Equipment and Materials,03-Jul-2021,000007595943398,THEPIHUT,5732,Equipment-purchase and rental,"1,123.79",187.30,936.49
"Regeneration, Economy and Growth",Culture Sport and Tourism,030705,Visit County Durham 030705,Supplies and Services,384199,Miscellaneous Expenses,03-Jul-2021,000007595943430,FASTHOSTS INTERNET,4816,Other hired and contracted services,6.34,1.06,5.28
"Regeneration, Economy and Growth",Culture Sport and Tourism,054233,Bishop Auckland Town Hall Library,Supplies and Services,324117,Provisions E324,03-Jul-2021,000007595943642,HERON FOODS,5411,Catering costs - provisions,5.85,0.00,5.85
Children and Young Peoples Services,Head of Early Help Inclusion & Vulnerable Children.,085952,Secure Education,Supplies and Services,384999,Miscellaneous Expenses,03-Jul-2021,000007595943760,Amazon.co.uk 208AG1TB4,5969,Other expenses,47.43,0.00,47.43
Children and Young Peoples Services,Head of Childrens Social Care,085334,West Rainton Satelite Home,Supplies and Services,324117,Provisions E324,03-Jul-2021,000007595944004,TESCO STORES 2371,5411,Catering costs - provisions,7.25,0.00,7.25
Children and Young Peoples Services,Head of Childrens Social Care,085332,Middlestone Moor CU,Supplies and Services,324117,Provisions E324,03-Jul-2021,000007595944162,ALDI 59 774,5411,Catering costs - provisions,17.29,0.00,17.29
Children and Young Peoples Services,Head of Childrens Social Care,085332,Middlestone Moor CU,Supplies and Services,348037,Subsistence E348,03-Jul-2021,000007595944174,MCDONALDS,5812,Subsistence,10.91,0.00,10.91
Children and Young Peoples Services,Head of Childrens Social Care,085332,Middlestone Moor CU,Supplies and Services,348037,Subsistence E348,03-Jul-2021,000007595944176,MCDONALDS,5812,Subsistence,3.97,0.00,3.97
Children and Young Peoples Services,Head of Childrens Social Care,085332,Middlestone Moor CU,Supplies and Services,324117,Provisions E324,03-Jul-2021,000007595944178,ASDA SUPERSTORE 4987,5411,Catering costs - provisions,7.49,0.00,7.49
Children and Young Peoples Services,Head of Early Help Inclusion & Vulnerable Children.,085956,Lumley,Supplies and Services,324117,Provisions E324,03-Jul-2021,000007595944340,TESCO STORES 6329,5411,Catering costs - provisions,74.03,0.00,74.03
Children and Young Peoples Services,Head of Childrens Social Care,085551,Short Break Services-Park Hse Sher,Supplies and Services,348037,Subsistence E348,03-Jul-2021,000007595944610,COFFEE @ CHESNEYS,5812,Subsistence,9.60,0.00,9.60
Children and Young Peoples Services,Head of Childrens Social Care,085551,Short Break Services-Park Hse Sher,Supplies and Services,324117,Provisions E324,03-Jul-2021,000007595944612,TESCO STORES 2371,5411,Catering costs - provisions,7.00,0.00,7.00
Children and Young Peoples Services,Head of Childrens Social Care,085332,Middlestone Moor CU,Supplies and Services,332047,Printing Stationery and Gen Off Exps,03-Jul-2021,000007595945366,Vue Entertainment Ltd,7832,Stationery,9.98,0.00,9.98
Children and Young Peoples Services,Head of Childrens Social Care,085332,Middlestone Moor CU,Supplies and Services,324117,Provisions E324,03-Jul-2021,000007595945368,WM MORRISONS STORE,5411,Catering costs - provisions,33.48,0.00,33.48
Children and Young Peoples Services,Head of Childrens Social Care,085332,Middlestone Moor CU,Supplies and Services,348037,Subsistence E348,03-Jul-2021,000007595945370,KFC THINFORD DURHAM PR,5814,Subsistence,9.27,0.00,9.27
Children and Young Peoples Services,Head of Childrens Social Care,085332,Middlestone Moor CU,Supplies and Services,324117,Provisions E324,03-Jul-2021,000007595945372,KEN WARNE LTD (O5),5411,Catering costs - provisions,6.09,0.00,6.09
Children and Young Peoples Services,Head of Childrens Social Care,085334,West Rainton Satelite Home,Supplies and Services,304403,Equipment and Materials,03-Jul-2021,000007595945436,AMZ Universal Origins,5999,Other consumables,-14.99,0.00,-14.99
Children and Young Peoples Services,Head of Education and Skills,071802,Louisa Cent Nursery,Supplies and Services,324117,Provisions E324,03-Jul-2021,000007595945498,WM MORRISONS STORE,5411,Catering costs - provisions,4.60,0.00,4.60
Neighbourhoods and Climate Change,Environmental Services,010383,C&G - South Street Cleansing,Employees,040149,Recruitment Instruction and Training,03-Jul-2021,000007595945768,ARCOLA/HOUSE SIGN,8999,Training-all costs,33.93,0.00,33.93
"Regeneration, Economy and Growth",Business Durham CL0850,030689,Inward Investment and Aftercare,Supplies and Services,336005,Advertising E336,04-Jul-2021,000007595943216,GOOGLE ADS6853017821,7311,Advertising other than for staff,200.00,0.00,200.00
"Regeneration, Economy and Growth",Business Durham CL0850,030689,Inward Investment and Aftercare,Supplies and Services,342222,Computers and Communications,04-Jul-2021,000007595943218,FASTHOSTS INTERNET,4816,Comp hardware purch-network servers,7.54,0.00,7.54
"Regeneration, Economy and Growth",Culture Sport and Tourism,054990,Cultural Services Management,Supplies and Services,304259,Equipment and Materials,04-Jul-2021,000007595943414,AMZNMKTPLACE AMAZON.CO,5999,Equipment-purchase and rental,53.68,8.96,44.72
"Regeneration, Economy and Growth",Culture Sport and Tourism,054990,Cultural Services Management,Supplies and Services,304259,Equipment and Materials,04-Jul-2021,000007595943416,AMZNMktplace,5999,Equipment-purchase and rental,81.00,13.50,67.50
"Regeneration, Economy and Growth",Culture Sport and Tourism,054990,Cultural Services Management,Supplies and Services,304259,Equipment and Materials,04-Jul-2021,000007595943416 - 1,AMZNMktplace,5999,Equipment-purchase and rental,0.08,,0.08
Children and Young Peoples Services,Head of Childrens Social Care,085331,New Lea Childrens Home,Supplies and Services,324117,Provisions E324,04-Jul-2021,000007595943524,B&M 519 - CONSETT,5399,Catering costs - provisions,24.48,0.00,24.48
Children and Young Peoples Services,Head of Childrens Social Care,085331,New Lea Childrens Home,Supplies and Services,324117,Provisions E324,04-Jul-2021,000007595943526,B&M 519 - CONSETT,5399,Catering costs - provisions,46.97,0.00,46.97
Children and Young Peoples Services,Head of Childrens Social Care,085331,New Lea Childrens Home,Supplies and Services,324117,Provisions E324,04-Jul-2021,000007595943530,B&M 519 - CONSETT,5399,Catering costs - provisions,20.04,0.00,20.04
Children and Young Peoples Services,Head of Childrens Social Care,085334,West Rainton Satelite Home,Supplies and Services,304403,Equipment and Materials,04-Jul-2021,000007595944010,AMZNMktplace,5999,Other consumables,5.95,0.00,5.95
Children and Young Peoples Services,Head of Early Help Inclusion & Vulnerable Children.,085954,Walworth,Supplies and Services,324117,Provisions E324,04-Jul-2021,000007595944342,TESCO STORES 6329,5411,Catering costs - provisions,92.11,0.00,92.11
Children and Young Peoples Services,Head of Childrens Social Care,085331,New Lea Childrens Home,Supplies and Services,324117,Provisions E324,04-Jul-2021,000007595944574,B&M 519 - CONSETT,5399,Catering costs - provisions,7.98,0.00,7.98
Children and Young Peoples Services,Head of Childrens Social Care,085331,New Lea Childrens Home,Supplies and Services,324117,Provisions E324,04-Jul-2021,000007595944576,B&M 519 - CONSETT,5399,Catering costs - provisions,54.98,0.00,54.98
Children and Young Peoples Services,Head of Childrens Social Care,085331,New Lea Childrens Home,Supplies and Services,324117,Provisions E324,04-Jul-2021,000007595944586,B&M 519 - CONSETT,5399,Catering costs - provisions,50.00,0.00,50.00
Children and Young Peoples Services,Head of Childrens Social Care,085331,New Lea Childrens Home,Supplies and Services,324117,Provisions E324,04-Jul-2021,000007595944588,CO-OP GROUP 310021,5411,Catering costs - provisions,11.05,0.00,11.05
Children and Young Peoples Services,Head of Childrens Social Care,085351,Framwellgate Moor CU,Supplies and Services,304403,Equipment and Materials,04-Jul-2021,000007595944904,AMZNMktplace,5999,Other consumables,14.89,2.48,12.41
Children and Young Peoples Services,Head of Childrens Social Care,085351,Framwellgate Moor CU,Supplies and Services,384237,Miscellaneous Expenses,04-Jul-2021,000007595944906,JUMP 360 STOCKTON ONLI,7999,Recreational exps outings parties,23.00,0.00,23.00
Children and Young Peoples Services,Head of Education and Skills,078100,Curric and Professional Development 078100,Supplies and Services,384999,Miscellaneous Expenses,04-Jul-2021,000007595945032,Amazon.co.uk 202KJ6AI4,5969,Other expenses,14.63,0.00,14.63
Children and Young Peoples Services,Head of Early Help Inclusion & Vulnerable Children.,088103,Consett & Stanley 0-19 Community Family Hub,Supplies and Services,384302,Miscellaneous Expenses,04-Jul-2021,000007595945148,AMZNMktplace,5999,Activity expenses,43.98,7.33,36.65
Children and Young Peoples Services,Head of Childrens Social Care,085332,Middlestone Moor CU,Supplies and Services,324117,Provisions E324,04-Jul-2021,000007595945402,TESCO STORES 2916,5411,Catering costs - provisions,3.12,0.00,3.12
Children and Young Peoples Services,Head of Education and Skills,071802,Louisa Cent Nursery,Supplies and Services,328041,Clothing uniforms and laundry E328,04-Jul-2021,000007595945500,POUNDLAND LTD 1597,5310,Clothing uniforms and laundry,3.00,0.00,3.00
Children and Young Peoples Services,Head of Childrens Social Care,085332,Middlestone Moor CU,Supplies and Services,348037,Subsistence E348,04-Jul-2021,000007595945588,INFINATE AIR CAFE- SWE,5812,Subsistence,2.00,0.00,2.00
Children and Young Peoples Services,Head of Childrens Social Care,085332,Middlestone Moor CU,Supplies and Services,348037,Subsistence E348,04-Jul-2021,000007595945592,INFINATE AIR CAFE- SWE,5812,Subsistence,5.00,0.00,5.00
Children and Young Peoples Services,Head of Childrens Social Care,085332,Middlestone Moor CU,Supplies and Services,348037,Subsistence E348,04-Jul-2021,000007595945594,INFINITE AIRE CAFE- SA,5812,Subsistence,6.80,0.00,6.80
Children and Young Peoples Services,Head of Childrens Social Care,085332,Middlestone Moor CU,Supplies and Services,304999,Equipment and Materials,04-Jul-2021,000007595945596,WWW.INFINITEAIR.CO.UK,7991,Misc equipment tools and materials,37.90,0.00,37.90
Children and Young Peoples Services,Head of Childrens Social Care,085341,High Etherley Satelite Home,Supplies and Services,328041,Clothing uniforms and laundry E328,04-Jul-2021,000007595945680,POUNDSTRETCHER 692,5331,Clothing uniforms and laundry,3.98,0.00,3.98
Children and Young Peoples Services,Head of Childrens Social Care,085341,High Etherley Satelite Home,Supplies and Services,348037,Subsistence E348,04-Jul-2021,000007595945682,KFC WEST AUCKLAND,5814,Subsistence,15.96,0.00,15.96
Children and Young Peoples Services,Head of Childrens Social Care,085341,High Etherley Satelite Home,Supplies and Services,324117,Provisions E324,04-Jul-2021,000007595945684,WM MORRISONS STORE,5411,Catering costs - provisions,2.40,0.00,2.40
Resources BK0010,Procurement Sales & Business Services,065501,Business Support - Executive Support,Supplies and Services,304335,Equipment and Materials,04-Jul-2021,000007595945694,AMZNMKTPLACE AMAZON.CO,5999,ICT supplies etc,18.39,3.07,15.32
"Regeneration, Economy and Growth",Culture Sport and Tourism,054990,Cultural Services Management,Supplies and Services,304259,Equipment and Materials,04-Jul-2021,000007614525206,AMZNMKTPLACE AMAZON.CO,5999,Equipment-purchase and rental,147.62,24.64,122.98
Children and Young Peoples Services,Head of Education and Skills,071732,Dean Bank Childcare,Supplies and Services,304403,Equipment and Materials,04-Jul-2021,000007614525924,AMZNMKTPLACE AMAZON.CO,5999,Other consumables,100.08,0.00,100.08
Neighbourhoods and Climate Change,Environmental Services,011060,C&G - Hardwick Park Catering,Supplies and Services,324117,Provisions E324,04-Jul-2021,000007614526218,BATLEYS PERTH,5300,Catering costs - provisions,9.24,1.54,7.70
Neighbourhoods and Climate Change,Environmental Services,011060,C&G - Hardwick Park Catering,Supplies and Services,324117,Provisions E324,04-Jul-2021,000007614526218 - 1,BATLEYS PERTH,5300,Catering costs - provisions,96.96,,96.96
Adult and Health Services,Head of Adults,055643,Hawthorn House LD Respite Unit,Supplies and Services,324117,Provisions E324,04-Jul-2021,000007614527018,BATLEYS PERTH,5300,Catering costs - provisions,26.40,4.40,22.00
Adult and Health Services,Head of Adults,055643,Hawthorn House LD Respite Unit,Supplies and Services,324117,Provisions E324,04-Jul-2021,000007614527018 - 1,BATLEYS PERTH,5300,Catering costs - provisions,83.59,,83.59
Adult and Health Services,Head of Adults,055643,Hawthorn House LD Respite Unit,Supplies and Services,324117,Provisions E324,04-Jul-2021,000007614527040,BATLEYS PERTH,5300,Catering costs - provisions,22.99,0.00,22.99
"Regeneration, Economy and Growth",Culture Sport and Tourism,054990,Cultural Services Management,Supplies and Services,304259,Equipment and Materials,05-Jul-2021,000007595943418,AMZNMktplace,5999,Equipment-purchase and rental,128.70,21.45,107.25
"Regeneration, Economy and Growth",Culture Sport and Tourism,054990,Cultural Services Management,Supplies and Services,304259,Equipment and Materials,05-Jul-2021,000007595943418 - 1,AMZNMktplace,5999,Equipment-purchase and rental,0.15,,0.15
Children and Young Peoples Services,Head of Education and Skills,078100,Curric and Professional Development 078100,Supplies and Services,384999,Miscellaneous Expenses,05-Jul-2021,000007595945046,AMZ Amazon.co.uk,5969,Other expenses,-0.01,0.00,-0.01
Children and Young Peoples Services,Head of Childrens Social Care,085633,Families First Chester-Le-Street,Supplies and Services,364340,Grants to Voluntary Organisations,05-Jul-2021,000007614524898,WWW.GONORTHEAST.CO.UK,4111,Contact expenses,25.00,0.00,25.00
Children and Young Peoples Services,Head of Education and Skills,071801,Selby Cottage Childcare Centre,Supplies and Services,304403,Equipment and Materials,05-Jul-2021,000007614524932,AMZNMktplace,5999,Other consumables,19.99,3.33,16.66
Children and Young Peoples Services,Head of Education and Skills,071801,Selby Cottage Childcare Centre,Supplies and Services,324117,Provisions E324,05-Jul-2021,000007614524948,ASDA GROCERIES ONLINE,5411,Catering costs - provisions,53.14,0.00,53.14
Children and Young Peoples Services,Head of Education and Skills,071801,Selby Cottage Childcare Centre,Supplies and Services,304403,Equipment and Materials,05-Jul-2021,000007614524964,AMZNMktplace,5999,Other consumables,39.96,6.68,33.28
Children and Young Peoples Services,Head of Education and Skills,071801,Selby Cottage Childcare Centre,Supplies and Services,324117,Provisions E324,05-Jul-2021,000007614524972,ASDA GROCERIES ONLINE,5411,Catering costs - provisions,-3.40,0.00,-3.40
"Regeneration, Economy and Growth",Development and Housing,031500,Housing Solutions - Core,Supplies and Services,344033,Telephones,05-Jul-2021,000007614524986,WWW.MTRGROUP.CO.UK,4812,Telephones general-all costs,10.20,0.00,10.20
Resources BK0010,Digital and Customer Services,065219,Covid-Reinstatement of Services,Supplies and Services,304403,Equipment and Materials,05-Jul-2021,000007614524990,AMZNMKTPLACE AMAZON.CO,5999,Other consumables,11.78,1.96,9.82
"Regeneration, Economy and Growth",Development and Housing,030771,Durham Advance Flexible Fund,Supplies and Services,304403,Equipment and Materials,05-Jul-2021,000007614525040,AMZ Auto Finesse Ltd,5999,Other consumables,-27.95,-4.66,-23.29
Children and Young Peoples Services,Head of Education and Skills,075021,DurhamWorks Progression and Learning,Supplies and Services,364301,Grants to Voluntary Organisations,05-Jul-2021,000007614525062,POST OFFICE COUNTER,9402,Hardship,190.00,0.00,190.00
Children and Young Peoples Services,Head of Education and Skills,075021,DurhamWorks Progression and Learning,Supplies and Services,364301,Grants to Voluntary Organisations,05-Jul-2021,000007614525072,WWW.DURHAM.GOV.UK,9399,Hardship,11.00,0.00,11.00
"Regeneration, Economy and Growth",Culture Sport and Tourism,054990,Cultural Services Management,Supplies and Services,304259,Equipment and Materials,05-Jul-2021,000007614525178,AMZNMKTPLACE AMAZON.CO,5999,Equipment-purchase and rental,6.49,0.00,6.49
"Regeneration, Economy and Growth",Culture Sport and Tourism,054990,Cultural Services Management,Supplies and Services,304259,Equipment and Materials,05-Jul-2021,000007614525194,AMZNMKTPLACE AMAZON.CO,5999,Equipment-purchase and rental,6.49,0.00,6.49
Children and Young Peoples Services,Head of Education and Skills,071903,Early Years Sustainability,Supplies and Services,304999,Equipment and Materials,05-Jul-2021,000007614525330,Adobe.com,5817,Misc equipment tools and materials,23.99,0.00,23.99
"Regeneration, Economy and Growth",Development and Housing,030544,Rural Employability - Client Engagement,Supplies and Services,304259,Equipment and Materials,05-Jul-2021,000007614525618,GEN REGISTER OFFICE,9399,Equipment-purchase and rental,14.00,0.00,14.00
Children and Young Peoples Services,Head of Early Help Inclusion & Vulnerable Children.,085952,Secure Education,Supplies and Services,384999,Miscellaneous Expenses,05-Jul-2021,000007614525668,Amazon.co.uk 201CJ10A4,5969,Other expenses,10.44,0.00,10.44
Children and Young Peoples Services,Head of Early Help Inclusion & Vulnerable Children.,085954,Walworth,Supplies and Services,304403,Equipment and Materials,05-Jul-2021,000007614525670,AMZNMktplace,5999,Other consumables,23.98,4.00,19.98
Children and Young Peoples Services,Head of Early Help Inclusion & Vulnerable Children.,085962,Aycliffe Secure - Durham,Supplies and Services,304403,Equipment and Materials,05-Jul-2021,000007614525684,AMZNMktplace,5999,Other consumables,26.81,0.00,26.81
Children and Young Peoples Services,Head of Early Help Inclusion & Vulnerable Children.,085952,Secure Education,Supplies and Services,384999,Miscellaneous Expenses,05-Jul-2021,000007614525696,Amazon.co.uk 2023700A4,5969,Other expenses,17.58,0.00,17.58
Children and Young Peoples Services,Head of Early Help Inclusion & Vulnerable Children.,085952,Secure Education,Supplies and Services,384999,Miscellaneous Expenses,05-Jul-2021,000007614525702,Amazon.co.uk 206JC20M4,5969,Other expenses,45.15,0.00,45.15
"Regeneration, Economy and Growth",Development and Housing,030772,CLLD South,Supplies and Services,304259,Equipment and Materials,05-Jul-2021,000007614525808,WWW.DURHAM.GOV.UK,9399,Equipment-purchase and rental,54.00,0.00,54.00
Children and Young Peoples Services,Head of Early Help Inclusion & Vulnerable Children.,073998,TTF-Co-ordinator Grant,Supplies and Services,324117,Provisions E324,05-Jul-2021,000007614525860,WILKO.COM,5399,Catering costs - provisions,111.00,18.50,92.50
Children and Young Peoples Services,Head of Early Help Inclusion & Vulnerable Children.,073998,TTF-Co-ordinator Grant,Supplies and Services,324117,Provisions E324,05-Jul-2021,000007614525864,ASDA GEORGE COM LEEDS,5411,Catering costs - provisions,2.94,0.49,2.45
Children and Young Peoples Services,Head of Early Help Inclusion & Vulnerable Children.,073998,TTF-Co-ordinator Grant,Supplies and Services,324117,Provisions E324,05-Jul-2021,000007614525864 - 1,ASDA GEORGE COM LEEDS,5411,Catering costs - provisions,36.01,,36.01
Children and Young Peoples Services,Head of Childrens Social Care,085358,Orchard House Sacriston Solo Home,Supplies and Services,332047,Printing Stationery and Gen Off Exps,05-Jul-2021,000007614525872,VIKING UK,5111,Stationery,128.23,0.00,128.23
Children and Young Peoples Services,Head of Education and Skills,071732,Dean Bank Childcare,Supplies and Services,304403,Equipment and Materials,05-Jul-2021,000007614525940,AMZNMktplace,5999,Other consumables,27.47,0.00,27.47
Children and Young Peoples Services,Head of Education and Skills,071732,Dean Bank Childcare,Supplies and Services,384999,Miscellaneous Expenses,05-Jul-2021,000007614525944,BAKER ROSS,5970,Other expenses,260.70,0.00,260.70
Children and Young Peoples Services,Head of Education and Skills,071732,Dean Bank Childcare,Supplies and Services,324117,Provisions E324,05-Jul-2021,000007614525946,CO-OP GROUP 010503,5411,Catering costs - provisions,11.45,0.00,11.45
Children and Young Peoples Services,Head of Education and Skills,071732,Dean Bank Childcare,Supplies and Services,324117,Provisions E324,05-Jul-2021,000007614525952,Wm Morrisons Store Pic,5411,Catering costs - provisions,67.30,0.00,67.30
Children and Young Peoples Services,Head of Childrens Social Care,085334,West Rainton Satelite Home,Supplies and Services,304403,Equipment and Materials,05-Jul-2021,000007614525970,AMZNMktplace,5999,Other consumables,139.12,0.00,139.12
"Regeneration, Economy and Growth",Development and Housing,031500,Housing Solutions - Core,Supplies and Services,352001,Conference Expenses,05-Jul-2021,000007614525990,TOAST LETTINGS,7011,Conferencesseminars fees etc,490.00,0.00,490.00
"Regeneration, Economy and Growth",Development and Housing,031500,Housing Solutions - Core,Supplies and Services,352001,Conference Expenses,05-Jul-2021,000007614525996,TOAST LETTINGS,7011,Conferencesseminars fees etc,490.00,0.00,490.00
"Regeneration, Economy and Growth",Development and Housing,031500,Housing Solutions - Core,Supplies and Services,352001,Conference Expenses,05-Jul-2021,000007614526002,TOAST LETTINGS,7011,Conferencesseminars fees etc,500.00,0.00,500.00
"Regeneration, Economy and Growth",Development and Housing,031500,Housing Solutions - Core,Supplies and Services,352001,Conference Expenses,05-Jul-2021,000007614526006,TOAST LETTINGS,7011,Conferencesseminars fees etc,500.00,0.00,500.00
"Regeneration, Economy and Growth",Development and Housing,031500,Housing Solutions - Core,Supplies and Services,352001,Conference Expenses,05-Jul-2021,000007614526012,TOAST LETTINGS,7011,Conferencesseminars fees etc,500.00,0.00,500.00
"Regeneration, Economy and Growth",Development and Housing,031500,Housing Solutions - Core,Supplies and Services,352001,Conference Expenses,05-Jul-2021,000007614526016,TOAST LETTINGS,7011,Conferencesseminars fees etc,300.00,0.00,300.00
"Regeneration, Economy and Growth",Development and Housing,031500,Housing Solutions - Core,Supplies and Services,352001,Conference Expenses,05-Jul-2021,000007614526028,TOAST LETTINGS,7011,Conferencesseminars fees etc,450.00,0.00,450.00
"Regeneration, Economy and Growth",Development and Housing,031500,Housing Solutions - Core,Supplies and Services,352001,Conference Expenses,05-Jul-2021,000007614526042,TOAST LETTINGS,7011,Conferencesseminars fees etc,300.00,0.00,300.00
"Regeneration, Economy and Growth",Development and Housing,031500,Housing Solutions - Core,Supplies and Services,352001,Conference Expenses,05-Jul-2021,000007614526054,TOAST LETTINGS,7011,Conferencesseminars fees etc,500.00,0.00,500.00
"Regeneration, Economy and Growth",Development and Housing,031500,Housing Solutions - Core,Supplies and Services,352001,Conference Expenses,05-Jul-2021,000007614526056,TOAST LETTINGS,7011,Conferencesseminars fees etc,500.00,0.00,500.00
"Regeneration, Economy and Growth",Development and Housing,031500,Housing Solutions - Core,Supplies and Services,352001,Conference Expenses,05-Jul-2021,000007614526060,TOAST LETTINGS,7011,Conferencesseminars fees etc,500.00,0.00,500.00
"Regeneration, Economy and Growth",Development and Housing,031500,Housing Solutions - Core,Supplies and Services,352001,Conference Expenses,05-Jul-2021,000007614526066,TOAST LETTINGS,7011,Conferencesseminars fees etc,500.00,0.00,500.00
Children and Young Peoples Services,Head of Childrens Social Care,085332,Middlestone Moor CU,Supplies and Services,324117,Provisions E324,05-Jul-2021,000007614526076,WM MORRISONS STORE,5411,Catering costs - provisions,3.03,0.00,3.03
Children and Young Peoples Services,Head of Early Help Inclusion & Vulnerable Children.,085962,Aycliffe Secure - Durham,Supplies and Services,304403,Equipment and Materials,05-Jul-2021,000007614526084,AMZNMktplace,5999,Other consumables,55.99,0.00,55.99
"Regeneration, Economy and Growth",Development and Housing,030771,Durham Advance Flexible Fund,Supplies and Services,304403,Equipment and Materials,05-Jul-2021,000007614526144,AMZNMKTPLACE AMAZON.CO,5999,Other consumables,64.52,0.00,64.52
Neighbourhoods and Climate Change,Environmental Services,031228,North Pennines - Fellfoot Forward,Supplies and Services,348037,Subsistence E348,05-Jul-2021,000007614526200,BOAT HOUSE TEA ROO,5812,Subsistence,5.25,0.00,5.25
Neighbourhoods and Climate Change,Environmental Services,031228,North Pennines - Fellfoot Forward,Supplies and Services,324117,Provisions E324,05-Jul-2021,000007614526206,TESCO STORES 5184,5411,Catering costs - provisions,10.30,0.00,10.30
Neighbourhoods and Climate Change,Environmental Services,011060,C&G - Hardwick Park Catering,Supplies and Services,324117,Provisions E324,05-Jul-2021,000007614526226,FREEMAN CATERING BUTCH,5422,Catering costs - provisions,145.28,0.00,145.28
Neighbourhoods and Climate Change,Environmental Services,011060,C&G - Hardwick Park Catering,Supplies and Services,324117,Provisions E324,05-Jul-2021,000007614526234,FREEMAN CATERING BUTCH,5422,Catering costs - provisions,47.14,0.00,47.14
Neighbourhoods and Climate Change,Environmental Services,011060,C&G - Hardwick Park Catering,Supplies and Services,324117,Provisions E324,05-Jul-2021,000007614526238,JR HOLLAND FOODSERVICE,5499,Catering costs - provisions,14.54,0.00,14.54
Resources BK0010,People & Talent Management,010984,Training and Development,Employees,040149,Recruitment Instruction and Training,05-Jul-2021,000007614526286,SP RLSS UK ENT PACKS,8299,Training-all costs,291.00,0.00,291.00
Neighbourhoods and Climate Change,Environmental Services,031238,North Pennines - Tees Swale,Supplies and Services,384999,Miscellaneous Expenses,05-Jul-2021,000007614526316,Amazon.co.uk 202BV90W4,5969,Other expenses,50.83,8.47,42.36
Children and Young Peoples Services,Head of Early Help Inclusion & Vulnerable Children.,088109,Spennymoor & Shildon 0-19 Community Family Hub,Supplies and Services,384302,Miscellaneous Expenses,05-Jul-2021,000007614526368,ASDA GEORGE COM LEEDS,5411,Activity expenses,38.50,0.00,38.50
Children and Young Peoples Services,Head of Early Help Inclusion & Vulnerable Children.,088106,Ferryhill & N.Aycliffe 0-19 Targeted Family Support,Supplies and Services,364301,Grants to Voluntary Organisations,05-Jul-2021,000007614526370,ARGOS LTD,5310,Hardship,23.95,0.00,23.95
Children and Young Peoples Services,Head of Early Help Inclusion & Vulnerable Children.,088106,Ferryhill & N.Aycliffe 0-19 Targeted Family Support,Supplies and Services,364301,Grants to Voluntary Organisations,05-Jul-2021,000007614526374,ARGOS LTD,5310,Hardship,179.99,0.00,179.99
Children and Young Peoples Services,Head of Childrens Social Care,085331,New Lea Childrens Home,Supplies and Services,304403,Equipment and Materials,05-Jul-2021,000007614526392,AMZNMktplace,5999,Other consumables,79.99,0.00,79.99
Children and Young Peoples Services,Head of Childrens Social Care,085331,New Lea Childrens Home,Supplies and Services,384302,Miscellaneous Expenses,05-Jul-2021,000007614526398,"SPACE GOLF,NEWCASTLE",7992,Activity expenses,47.50,0.00,47.50
Children and Young Peoples Services,Head of Childrens Social Care,085331,New Lea Childrens Home,Supplies and Services,384302,Miscellaneous Expenses,05-Jul-2021,000007614526404,"SPACE GOLF,NEWCASTLE",7992,Activity expenses,54.95,0.00,54.95
Resources BK0010,Legal & Democratic Services,060131,County Records,Supplies and Services,304221,Equipment and Materials,05-Jul-2021,000007614526496,INVOTECEXTRA,5211,Direct materials,109.98,0.00,109.98
Children and Young Peoples Services,Head of Childrens Social Care,085351,Framwellgate Moor CU,Supplies and Services,324117,Provisions E324,05-Jul-2021,000007614526868,ASDA GROCERIES ONLINE,5411,Catering costs - provisions,81.44,0.00,81.44
Adult and Health Services,Head of Adults,055643,Hawthorn House LD Respite Unit,Supplies and Services,324117,Provisions E324,05-Jul-2021,000007614527044,FREEMAN CATERING BUTCH,5422,Catering costs - provisions,27.37,0.00,27.37
Adult and Health Services,Head of Adults,055643,Hawthorn House LD Respite Unit,Supplies and Services,324117,Provisions E324,05-Jul-2021,000007614527052,FREEMAN CATERING BUTCH,5422,Catering costs - provisions,4.50,0.00,4.50
Adult and Health Services,Head of Adults,055643,Hawthorn House LD Respite Unit,Supplies and Services,324117,Provisions E324,05-Jul-2021,000007614527060,FREEMAN CATERING BUTCH,5422,Catering costs - provisions,46.77,0.00,46.77
Adult and Health Services,Head of Adults,055643,Hawthorn House LD Respite Unit,Supplies and Services,324117,Provisions E324,05-Jul-2021,000007614527070,JR HOLLAND FOODSERVICE,5499,Catering costs - provisions,15.98,0.00,15.98
Children and Young Peoples Services,Head of Childrens Social Care,085334,West Rainton Satelite Home,Supplies and Services,324117,Provisions E324,05-Jul-2021,000007614527092,TESCO STORES 2371,5411,Catering costs - provisions,162.27,0.00,162.27
Children and Young Peoples Services,Head of Childrens Social Care,085334,West Rainton Satelite Home,Supplies and Services,324117,Provisions E324,05-Jul-2021,000007614527100,TESCO STORES 2371,5411,Catering costs - provisions,1.50,0.00,1.50
Children and Young Peoples Services,Head of Education and Skills,078100,Curric and Professional Development 078100,Supplies and Services,384999,Miscellaneous Expenses,05-Jul-2021,000007614527126,Amazon.co.uk 2077F8EK4,5969,Other expenses,14.62,0.00,14.62
Children and Young Peoples Services,Head of Education and Skills,070169,Durham SSP,Supplies and Services,304259,Equipment and Materials,05-Jul-2021,000007614527136,RUNNING IMP INTERNATIO,5941,Equipment-purchase and rental,496.80,0.00,496.80
Resources BK0010,Digital and Customer Services,065335,School Services - Implementations,Supplies and Services,304303,Equipment and Materials,05-Jul-2021,000007614527290,WWW.COMTECDIRECT.CO.UK,5065,Network for resale,131.70,0.00,131.70
"Regeneration, Economy and Growth",Culture Sport and Tourism,054235,Bishop Auckland Town Hall Cafe,Supplies and Services,324117,Provisions E324,05-Jul-2021,000007614527362,JR HOLLAND FOODSERVICE,5499,Catering costs - provisions,232.45,0.00,232.45
"Regeneration, Economy and Growth",Development and Housing,031576,B& B - Temp Accom,Supplies and Services,364320,Grants to Voluntary Organisations,05-Jul-2021,000007614527418,BUDGET H EXPRESS HOTEL,7011,Accommodation assistance,500.00,0.00,500.00
"Regeneration, Economy and Growth",Development and Housing,031576,B& B - Temp Accom,Supplies and Services,364320,Grants to Voluntary Organisations,05-Jul-2021,000007614527430,BUDGET H EXPRESS HOTEL,7011,Accommodation assistance,212.00,0.00,212.00
Children and Young Peoples Services,Head of Early Help Inclusion & Vulnerable Children.,085801,CDYJS - Support,Supplies and Services,332047,Printing Stationery and Gen Off Exps,05-Jul-2021,000007614527444,Vue Entertainment Ltd,7832,Stationery,14.97,0.00,14.97
Children and Young Peoples Services,Head of Early Help Inclusion & Vulnerable Children.,085801,CDYJS - Support,Supplies and Services,332047,Printing Stationery and Gen Off Exps,05-Jul-2021,000007614527448,Vue Entertainment Ltd,7832,Stationery,9.98,0.00,9.98
Children and Young Peoples Services,Head of Childrens Social Care,085333,Coxhoe Satelite Home,Supplies and Services,324117,Provisions E324,05-Jul-2021,000007614527522,TESCO STORES 2916,5411,Catering costs - provisions,88.74,0.00,88.74
Children and Young Peoples Services,Head of Childrens Social Care,085332,Middlestone Moor CU,Supplies and Services,328041,Clothing uniforms and laundry E328,05-Jul-2021,000007614527840,THE FLOWER SHOP,5992,Clothing uniforms and laundry,40.00,0.00,40.00
Children and Young Peoples Services,Head of Childrens Social Care,085332,Middlestone Moor CU,Transport,215995,Running Costs of Vehicles,05-Jul-2021,000007614527846,ASDA PETROL 5115,5541,Vehicle running expenses,71.22,0.00,71.22
"Regeneration, Economy and Growth",Development and Housing,031500,Housing Solutions - Core,Supplies and Services,352001,Conference Expenses,05-Jul-2021,000007614527924,H52STANLEY,7011,Conferencesseminars fees etc,264.00,0.00,264.00
"Regeneration, Economy and Growth",Development and Housing,031500,Housing Solutions - Core,Supplies and Services,352001,Conference Expenses,05-Jul-2021,000007614527936,H52STANLEY,7011,Conferencesseminars fees etc,164.00,0.00,164.00
"Regeneration, Economy and Growth",Culture Sport and Tourism,054233,Bishop Auckland Town Hall Library,Supplies and Services,324117,Provisions E324,05-Jul-2021,000007614527954,WILKO RETAIL LIMITED,5399,Catering costs - provisions,5.40,0.00,5.40
"Regeneration, Economy and Growth",Culture Sport and Tourism,054233,Bishop Auckland Town Hall Library,Supplies and Services,324117,Provisions E324,05-Jul-2021,000007614527962,HERON FOODS,5411,Catering costs - provisions,5.54,0.00,5.54
Resources BK0010,Transformation Planning & Performance,060230,Transformation,Supplies and Services,352001,Conference Expenses,05-Jul-2021,000007614528134,NURTURE DEVELOPMENT,8299,Conferencesseminars fees etc,198.23,0.00,198.23
"Regeneration, Economy and Growth",Development and Housing,031576,B& B - Temp Accom,Supplies and Services,364320,Grants to Voluntary Organisations,05-Jul-2021,000007614528158,H52STANLEY,7011,Accommodation assistance,70.00,0.00,70.00
"Regeneration, Economy and Growth",Development and Housing,031576,B& B - Temp Accom,Supplies and Services,364320,Grants to Voluntary Organisations,05-Jul-2021,000007614528166,Rustica,5812,Accommodation assistance,15.90,0.00,15.90
Neighbourhoods and Climate Change,Environmental Services,010383,C&G - South Street Cleansing,Supplies and Services,324117,Provisions E324,05-Jul-2021,000007614528232,B&M 681 - DURHAM,5399,Catering costs - provisions,154.91,0.00,154.91
Neighbourhoods and Climate Change,Environmental Services,010383,C&G - South Street Cleansing,Supplies and Services,308011,Furniture,05-Jul-2021,000007614528236,DUNELM LTD,5714,Furniture repair and replacement,131.50,0.00,131.50
Resources BK0010,Digital and Customer Services,065219,Covid-Reinstatement of Services,Supplies and Services,304403,Equipment and Materials,05-Jul-2021,000007617350554,AMZNMKTPLACE AMAZON.CO,5999,Other consumables,35.00,5.83,29.17
Resources BK0010,Digital and Customer Services,065219,Covid-Reinstatement of Services,Supplies and Services,304403,Equipment and Materials,05-Jul-2021,000007617350558,AMZNMKTPLACE AMAZON.CO,5999,Other consumables,35.00,5.83,29.17
Resources BK0010,Digital and Customer Services,065219,Covid-Reinstatement of Services,Supplies and Services,304403,Equipment and Materials,05-Jul-2021,000007617350564,AMZNMKTPLACE AMAZON.CO,5999,Other consumables,35.00,5.83,29.17
Adult and Health Services,Head of Adults,052750,Learning Disability Management,Supplies and Services,364320,Grants to Voluntary Organisations,05-Jul-2021,000007617350792,THE KINGSLODGE INN,7011,Accommodation assistance,586.90,0.00,586.90
Neighbourhoods and Climate Change,Environmental Services,031238,North Pennines - Tees Swale,Supplies and Services,304403,Equipment and Materials,05-Jul-2021,000007617351220,AMZNMKTPLACE AMAZON.CO,5999,Other consumables,20.82,3.47,17.35
Neighbourhoods and Climate Change,Environmental Services,031238,North Pennines - Tees Swale,Supplies and Services,304403,Equipment and Materials,05-Jul-2021,000007617351224,AMZNMKTPLACE AMAZON.CO,5999,Other consumables,3.99,0.67,3.32
"Regeneration, Economy and Growth",Transport and Contracted Services,031701,Care Connect All Localities,Supplies and Services,304259,Equipment and Materials,05-Jul-2021,000007617351576,AMZNMKTPLACE AMAZON.CO,5999,Equipment-purchase and rental,77.98,13.00,64.98
Adult and Health Services,Head of Adults,052750,Learning Disability Management,Supplies and Services,352001,Conference Expenses,05-Jul-2021,000007617351952,PREMIER INN,3811,Conferencesseminars fees etc,"1,638.86",0.00,1638.86
"Regeneration, Economy and Growth",Culture Sport and Tourism,054812,Gala Theatre - Catering etc,Supplies and Services,324117,Provisions E324,05-Jul-2021,7614525634,FREEMAN CATERING BUTCH,5422,Catering costs - provisions,23.99,0.00,23.99
"Regeneration, Economy and Growth",Culture Sport and Tourism,054812,Gala Theatre - Catering etc,Premises,145009,Cleaning and Domestic Supplies,05-Jul-2021,7614525636,ALLIANCE DISPOSABLES L,2842,Other cleaning and domestic costs,-8.83,-1.47,-7.36
"Regeneration, Economy and Growth",Corporate Property and Land,030691,Catering - Durham Dales Centre,Supplies and Services,324117,Provisions E324,05-Jul-2021,7614526954,FREEMAN CATERING BUTCH,5422,Catering costs - provisions,62.09,0.00,62.09
"Regeneration, Economy and Growth",Corporate Property and Land,021235,Catering - Wharton Park,Supplies and Services,324117,Provisions E324,05-Jul-2021,7614528206,JR HOLLAND FOODSERVICE,5499,Catering costs - provisions,26.08,0.00,26.08
"Regeneration, Economy and Growth",Culture Sport and Tourism,054812,Gala Theatre - Catering etc,Supplies and Services,324117,Provisions E324,05-Jul-2021,7617350830,BATLEYS PERTH,5300,Catering costs - provisions,18.66,3.11,15.55
"Regeneration, Economy and Growth",Culture Sport and Tourism,054812,Gala Theatre - Catering etc,Supplies and Services,324117,Provisions E324,05-Jul-2021,7617350830 - 1,BATLEYS PERTH,5300,Catering costs - provisions,32.53,,32.53
"Regeneration, Economy and Growth",Corporate Property and Land,030691,Catering - Durham Dales Centre,Supplies and Services,324117,Provisions E324,05-Jul-2021,7617351420,BATLEYS PERTH,5300,Catering costs - provisions,53.28,8.88,44.40
"Regeneration, Economy and Growth",Corporate Property and Land,030691,Catering - Durham Dales Centre,Supplies and Services,324117,Provisions E324,05-Jul-2021,7617351420 - 1,BATLEYS PERTH,5300,Catering costs - provisions,66.47,,66.47
Children and Young Peoples Services,Head of Education and Skills,071801,Selby Cottage Childcare Centre,Supplies and Services,304403,Equipment and Materials,06-Jul-2021,000007614524968,AMZNMktplace,5999,Other consumables,29.96,5.00,24.96
Neighbourhoods and Climate Change,Environmental Services,031238,North Pennines - Tees Swale,Supplies and Services,304403,Equipment and Materials,06-Jul-2021,000007614526324,AMZNMktplace,5999,Other consumables,14.94,2.49,12.45
Neighbourhoods and Climate Change,Environmental Services,031238,North Pennines - Tees Swale,Supplies and Services,304403,Equipment and Materials,06-Jul-2021,000007614526324 - 1,AMZNMktplace,5999,Other consumables,0.03,,0.03
Resources BK0010,Transformation Planning & Performance,060230,Transformation,Supplies and Services,352001,Conference Expenses,06-Jul-2021,000007614528152,NURTURE DEVELOPMENT,8299,Conferencesseminars fees etc,5.45,0.00,5.45
"Regeneration, Economy and Growth",Business Durham CL0850,030689,Inward Investment and Aftercare,Supplies and Services,342033,Computers and Communications,06-Jul-2021,000007617350518,STK Shutterstock,7333,Computer hardware,19.00,0.00,19.00
Children and Young Peoples Services,Head of Education and Skills,071801,Selby Cottage Childcare Centre,Supplies and Services,324117,Provisions E324,06-Jul-2021,000007617350524,ANGEL SPRINGS LTD,5811,Catering costs - provisions,21.60,0.00,21.60
Children and Young Peoples Services,Head of Education and Skills,071801,Selby Cottage Childcare Centre,Supplies and Services,304403,Equipment and Materials,06-Jul-2021,000007617350532,AMZNMktplace,5999,Other consumables,34.95,5.83,29.12
Children and Young Peoples Services,Head of Education and Skills,071801,Selby Cottage Childcare Centre,Supplies and Services,328041,Clothing uniforms and laundry E328,06-Jul-2021,000007617350536,Etsy.com - BrightEars,5699,Clothing uniforms and laundry,76.96,0.00,76.96
Children and Young Peoples Services,Head of Education and Skills,071801,Selby Cottage Childcare Centre,Supplies and Services,324117,Provisions E324,06-Jul-2021,000007617350538,TESCO STORES 2278,5411,Catering costs - provisions,16.97,0.00,16.97
Resources BK0010,Digital and Customer Services,065236,Operations - Desktop Services,Supplies and Services,304403,Equipment and Materials,06-Jul-2021,000007617350552,AMZNMktplace,5999,Other consumables,47.90,7.98,39.92
Resources BK0010,Digital and Customer Services,065219,Covid-Reinstatement of Services,Supplies and Services,304403,Equipment and Materials,06-Jul-2021,000007617350568,AMZNMKTPLACE AMAZON.CO,5999,Other consumables,11.74,1.96,9.78
Neighbourhoods and Climate Change,Partnerships & Community Engagement Div.,060460,Partnerships and Consultation Team,Employees,040149,Recruitment Instruction and Training,06-Jul-2021,000007617350570,BITEABLE LLC,7829,Training-all costs,425.57,0.00,425.57
Children and Young Peoples Services,Head of Childrens Social Care,085561,Social Work Academy,Supplies and Services,384999,Miscellaneous Expenses,06-Jul-2021,000007617350572,Amazon.co.uk 6E47E3FO5,5969,Other expenses,61.00,0.00,61.00
Adult and Health Services,Public Health CC0450,057125,Mental Health at Scale,Supplies and Services,344033,Telephones,06-Jul-2021,000007617350576,ZOOM.US 888-799-9666,4814,Telephones general-all costs,119.90,0.00,119.90
Resources BK0010,Digital and Customer Services,065256,Nodes/Circuits,Supplies and Services,304221,Equipment and Materials,06-Jul-2021,000007617350578,SCREWFIX DIRECT,5211,Direct materials,219.95,0.00,219.95
Children and Young Peoples Services,Head of Childrens Social Care,085501,Child Care Cases Legal Expenses,Supplies and Services,304403,Equipment and Materials,06-Jul-2021,000007617350608,CITY OF NEWCASTLE INTE,9399,Other consumables,11.00,0.00,11.00
"Regeneration, Economy and Growth",Development and Housing,030773,CLLD North,Supplies and Services,304259,Equipment and Materials,06-Jul-2021,000007617350622,GEN REGISTER OFFICE,9399,Equipment-purchase and rental,14.00,0.00,14.00
Children and Young Peoples Services,Head of Education and Skills,075021,DurhamWorks Progression and Learning,Supplies and Services,364301,Grants to Voluntary Organisations,06-Jul-2021,000007617350626,AMZNMKTPLACE AMAZON.CO,5999,Hardship,40.90,6.82,34.08
Children and Young Peoples Services,Head of Education and Skills,075021,DurhamWorks Progression and Learning,Supplies and Services,364301,Grants to Voluntary Organisations,06-Jul-2021,000007617350628,WWW.GONORTHEAST.CO.UK,4111,Hardship,4.50,0.00,4.50
Children and Young Peoples Services,Head of Education and Skills,075021,DurhamWorks Progression and Learning,Supplies and Services,364301,Grants to Voluntary Organisations,06-Jul-2021,000007617350632,WWW.GONORTHEAST.CO.UK,4111,Hardship,4.50,0.00,4.50
Children and Young Peoples Services,Head of Education and Skills,075021,DurhamWorks Progression and Learning,Supplies and Services,364301,Grants to Voluntary Organisations,06-Jul-2021,000007617350638,WWW.GONORTHEAST.CO.UK,4111,Hardship,4.50,0.00,4.50
Children and Young Peoples Services,Head of Education and Skills,075021,DurhamWorks Progression and Learning,Supplies and Services,384999,Miscellaneous Expenses,06-Jul-2021,000007617350640,Amazon.co.uk XM4N67WC5,5969,Other expenses,14.95,2.49,12.46
"Regeneration, Economy and Growth",Culture Sport and Tourism,054798,dli Museum - WW1 Education Programme,Supplies and Services,304259,Equipment and Materials,06-Jul-2021,000007617350674,eBay O 22-07300-45302,5311,Equipment-purchase and rental,18.00,0.00,18.00
Children and Young Peoples Services,Head of Childrens Social Care,085332,Middlestone Moor CU,Supplies and Services,324117,Provisions E324,06-Jul-2021,000007617350698,TESCO STORES 2371,5411,Catering costs - provisions,170.30,0.00,170.30
"Regeneration, Economy and Growth",Culture Sport and Tourism,011265,Empire Theatre (Operations),Supplies and Services,324117,Provisions E324,06-Jul-2021,000007617350770,JR HOLLAND FOODSERVICE,5499,Catering costs - provisions,16.59,0.00,16.59
Children and Young Peoples Services,Head of Childrens Social Care,085331,New Lea Childrens Home,Supplies and Services,324117,Provisions E324,06-Jul-2021,000007617350778,ASDA SUPERSTORE,5411,Catering costs - provisions,10.00,0.00,10.00
"Regeneration, Economy and Growth",Development and Housing,031576,B& B - Temp Accom,Supplies and Services,364320,Grants to Voluntary Organisations,06-Jul-2021,000007617350840,BUDGET H EXPRESS HOTEL,7011,Accommodation assistance,25.44,4.24,21.20
"Regeneration, Economy and Growth",Development and Housing,031576,B& B - Temp Accom,Supplies and Services,364320,Grants to Voluntary Organisations,06-Jul-2021,000007617350840 - 1,BUDGET H EXPRESS HOTEL,7011,Accommodation assistance,63.56,,63.56
Children and Young Peoples Services,Head of Early Help Inclusion & Vulnerable Children.,085954,Walworth,Supplies and Services,304403,Equipment and Materials,06-Jul-2021,000007617350846,AMZNMktplace,5999,Other consumables,14.99,2.50,12.49
Children and Young Peoples Services,Head of Early Help Inclusion & Vulnerable Children.,085952,Secure Education,Supplies and Services,304403,Equipment and Materials,06-Jul-2021,000007617350850,AMZNMKTPLACE AMAZON.CO,5999,Other consumables,15.55,0.00,15.55
Children and Young Peoples Services,Head of Early Help Inclusion & Vulnerable Children.,085952,Secure Education,Supplies and Services,384999,Miscellaneous Expenses,06-Jul-2021,000007617350854,Amazon.co.uk IE5IR9D75,5969,Other expenses,63.69,10.67,53.02
Children and Young Peoples Services,Head of Early Help Inclusion & Vulnerable Children.,085952,Secure Education,Supplies and Services,384999,Miscellaneous Expenses,06-Jul-2021,000007617350856,Amazon.co.uk MY6N15YU5,5969,Other expenses,27.72,4.62,23.10
Children and Young Peoples Services,Head of Early Help Inclusion & Vulnerable Children.,085952,Secure Education,Supplies and Services,384999,Miscellaneous Expenses,06-Jul-2021,000007617350856 - 1,Amazon.co.uk MY6N15YU5,5969,Other expenses,34.44,,34.44
Children and Young Peoples Services,Head of Early Help Inclusion & Vulnerable Children.,085952,Secure Education,Supplies and Services,384999,Miscellaneous Expenses,06-Jul-2021,000007617350860,Amazon.co.uk 6D1GU78N5,5969,Other expenses,63.69,10.67,53.02
Children and Young Peoples Services,Head of Early Help Inclusion & Vulnerable Children.,085954,Walworth,Supplies and Services,304403,Equipment and Materials,06-Jul-2021,000007617350864,AMZNMktplace,5999,Other consumables,19.20,3.21,15.99
Children and Young Peoples Services,Head of Early Help Inclusion & Vulnerable Children.,085952,Secure Education,Supplies and Services,304403,Equipment and Materials,06-Jul-2021,000007617350866,AMZNMktplace,5999,Other consumables,31.98,5.34,26.64
Children and Young Peoples Services,Head of Early Help Inclusion & Vulnerable Children.,085957,Secure Management,Supplies and Services,304403,Equipment and Materials,06-Jul-2021,000007617350870,AMZNMktplace,5999,Other consumables,43.90,7.32,36.58
Children and Young Peoples Services,Head of Early Help Inclusion & Vulnerable Children.,085954,Walworth,Supplies and Services,304403,Equipment and Materials,06-Jul-2021,000007617350872,AMZNMktplace,5999,Other consumables,65.98,11.00,54.98
Children and Young Peoples Services,Head of Early Help Inclusion & Vulnerable Children.,085954,Walworth,Supplies and Services,304403,Equipment and Materials,06-Jul-2021,000007617350876,AMZNMktplace,5999,Other consumables,4.99,0.83,4.16
Children and Young Peoples Services,Head of Early Help Inclusion & Vulnerable Children.,085952,Secure Education,Supplies and Services,304403,Equipment and Materials,06-Jul-2021,000007617350878,AMZNMKTPLACE AMAZON.CO,5999,Other consumables,3.47,0.00,3.47
Children and Young Peoples Services,Head of Early Help Inclusion & Vulnerable Children.,085952,Secure Education,Supplies and Services,384999,Miscellaneous Expenses,06-Jul-2021,000007617350884,Amazon.co.uk 9P3BM4HY5,5969,Other expenses,5.79,0.97,4.82
Children and Young Peoples Services,Head of Early Help Inclusion & Vulnerable Children.,085954,Walworth,Supplies and Services,304403,Equipment and Materials,06-Jul-2021,000007617350888,AMZNMktplace,5999,Other consumables,12.45,2.10,10.35
Children and Young Peoples Services,Head of Early Help Inclusion & Vulnerable Children.,085954,Walworth,Supplies and Services,304403,Equipment and Materials,06-Jul-2021,000007617350890,AMZNMktplace,5999,Other consumables,54.07,9.03,45.04
"Regeneration, Economy and Growth",Development and Housing,030772,CLLD South,Supplies and Services,304221,Equipment and Materials,06-Jul-2021,000007617350914,MY PAINTBRUSH LTD,5198,Direct materials,34.94,5.82,29.12
Neighbourhoods and Climate Change,Environmental Services,010367,C&G - South Grounds Maintenance,Supplies and Services,304999,Equipment and Materials,06-Jul-2021,000007617350964,PRIMETOOLS,5251,Misc equipment tools and materials,143.64,0.00,143.64
Children and Young Peoples Services,Head of Education and Skills,071732,Dean Bank Childcare,Supplies and Services,304403,Equipment and Materials,06-Jul-2021,000007617351022,AMZNMKTPLACE AMAZON.CO,5999,Other consumables,12.28,0.00,12.28
Children and Young Peoples Services,Head of Education and Skills,071732,Dean Bank Childcare,Supplies and Services,304403,Equipment and Materials,06-Jul-2021,000007617351024,AMZNMktplace,5999,Other consumables,2.18,0.36,1.82
Children and Young Peoples Services,Head of Education and Skills,071732,Dean Bank Childcare,Supplies and Services,304403,Equipment and Materials,06-Jul-2021,000007617351028,AMZNMktplace,5999,Other consumables,12.15,0.00,12.15
Children and Young Peoples Services,Head of Education and Skills,071732,Dean Bank Childcare,Supplies and Services,304403,Equipment and Materials,06-Jul-2021,000007617351030,AMZNMktplace,5999,Other consumables,6.39,1.07,5.32
Children and Young Peoples Services,Head of Education and Skills,071732,Dean Bank Childcare,Supplies and Services,304403,Equipment and Materials,06-Jul-2021,000007617351032,AMZNMktplace,5999,Other consumables,67.50,11.25,56.25
Children and Young Peoples Services,Head of Education and Skills,071732,Dean Bank Childcare,Supplies and Services,304403,Equipment and Materials,06-Jul-2021,000007617351032 - 1,AMZNMktplace,5999,Other consumables,15.94,,15.94
Children and Young Peoples Services,Head of Education and Skills,071732,Dean Bank Childcare,Supplies and Services,304403,Equipment and Materials,06-Jul-2021,000007617351036,AMZNMktplace,5999,Other consumables,53.95,0.00,53.95
Children and Young Peoples Services,Head of Education and Skills,071732,Dean Bank Childcare,Supplies and Services,304403,Equipment and Materials,06-Jul-2021,000007617351040,AMZNMktplace,5999,Other consumables,8.70,1.45,7.25
Children and Young Peoples Services,Head of Education and Skills,071732,Dean Bank Childcare,Supplies and Services,304403,Equipment and Materials,06-Jul-2021,000007617351040 - 1,AMZNMktplace,5999,Other consumables,15.98,,15.98
Children and Young Peoples Services,Head of Education and Skills,071732,Dean Bank Childcare,Supplies and Services,304403,Equipment and Materials,06-Jul-2021,000007617351044,AMZNMktplace,5999,Other consumables,12.28,0.00,12.28
Children and Young Peoples Services,Head of Education and Skills,071732,Dean Bank Childcare,Supplies and Services,324117,Provisions E324,06-Jul-2021,000007617351046,ASDA GROCERIES ONLINE,5411,Catering costs - provisions,47.88,0.00,47.88
Children and Young Peoples Services,Head of Education and Skills,071732,Dean Bank Childcare,Supplies and Services,324117,Provisions E324,06-Jul-2021,000007617351050,ASDA GROCERIES ONLINE,5411,Catering costs - provisions,-0.10,0.00,-0.10
"Regeneration, Economy and Growth",Culture Sport and Tourism,054813,Gala Theatre - Technical,Supplies and Services,304403,Equipment and Materials,06-Jul-2021,000007617351054,AMZNMktplace,5999,Other consumables,28.98,0.00,28.98
Resources BK0010,Finance & Transactional Services,065190,In House Enforcement Service,Employees,040149,Recruitment Instruction and Training,06-Jul-2021,000007617351076,CICM,8398,Training-all costs,172.00,0.00,172.00
Children and Young Peoples Services,Head of Childrens Social Care,085332,Middlestone Moor CU,Supplies and Services,324117,Provisions E324,06-Jul-2021,000007617351088,Youngs Newsagents Ltd,5411,Catering costs - provisions,2.99,0.00,2.99
Children and Young Peoples Services,Head of Early Help Inclusion & Vulnerable Children.,085962,Aycliffe Secure - Durham,Supplies and Services,304403,Equipment and Materials,06-Jul-2021,000007617351096,AMZNMKTPLACE AMAZON.CO,5999,Other consumables,41.48,0.00,41.48
Children and Young Peoples Services,Head of Early Help Inclusion & Vulnerable Children.,085962,Aycliffe Secure - Durham,Supplies and Services,384999,Miscellaneous Expenses,06-Jul-2021,000007617351102,Amazon.co.uk 996I84LI5,5969,Other expenses,24.99,0.00,24.99
"Regeneration, Economy and Growth",Development and Housing,030735,Economic Development - Employability,Supplies and Services,304999,Equipment and Materials,06-Jul-2021,000007617351122,WWW.COSTCO.CO.UK,7278,Misc equipment tools and materials,15.00,0.00,15.00
"Regeneration, Economy and Growth",Business Durham CL0850,030671,Business Space 030671,Supplies and Services,340001,Postages E340,06-Jul-2021,000007617351132,ROYAL MAIL ONLINE SHOP,9402,Postages,11.10,0.00,11.10
"Regeneration, Economy and Growth",Development and Housing,031623,Rough Sleeping,Transport,235073,Public Transport,06-Jul-2021,000007617351146,GO NORTH EAST LIMITED,4131,Travel-clients/students/children,7.00,0.00,7.00
Adult and Health Services,Head of Adults,055302,Durham Pathways,Supplies and Services,304403,Equipment and Materials,06-Jul-2021,000007617351148,AMZNMktplace,5999,Other consumables,14.13,2.37,11.76
Children and Young Peoples Services,Head of Early Help Inclusion & Vulnerable Children.,085957,Secure Management,Supplies and Services,340001,Postages E340,06-Jul-2021,000007617351164,TSB Returns Ltd,4215,Postages,2.50,0.00,2.50
Children and Young Peoples Services,Head of Early Help Inclusion & Vulnerable Children.,085962,Aycliffe Secure - Durham,Supplies and Services,308011,Furniture,06-Jul-2021,000007617351170,CURRYS ONLINE,5732,Furniture repair and replacement,199.99,0.00,199.99
Children and Young Peoples Services,Head of Early Help Inclusion & Vulnerable Children.,085954,Walworth,Supplies and Services,384302,Miscellaneous Expenses,06-Jul-2021,000007617351174,AMZNMktplace,5999,Activity expenses,49.98,8.34,41.64
Children and Young Peoples Services,Head of Early Help Inclusion & Vulnerable Children.,085954,Walworth,Transfer Payments,515002,Social Services Clients,06-Jul-2021,000007617351178,JD SPORTS INTERNET,5941,Pocket money,70.00,0.00,70.00
Children and Young Peoples Services,Head of Childrens Social Care,085632,Families First Seaham,Supplies and Services,304403,Equipment and Materials,06-Jul-2021,000007617351186,AMZNMktplace,5999,Other consumables,26.48,0.00,26.48
Children and Young Peoples Services,Head of Childrens Social Care,085632,Families First Seaham,Supplies and Services,328041,Clothing uniforms and laundry E328,06-Jul-2021,000007617351190,ARGOS LTD,5310,Clothing uniforms and laundry,-50.00,0.00,-50.00
Resources BK0010,People & Talent Management,010984,Training and Development,Employees,040149,Recruitment Instruction and Training,06-Jul-2021,000007617351202,SP RLSS UK ENT PACKS,8299,Training-all costs,127.00,0.00,127.00
Resources BK0010,People & Talent Management,010984,Training and Development,Employees,040149,Recruitment Instruction and Training,06-Jul-2021,000007617351204,SP RLSS UK ENT PACKS,8299,Training-all costs,123.00,0.00,123.00
"Regeneration, Economy and Growth",Business Durham CL0850,030717,Business Services,Supplies and Services,328041,Clothing uniforms and laundry E328,06-Jul-2021,000007617351380,ARGOS LTD,5310,Clothing uniforms and laundry,273.94,0.00,273.94
Children and Young Peoples Services,Head of Childrens Social Care,085351,Framwellgate Moor CU,Supplies and Services,304403,Equipment and Materials,06-Jul-2021,000007617351400,AMZNMktplace,5999,Other consumables,25.00,4.17,20.83
Children and Young Peoples Services,Head of Childrens Social Care,085351,Framwellgate Moor CU,Supplies and Services,324117,Provisions E324,06-Jul-2021,000007617351402,SAINSBURYS 0776,5411,Catering costs - provisions,50.46,0.00,50.46
Children and Young Peoples Services,Head of Childrens Social Care,085351,Framwellgate Moor CU,Supplies and Services,304403,Equipment and Materials,06-Jul-2021,000007617351406,AMZNMktplace,5999,Other consumables,16.99,2.83,14.16
Children and Young Peoples Services,Head of Childrens Social Care,085351,Framwellgate Moor CU,Supplies and Services,304403,Equipment and Materials,06-Jul-2021,000007617351408,AMZNMktplace,5999,Other consumables,6.36,1.06,5.30
Children and Young Peoples Services,Head of Childrens Social Care,085334,West Rainton Satelite Home,Supplies and Services,324117,Provisions E324,06-Jul-2021,000007617351442,B&M 681 - DURHAM,5399,Catering costs - provisions,14.00,0.00,14.00
Children and Young Peoples Services,Head of Childrens Social Care,085334,West Rainton Satelite Home,Supplies and Services,324117,Provisions E324,06-Jul-2021,000007617351446,B&M 681 - DURHAM,5399,Catering costs - provisions,41.94,0.00,41.94
Children and Young Peoples Services,Head of Childrens Social Care,085334,West Rainton Satelite Home,Supplies and Services,324117,Provisions E324,06-Jul-2021,000007617351450,B&M 681 - DURHAM,5399,Catering costs - provisions,24.45,0.00,24.45
Children and Young Peoples Services,Head of Childrens Social Care,085334,West Rainton Satelite Home,Supplies and Services,324117,Provisions E324,06-Jul-2021,000007617351452,TESCO STORES 2371,5411,Catering costs - provisions,13.50,0.00,13.50
Children and Young Peoples Services,Head of Childrens Social Care,085334,West Rainton Satelite Home,Supplies and Services,324117,Provisions E324,06-Jul-2021,000007617351454,TESCO STORES 2371,5411,Catering costs - provisions,114.92,0.00,114.92
Children and Young Peoples Services,Head of Childrens Social Care,085334,West Rainton Satelite Home,Supplies and Services,324117,Provisions E324,06-Jul-2021,000007617351458,TESCO STORES 2371,5411,Catering costs - provisions,2.00,0.00,2.00
Children and Young Peoples Services,Head of Education and Skills,078550,Discretionary Learning Support,Transport,235073,Public Transport,06-Jul-2021,000007617351462,thetrainline.com,4112,Travel-clients/students/children,88.91,0.00,88.91
Children and Young Peoples Services,Head of Early Help Inclusion & Vulnerable Children.,071445,Chester le Street One Point Hub,Supplies and Services,304403,Equipment and Materials,06-Jul-2021,000007617351484,AMZNMktplace,5999,Other consumables,19.25,3.21,16.04
Resources BK0010,Digital and Customer Services,065335,School Services - Implementations,Supplies and Services,304639,Equipment and Materials,06-Jul-2021,000007617351492,SOURCE UPS LTD,5399,Technicians-supplies,80.11,0.00,80.11
Resources BK0010,Procurement Sales & Business Services,065503,Business Support - Spectrum,Supplies and Services,384999,Miscellaneous Expenses,06-Jul-2021,000007617351564,PAYPAL TWEDDLEFARM,5995,Other expenses,220.00,0.00,220.00
"Regeneration, Economy and Growth",Culture Sport and Tourism,054235,Bishop Auckland Town Hall Cafe,Supplies and Services,324117,Provisions E324,06-Jul-2021,000007617351570,JR HOLLAND FOODSERVICE,5499,Catering costs - provisions,66.30,0.00,66.30
"Regeneration, Economy and Growth",Transport and Contracted Services,031701,Care Connect All Localities,Supplies and Services,304259,Equipment and Materials,06-Jul-2021,000007617351582,LOCAL GLASS & GLAZING,5950,Equipment-purchase and rental,50.00,0.00,50.00
"Regeneration, Economy and Growth",Development and Housing,031576,B& B - Temp Accom,Supplies and Services,364320,Grants to Voluntary Organisations,06-Jul-2021,000007617351616,TOAST LETTINGS,7011,Accommodation assistance,240.00,0.00,240.00
"Regeneration, Economy and Growth",Business Durham CL0850,030671,Business Space 030671,Supplies and Services,340001,Postages E340,06-Jul-2021,000007617351624,ROYAL MAIL ONLINE SHOP,9402,Postages,7.40,0.00,7.40
Children and Young Peoples Services,Head of Childrens Social Care,085333,Coxhoe Satelite Home,Supplies and Services,324117,Provisions E324,06-Jul-2021,000007617351680,WALKERS BUTCHERS & BAK,5499,Catering costs - provisions,33.97,0.00,33.97
Children and Young Peoples Services,Head of Education and Skills,071802,Louisa Cent Nursery,Supplies and Services,324117,Provisions E324,06-Jul-2021,000007617351684,ASDA SUPERSTORE,5411,Catering costs - provisions,4.78,0.00,4.78
Neighbourhoods and Climate Change,Environmental Services,031200,North Pennines Core,Third Party Payments,430100,Rendered by Private Contractors,06-Jul-2021,000007617351700,EB LANDSCAPES FOR LIF,7399,Payments to sub-contractors,80.00,0.00,80.00
Children and Young Peoples Services,Head of Childrens Social Care,085332,Middlestone Moor CU,Supplies and Services,304259,Equipment and Materials,06-Jul-2021,000007617351726,GEN REGISTER OFFICE,9399,Equipment-purchase and rental,14.00,0.00,14.00
Children and Young Peoples Services,Head of Childrens Social Care,085332,Middlestone Moor CU,Supplies and Services,324117,Provisions E324,06-Jul-2021,000007617351732,ASDA SUPERSTORE 4987,5411,Catering costs - provisions,31.97,0.00,31.97
Children and Young Peoples Services,Head of Childrens Social Care,085331,New Lea Childrens Home,Premises,120037,Energy Costs,06-Jul-2021,000007617351776,SCOTTISHPOWER,4900,Other fuels,152.04,0.00,152.04
Children and Young Peoples Services,Head of Childrens Social Care,085341,High Etherley Satelite Home,Supplies and Services,324117,Provisions E324,06-Jul-2021,000007617351784,TESCO STORES 6329,5411,Catering costs - provisions,11.77,0.00,11.77
Children and Young Peoples Services,Head of Childrens Social Care,085341,High Etherley Satelite Home,Supplies and Services,324117,Provisions E324,06-Jul-2021,000007617351790,TESCO STORES 6329,5411,Catering costs - provisions,9.00,0.00,9.00
"Regeneration, Economy and Growth",Business Durham CL0850,030694,Plexus 2,Supplies and Services,304403,Equipment and Materials,06-Jul-2021,000007617351912,AMZNMktplace,5999,Other consumables,7.98,0.00,7.98
Neighbourhoods and Climate Change,Environmental Services,011060,C&G - Hardwick Park Catering,Supplies and Services,324117,Provisions E324,06-Jul-2021,000007620222890,BATLEYS PERTH,5300,Catering costs - provisions,68.28,11.38,56.90
Neighbourhoods and Climate Change,Environmental Services,011060,C&G - Hardwick Park Catering,Supplies and Services,324117,Provisions E324,06-Jul-2021,000007620222890 - 1,BATLEYS PERTH,5300,Catering costs - provisions,200.19,,200.19
"Regeneration, Economy and Growth",Development and Housing,030735,Economic Development - Employability,Supplies and Services,304999,Equipment and Materials,06-Jul-2021,000007639832538,WWW.COSTCO.CO.UK,7278,Misc equipment tools and materials,274.99,0.00,274.99
Children and Young Peoples Services,Head of Childrens Social Care,085332,Middlestone Moor CU,Supplies and Services,304259,Equipment and Materials,06-Jul-2021,000009643904581,GEN REGISTER OFFICE,9399,Equipment-purchase and rental,-7.50,0.00,-7.50
"Regeneration, Economy and Growth",Culture Sport and Tourism,054812,Gala Theatre - Catering etc,Supplies and Services,324117,Provisions E324,06-Jul-2021,7617350836,JR HOLLAND FOODSERVICE,5499,Catering costs - provisions,58.65,0.00,58.65
"Regeneration, Economy and Growth",Corporate Property and Land,021234,Catering - Locomotion,Supplies and Services,324117,Provisions E324,06-Jul-2021,7617351240,ON A ROLL SANDWICH COM,5499,Catering costs - provisions,135.60,0.00,135.60
"Regeneration, Economy and Growth",Corporate Property and Land,021234,Catering - Locomotion,Supplies and Services,324117,Provisions E324,06-Jul-2021,7620222906,BATLEYS PERTH,5300,Catering costs - provisions,303.30,50.55,252.75
"Regeneration, Economy and Growth",Corporate Property and Land,021234,Catering - Locomotion,Supplies and Services,324117,Provisions E324,06-Jul-2021,7620222906 - 1,BATLEYS PERTH,5300,Catering costs - provisions,38.74,,38.74
Children and Young Peoples Services,Head of Education and Skills,071801,Selby Cottage Childcare Centre,Supplies and Services,384999,Miscellaneous Expenses,07-Jul-2021,000007617350542,Amazon.co.uk J83YJ6845,5969,Other expenses,16.99,2.83,14.16
Neighbourhoods and Climate Change,Partnerships & Community Engagement Div.,060460,Partnerships and Consultation Team,Employees,040149,Recruitment Instruction and Training,07-Jul-2021,000007617350584,BITEABLE LLC,7829,Training-all costs,11.70,0.00,11.70
Children and Young Peoples Services,Head of Early Help Inclusion & Vulnerable Children.,085957,Secure Management,Supplies and Services,304403,Equipment and Materials,07-Jul-2021,000007617350892,AMZNMktplace,5999,Other consumables,20.70,3.45,17.25
Children and Young Peoples Services,Head of Early Help Inclusion & Vulnerable Children.,085957,Secure Management,Supplies and Services,304403,Equipment and Materials,07-Jul-2021,000007617350892 - 1,AMZNMktplace,5999,Other consumables,0.06,,0.06
"Regeneration, Economy and Growth",Business Durham CL0850,030689,Inward Investment and Aftercare,Supplies and Services,336005,Advertising E336,07-Jul-2021,000007620222390,LINKEDIN-679 7147664,7311,Advertising other than for staff,56.97,0.00,56.97
Children and Young Peoples Services,Head of Education and Skills,071801,Selby Cottage Childcare Centre,Supplies and Services,304259,Equipment and Materials,07-Jul-2021,000007620222416,APPLE.COM/BILL,5735,Equipment-purchase and rental,34.99,0.00,34.99
Children and Young Peoples Services,Head of Education and Skills,071801,Selby Cottage Childcare Centre,Supplies and Services,304403,Equipment and Materials,07-Jul-2021,000007620222420,AMZNMKTPLACE AMAZON.CO,5999,Other consumables,33.99,5.67,28.32
Children and Young Peoples Services,Head of Education and Skills,071801,Selby Cottage Childcare Centre,Supplies and Services,304403,Equipment and Materials,07-Jul-2021,000007620222422,AMZNMKTPLACE AMAZON.CO,5999,Other consumables,31.80,5.30,26.50
Children and Young Peoples Services,Head of Education and Skills,071801,Selby Cottage Childcare Centre,Supplies and Services,304403,Equipment and Materials,07-Jul-2021,000007620222426,AMZNMKTPLACE AMAZON.CO,5999,Other consumables,102.88,0.00,102.88
Children and Young Peoples Services,Head of Education and Skills,071801,Selby Cottage Childcare Centre,Supplies and Services,384999,Miscellaneous Expenses,07-Jul-2021,000007620222430,Amazon.co.uk WB5WK4R45,5969,Other expenses,39.73,0.00,39.73
Adult and Health Services,Public Health CC0450,057125,Mental Health at Scale,Supplies and Services,342053,Computers and Communications,07-Jul-2021,000007620222440,ZOOM.US 888-799-9666,4814,Computer software,119.90,0.00,119.90
Resources BK0010,Legal & Democratic Services,067910,Democratic Representation 067910,Supplies and Services,304403,Equipment and Materials,07-Jul-2021,000007620222442,AMZNMKTPLACE AMAZON.CO,5999,Other consumables,10.99,1.83,9.16
Resources BK0010,Digital and Customer Services,070110,School Services - Man Info System (MIS) Support Team,Supplies and Services,342033,Computers and Communications,07-Jul-2021,000007620222446,WPMU DEV INCSUBFEE.COM,7372,Computer hardware,13.78,0.00,13.78
Resources BK0010,Strategy,060105,Corporate Performance Management,Supplies and Services,384999,Miscellaneous Expenses,07-Jul-2021,000007620222450,Amazon.co.uk DL94V6AC5,5969,Other expenses,30.79,0.00,30.79
Adult and Health Services,Head of Adults,052714,Development and Learning AHS 052714,Supplies and Services,342033,Computers and Communications,07-Jul-2021,000007620222452,MIRO.COM,7372,Computer hardware,139.26,0.00,139.26
Neighbourhoods and Climate Change,Environmental Services,031202,North Pennines - Peatscapes,Supplies and Services,344033,Telephones,07-Jul-2021,000007620222454,WWW.MTRGROUP.CO.UK,4812,Telephones general-all costs,10.20,0.00,10.20
Resources BK0010,Digital and Customer Services,065432,Web Development Group,Supplies and Services,342053,Computers and Communications,07-Jul-2021,000007620222458,123 REG LTD,4816,Computer software,28.78,0.00,28.78
Children and Young Peoples Services,Head of Childrens Social Care,085501,Child Care Cases Legal Expenses,Supplies and Services,304403,Equipment and Materials,07-Jul-2021,000007620222500,DARLINGTON BC INTERNET,9399,Other consumables,11.00,0.00,11.00
Children and Young Peoples Services,Head of Childrens Social Care,085501,Child Care Cases Legal Expenses,Supplies and Services,304403,Equipment and Materials,07-Jul-2021,000007620222502,DARLINGTON BC INTERNET,9399,Other consumables,11.00,0.00,11.00
Children and Young Peoples Services,Head of Childrens Social Care,085501,Child Care Cases Legal Expenses,Supplies and Services,304403,Equipment and Materials,07-Jul-2021,000007620222504,DARLINGTON BC INTERNET,9399,Other consumables,11.00,0.00,11.00
Children and Young Peoples Services,Head of Childrens Social Care,085501,Child Care Cases Legal Expenses,Supplies and Services,304403,Equipment and Materials,07-Jul-2021,000007620222508,DARLINGTON BC INTERNET,9399,Other consumables,11.00,0.00,11.00
Children and Young Peoples Services,Head of Childrens Social Care,085501,Child Care Cases Legal Expenses,Supplies and Services,304403,Equipment and Materials,07-Jul-2021,000007620222510,SUNDERLAND CC,7523,Other consumables,-11.00,0.00,-11.00
Children and Young Peoples Services,Head of Education and Skills,075021,DurhamWorks Progression and Learning,Supplies and Services,364301,Grants to Voluntary Organisations,07-Jul-2021,000007620222516,SCREWFIX DIRECT,5211,Hardship,39.96,6.66,33.30
Children and Young Peoples Services,Head of Education and Skills,075021,DurhamWorks Progression and Learning,Supplies and Services,364301,Grants to Voluntary Organisations,07-Jul-2021,000007620222516 - 1,SCREWFIX DIRECT,5211,Hardship,40.02,,40.02
Children and Young Peoples Services,Head of Childrens Social Care,085332,Middlestone Moor CU,Supplies and Services,324117,Provisions E324,07-Jul-2021,000007620222548,TESCO STORES 2371,5411,Catering costs - provisions,190.31,0.00,190.31
Children and Young Peoples Services,Head of Education and Skills,071903,Early Years Sustainability,Supplies and Services,342033,Computers and Communications,07-Jul-2021,000007620222576,STK Shutterstock,7333,Computer hardware,22.80,0.00,22.80
"Regeneration, Economy and Growth",Culture Sport and Tourism,011265,Empire Theatre (Operations),Supplies and Services,324117,Provisions E324,07-Jul-2021,000007620222616,JR HOLLAND FOODSERVICE,5499,Catering costs - provisions,7.50,0.00,7.50
Children and Young Peoples Services,Head of Early Help Inclusion & Vulnerable Children.,088105,BA/BC/Crook 0-19 Community Family Hub,Supplies and Services,304259,Equipment and Materials,07-Jul-2021,000007620222638,AMZNMktplace,5999,Equipment-purchase and rental,9.50,1.58,7.92
Children and Young Peoples Services,Head of Early Help Inclusion & Vulnerable Children.,085957,Secure Management,Supplies and Services,304403,Equipment and Materials,07-Jul-2021,000007620222666,AMZNMKTPLACE AMAZON.CO,5999,Other consumables,25.98,4.34,21.64
Children and Young Peoples Services,Head of Early Help Inclusion & Vulnerable Children.,085952,Secure Education,Supplies and Services,384999,Miscellaneous Expenses,07-Jul-2021,000007620222670,Amazon.co.uk E034Y96E5,5969,Other expenses,63.69,10.67,53.02
Children and Young Peoples Services,Head of Early Help Inclusion & Vulnerable Children.,085957,Secure Management,Supplies and Services,384999,Miscellaneous Expenses,07-Jul-2021,000007620222672,Amazon.co.uk UR1DJ8UC5,5969,Other expenses,16.42,2.74,13.68
Children and Young Peoples Services,Head of Early Help Inclusion & Vulnerable Children.,085954,Walworth,Supplies and Services,304403,Equipment and Materials,07-Jul-2021,000007620222674,AMZNMktplace,5999,Other consumables,29.00,4.83,24.17
"Regeneration, Economy and Growth",Development and Housing,030772,CLLD South,Supplies and Services,304259,Equipment and Materials,07-Jul-2021,000007620222684,Durham County CNCL,9399,Equipment-purchase and rental,11.00,0.00,11.00
"Regeneration, Economy and Growth",Development and Housing,031576,B& B - Temp Accom,Supplies and Services,364320,Grants to Voluntary Organisations,07-Jul-2021,000007620222702,BUDGET H EXPRESS HOTEL,7011,Accommodation assistance,89.00,0.00,89.00
Neighbourhoods and Climate Change,Environmental Services,010367,C&G - South Grounds Maintenance,Supplies and Services,304999,Equipment and Materials,07-Jul-2021,000007620222708,DUOTOOL DIRECT LTD,5251,Misc equipment tools and materials,414.36,0.00,414.36
Resources BK0010,Digital and Customer Services,070204,School Services - Systems,Supplies and Services,372009,Subscriptions E372,07-Jul-2021,000007620222750,NOMINET UK,7392,Subscriptions 372009,46.80,7.80,39.00
Resources BK0010,Digital and Customer Services,070204,School Services - Systems,Supplies and Services,372009,Subscriptions E372,07-Jul-2021,000007620222754,NOMINET UK,7392,Subscriptions 372009,46.80,7.80,39.00
Children and Young Peoples Services,Head of Education and Skills,071732,Dean Bank Childcare,Supplies and Services,304403,Equipment and Materials,07-Jul-2021,000007620222770,AMZNMktplace,5999,Other consumables,3.78,0.63,3.15
Children and Young Peoples Services,Head of Education and Skills,071732,Dean Bank Childcare,Supplies and Services,304403,Equipment and Materials,07-Jul-2021,000007620222774,AMZNMktplace,5999,Other consumables,120.40,0.00,120.40
Children and Young Peoples Services,Head of Education and Skills,071732,Dean Bank Childcare,Supplies and Services,304403,Equipment and Materials,07-Jul-2021,000007620222778,AMZNMktplace,5999,Other consumables,1.19,0.20,0.99
Children and Young Peoples Services,Head of Education and Skills,071732,Dean Bank Childcare,Supplies and Services,304403,Equipment and Materials,07-Jul-2021,000007620222780,AMZNMktplace,5999,Other consumables,119.40,0.00,119.40
Children and Young Peoples Services,Head of Childrens Social Care,085332,Middlestone Moor CU,Supplies and Services,384999,Miscellaneous Expenses,07-Jul-2021,000007620222822,DANSSAM LTD,7230,Other expenses,38.00,0.00,38.00
Children and Young Peoples Services,Head of Childrens Social Care,085332,Middlestone Moor CU,Supplies and Services,324117,Provisions E324,07-Jul-2021,000007620222826,TESCO STORES 2916,5411,Catering costs - provisions,38.20,0.00,38.20
Children and Young Peoples Services,Head of Childrens Social Care,085332,Middlestone Moor CU,Transport,215995,Running Costs of Vehicles,07-Jul-2021,000007620222828,TESCO PFS 4088,5541,Vehicle running expenses,50.29,0.00,50.29
Children and Young Peoples Services,Head of Childrens Social Care,085332,Middlestone Moor CU,Supplies and Services,324117,Provisions E324,07-Jul-2021,000007620222830,ALDI 74 774,5411,Catering costs - provisions,3.27,0.00,3.27
Children and Young Peoples Services,Head of Early Help Inclusion & Vulnerable Children.,085957,Secure Management,Supplies and Services,304245,Equipment and Materials,07-Jul-2021,000007620222862,HVACSANITARY,5074,Materials,326.52,0.00,326.52
Children and Young Peoples Services,Head of Early Help Inclusion & Vulnerable Children.,085954,Walworth,Supplies and Services,384302,Miscellaneous Expenses,07-Jul-2021,000007620222866,AMZNMKTPLACE AMAZON.CO,5999,Activity expenses,33.78,5.64,28.14
Children and Young Peoples Services,Head of Early Help Inclusion & Vulnerable Children.,085956,Lumley,Transfer Payments,515002,Social Services Clients,07-Jul-2021,000007620222868,MISSYEMPIRE,5691,Pocket money,12.99,0.00,12.99
Children and Young Peoples Services,Head of Early Help Inclusion & Vulnerable Children.,085954,Walworth,Transfer Payments,515002,Social Services Clients,07-Jul-2021,000007620222870,SPORTSDIRECT.COM,5691,Pocket money,14.99,0.00,14.99
Children and Young Peoples Services,Head of Early Help Inclusion & Vulnerable Children.,085956,Lumley,Transfer Payments,515002,Social Services Clients,07-Jul-2021,000007620222872,LOVE ISLAND SHOP,5734,Pocket money,24.50,0.00,24.50
Children and Young Peoples Services,Head of Early Help Inclusion & Vulnerable Children.,085962,Aycliffe Secure - Durham,Supplies and Services,324117,Provisions E324,07-Jul-2021,000007620222874,TESCO STORES 6329,5411,Catering costs - provisions,65.10,0.00,65.10
Children and Young Peoples Services,Head of Early Help Inclusion & Vulnerable Children.,085956,Lumley,Transfer Payments,515002,Social Services Clients,07-Jul-2021,000007620222876,HOUSEOFFRASER.CO.UK,5311,Pocket money,30.99,0.00,30.99
Children and Young Peoples Services,Head of Childrens Social Care,085551,Short Break Services-Park Hse Sher,Supplies and Services,384999,Miscellaneous Expenses,07-Jul-2021,000007620222960,HAIR BY EDELE,7230,Other expenses,25.00,0.00,25.00
Children and Young Peoples Services,Head of Childrens Social Care,085551,Short Break Services-Park Hse Sher,Supplies and Services,348037,Subsistence E348,07-Jul-2021,000007620222962,SUBWAY @ MFG DRAGONVIL,5814,Subsistence,15.85,0.00,15.85
Children and Young Peoples Services,Head of Childrens Social Care,085333,Coxhoe Satelite Home,Supplies and Services,324117,Provisions E324,07-Jul-2021,000007620223026,Coates Butchers,5422,Catering costs - provisions,12.55,0.00,12.55
Children and Young Peoples Services,Head of Childrens Social Care,085333,Coxhoe Satelite Home,Supplies and Services,324117,Provisions E324,07-Jul-2021,000007620223030,ASDA SUPERSTORE 4987,5411,Catering costs - provisions,22.47,0.00,22.47
Children and Young Peoples Services,Head of Childrens Social Care,085351,Framwellgate Moor CU,Supplies and Services,304403,Equipment and Materials,07-Jul-2021,000007620223060,AMZNMktplace,5999,Other consumables,42.15,0.00,42.15
Children and Young Peoples Services,Head of Childrens Social Care,085351,Framwellgate Moor CU,Supplies and Services,304403,Equipment and Materials,07-Jul-2021,000007620223066,AMZNMktplace,5999,Other consumables,23.94,3.99,19.95
Children and Young Peoples Services,Head of Childrens Social Care,085351,Framwellgate Moor CU,Supplies and Services,304403,Equipment and Materials,07-Jul-2021,000007620223066 - 1,AMZNMktplace,5999,Other consumables,0.03,,0.03
Children and Young Peoples Services,Head of Childrens Social Care,085351,Framwellgate Moor CU,Supplies and Services,304403,Equipment and Materials,07-Jul-2021,000007620223070,AMZNMktplace,5999,Other consumables,7.95,1.33,6.62
Children and Young Peoples Services,Head of Childrens Social Care,085614,Families First Durham West,Supplies and Services,364340,Grants to Voluntary Organisations,07-Jul-2021,000007620223098,WWW.GONORTHEAST.CO.UK,4111,Contact expenses,25.00,0.00,25.00
Children and Young Peoples Services,Head of Childrens Social Care,085633,Families First Chester-Le-Street,Supplies and Services,364340,Grants to Voluntary Organisations,07-Jul-2021,000007620223106,WWW.GONORTHEAST.CO.UK,4111,Contact expenses,5.30,0.00,5.30
Children and Young Peoples Services,Head of Childrens Social Care,085633,Families First Chester-Le-Street,Supplies and Services,364340,Grants to Voluntary Organisations,07-Jul-2021,000007620223108,WWW.GONORTHEAST.CO.UK,4111,Contact expenses,5.30,0.00,5.30
Children and Young Peoples Services,Head of Childrens Social Care,085633,Families First Chester-Le-Street,Supplies and Services,364340,Grants to Voluntary Organisations,07-Jul-2021,000007620223110,WWW.GONORTHEAST.CO.UK,4111,Contact expenses,5.30,0.00,5.30
Children and Young Peoples Services,Head of Childrens Social Care,085633,Families First Chester-Le-Street,Supplies and Services,364340,Grants to Voluntary Organisations,07-Jul-2021,000007620223112,WWW.GONORTHEAST.CO.UK,4111,Contact expenses,5.30,0.00,5.30
Neighbourhoods and Climate Change,Environmental Services,010367,C&G - South Grounds Maintenance,Supplies and Services,304403,Equipment and Materials,07-Jul-2021,000007620223116,MAXWELLS D I Y,5231,Other consumables,26.50,0.00,26.50
Adult and Health Services,Head of Adults,055643,Hawthorn House LD Respite Unit,Supplies and Services,324117,Provisions E324,07-Jul-2021,000007620223118,JR HOLLAND FOODSERVICE,5499,Catering costs - provisions,8.01,0.00,8.01
Adult and Health Services,Head of Adults,055643,Hawthorn House LD Respite Unit,Supplies and Services,324117,Provisions E324,07-Jul-2021,000007620223120,JR HOLLAND FOODSERVICE,5499,Catering costs - provisions,21.11,0.00,21.11
Children and Young Peoples Services,Head of Education and Skills,078100,Curric and Professional Development 078100,Supplies and Services,372009,Subscriptions E372,07-Jul-2021,000007620223142,PAYPAL CROWNHOUSEP,2741,Subscriptions 372009,18.99,0.00,18.99
Children and Young Peoples Services,Head of Childrens Social Care,085334,West Rainton Satelite Home,Supplies and Services,304403,Equipment and Materials,07-Jul-2021,000007620223144,AMZNMktplace,5999,Other consumables,13.99,0.00,13.99
Children and Young Peoples Services,Head of Early Help Inclusion & Vulnerable Children.,088115,Young Parents Programme 088115,Supplies and Services,384302,Miscellaneous Expenses,07-Jul-2021,000007620223156,ASDA SUPERSTORE,5411,Activity expenses,163.32,0.00,163.32
Children and Young Peoples Services,Head of Childrens Social Care,085363,LAC & Permanence Team 3,Supplies and Services,338045,Services,07-Jul-2021,000007620223160,SUNDERLAND CC,9399,Legal expenses 338045,-22.00,0.00,-22.00
Resources BK0010,Digital and Customer Services,065335,School Services - Implementations,Supplies and Services,304639,Equipment and Materials,07-Jul-2021,000007620223168,LAMBDATEK,5732,Technicians-supplies,21.11,0.00,21.11
Resources BK0010,Digital and Customer Services,065335,School Services - Implementations,Supplies and Services,304639,Equipment and Materials,07-Jul-2021,000007620223170,REPLACEBASE,5732,Technicians-supplies,52.86,0.00,52.86
Children and Young Peoples Services,Head of Childrens Social Care,085332,Middlestone Moor CU,Supplies and Services,348037,Subsistence E348,07-Jul-2021,000007620223240,KFC THINFORD DURHAM PR,5814,Subsistence,62.77,0.00,62.77
Children and Young Peoples Services,Head of Childrens Social Care,085332,Middlestone Moor CU,Supplies and Services,304999,Equipment and Materials,07-Jul-2021,000007620223242,HOME BARGAINS SPENNYMO,5251,Misc equipment tools and materials,27.47,0.00,27.47
Children and Young Peoples Services,Head of Childrens Social Care,085334,West Rainton Satelite Home,Supplies and Services,328041,Clothing uniforms and laundry E328,07-Jul-2021,000007620223254,SELECT,5691,Clothing uniforms and laundry,16.59,0.00,16.59
Children and Young Peoples Services,Head of Childrens Social Care,085334,West Rainton Satelite Home,Supplies and Services,328041,Clothing uniforms and laundry E328,07-Jul-2021,000007620223256,ARGOS LTD,5310,Clothing uniforms and laundry,49.99,0.00,49.99
Children and Young Peoples Services,Head of Childrens Social Care,085341,High Etherley Satelite Home,Supplies and Services,304259,Equipment and Materials,07-Jul-2021,000007620223404,HALFORDS 0526,5940,Equipment-purchase and rental,6.50,0.00,6.50
Children and Young Peoples Services,Head of Childrens Social Care,085341,High Etherley Satelite Home,Supplies and Services,304259,Equipment and Materials,07-Jul-2021,000007620223408,B & Q 1120,5200,Equipment-purchase and rental,80.00,0.00,80.00
Neighbourhoods and Climate Change,Environmental Services,010383,C&G - South Street Cleansing,Supplies and Services,324117,Provisions E324,07-Jul-2021,000007620223412,Coates Butchers,5422,Catering costs - provisions,61.66,0.00,61.66
Children and Young Peoples Services,Head of Childrens Social Care,085551,Short Break Services-Park Hse Sher,Supplies and Services,324117,Provisions E324,07-Jul-2021,000007620223416,WWW.ICELAND.CO.UK,5411,Catering costs - provisions,66.34,0.00,66.34
"Regeneration, Economy and Growth",Business Durham CL0850,030694,Plexus 2,Supplies and Services,304221,Equipment and Materials,07-Jul-2021,000007620223430,Tesla_GB,5511,Direct materials,195.00,0.00,195.00
Adult and Health Services,Head of Adults,055309,Peterlee Pathways,Supplies and Services,304999,Equipment and Materials,07-Jul-2021,000007620223436,HOME BARGAINS PETERLEE,5251,Misc equipment tools and materials,12.81,0.00,12.81
Children and Young Peoples Services,Head of Early Help Inclusion & Vulnerable Children.,085956,Lumley,Transfer Payments,515002,Social Services Clients,07-Jul-2021,000007623773094,TPS ONLINE UK ECOM,5977,Pocket money,8.97,0.00,8.97
Children and Young Peoples Services,Head of Childrens Social Care,085351,Framwellgate Moor CU,Supplies and Services,304403,Equipment and Materials,07-Jul-2021,000007623773322,AMZNMKTPLACE AMAZON.CO,5999,Other consumables,11.99,2.00,9.99
Children and Young Peoples Services,Head of Childrens Social Care,085351,Framwellgate Moor CU,Supplies and Services,304403,Equipment and Materials,07-Jul-2021,000007623773326,AMZNMKTPLACE AMAZON.CO,5999,Other consumables,8.00,1.34,6.66
Children and Young Peoples Services,Head of Childrens Social Care,085351,Framwellgate Moor CU,Supplies and Services,304403,Equipment and Materials,07-Jul-2021,000007623773330,AMZNMKTPLACE AMAZON.CO,5999,Other consumables,14.97,2.50,12.47
Children and Young Peoples Services,Head of Childrens Social Care,085351,Framwellgate Moor CU,Supplies and Services,304403,Equipment and Materials,07-Jul-2021,000007623773334,CEX LTD,5065,Other consumables,85.85,0.00,85.85
Children and Young Peoples Services,Head of Childrens Social Care,085342,16 Hickstead Rise (previously 9 Cedar Ave),Supplies and Services,324117,Provisions E324,07-Jul-2021,000007623773460,EQUESTRIAN CO.,5399,Catering costs - provisions,-31.95,0.00,-31.95
"Regeneration, Economy and Growth",Culture Sport and Tourism,054812,Gala Theatre - Catering etc,Supplies and Services,324117,Provisions E324,07-Jul-2021,7620222658,JR HOLLAND FOODSERVICE,5499,Catering costs - provisions,9.20,0.00,9.20
"Regeneration, Economy and Growth",Corporate Property and Land,021234,Catering - Locomotion,Supplies and Services,324117,Provisions E324,07-Jul-2021,7620222910,JR HOLLAND FOODSERVICE,5499,Catering costs - provisions,40.64,0.00,40.64
"Regeneration, Economy and Growth",Corporate Property and Land,021234,Catering - Locomotion,Supplies and Services,324117,Provisions E324,07-Jul-2021,7620222912,JR HOLLAND FOODSERVICE,5499,Catering costs - provisions,3.90,0.00,3.90
"Regeneration, Economy and Growth",Corporate Property and Land,030691,Catering - Durham Dales Centre,Supplies and Services,324117,Provisions E324,07-Jul-2021,7620223080,JR HOLLAND FOODSERVICE,5499,Catering costs - provisions,106.86,0.00,106.86
"Regeneration, Economy and Growth",Business Durham CL0850,030689,Inward Investment and Aftercare,Supplies and Services,342033,Computers and Communications,08-Jul-2021,000007620222392,AdRoll_EMEA,7372,Computer hardware,42.51,0.00,42.51
"Regeneration, Economy and Growth",Business Durham CL0850,030689,Inward Investment and Aftercare,Supplies and Services,342033,Computers and Communications,08-Jul-2021,000007620222396,AdRoll_EMEA,7372,Computer hardware,1.17,0.00,1.17
Children and Young Peoples Services,Head of Education and Skills,071801,Selby Cottage Childcare Centre,Supplies and Services,384999,Miscellaneous Expenses,08-Jul-2021,000007620222434,Amazon.co.uk 800A98WH5,5969,Other expenses,1.58,0.26,1.32
Children and Young Peoples Services,Head of Education and Skills,071801,Selby Cottage Childcare Centre,Supplies and Services,304403,Equipment and Materials,08-Jul-2021,000007620222436,AMZNMktplace,5999,Other consumables,17.96,3.00,14.96
Resources BK0010,Resources Management CK0450,069000,Resources Management 069000,Supplies and Services,384999,Miscellaneous Expenses,08-Jul-2021,000007620222462,Amazon.co.uk DZ9Z730X5,5969,Other expenses,45.70,7.62,38.08
Resources BK0010,Strategy,060105,Corporate Performance Management,Supplies and Services,384999,Miscellaneous Expenses,08-Jul-2021,000007620222466,Amazon.co.uk WB7QC1IK5,5969,Other expenses,18.22,0.00,18.22
Resources BK0010,Digital and Customer Services,070110,School Services - Man Info System (MIS) Support Team,Supplies and Services,342033,Computers and Communications,08-Jul-2021,000007620222470,WPMU DEV INCSUBFEE.COM,7372,Computer hardware,0.38,0.00,0.38
Adult and Health Services,Head of Adults,052714,Development and Learning AHS 052714,Supplies and Services,342033,Computers and Communications,08-Jul-2021,000007620222472,MIRO.COM,7372,Computer hardware,3.83,0.00,3.83
"Regeneration, Economy and Growth",Business Durham CL0850,030689,Inward Investment and Aftercare,Supplies and Services,304999,Equipment and Materials,08-Jul-2021,000007623772394,TSOHOST,5968,Misc equipment tools and materials,8.34,0.00,8.34
Children and Young Peoples Services,Head of Childrens Social Care,085611,Families First Stanley,Supplies and Services,364301,Grants to Voluntary Organisations,08-Jul-2021,000007623772400,AMZNMktplace,5999,Hardship,16.98,2.83,14.15
Children and Young Peoples Services,Head of Education and Skills,071801,Selby Cottage Childcare Centre,Supplies and Services,304403,Equipment and Materials,08-Jul-2021,000007623772404,AMZNMktplace,5999,Other consumables,12.95,2.16,10.79
Children and Young Peoples Services,Head of Education and Skills,071801,Selby Cottage Childcare Centre,Supplies and Services,304403,Equipment and Materials,08-Jul-2021,000007623772408,AMZNMKTPLACE AMAZON.CO,5999,Other consumables,39.84,6.64,33.20
Children and Young Peoples Services,Head of Education and Skills,071801,Selby Cottage Childcare Centre,Supplies and Services,304999,Equipment and Materials,08-Jul-2021,000007623772414,Amazon Prime O31Z05OV5,5968,Misc equipment tools and materials,7.99,0.00,7.99
Children and Young Peoples Services,Head of Childrens Social Care,085501,Child Care Cases Legal Expenses,Supplies and Services,304403,Equipment and Materials,08-Jul-2021,000007623772434,SUNDERLAND CC,7523,Other consumables,11.00,0.00,11.00
Children and Young Peoples Services,Head of Childrens Social Care,085501,Child Care Cases Legal Expenses,Supplies and Services,304403,Equipment and Materials,08-Jul-2021,000007623772438,SUNDERLAND CC,7523,Other consumables,11.00,0.00,11.00
Children and Young Peoples Services,Head of Education and Skills,075021,DurhamWorks Progression and Learning,Supplies and Services,364301,Grants to Voluntary Organisations,08-Jul-2021,000007623772464,SPORTSDIRECT.COM,5691,Hardship,32.98,0.00,32.98
Children and Young Peoples Services,Head of Education and Skills,075021,DurhamWorks Progression and Learning,Supplies and Services,364301,Grants to Voluntary Organisations,08-Jul-2021,000007623772468,MIDDLESBROUGH COUNCIL,9399,Hardship,11.00,0.00,11.00
Children and Young Peoples Services,Head of Education and Skills,075021,DurhamWorks Progression and Learning,Supplies and Services,364301,Grants to Voluntary Organisations,08-Jul-2021,000007623772474,ASDA GEORGE COM LEEDS,5411,Hardship,52.50,0.00,52.50
Children and Young Peoples Services,Head of Education and Skills,075021,DurhamWorks Progression and Learning,Supplies and Services,364301,Grants to Voluntary Organisations,08-Jul-2021,000007623772478,NEXT DIRECTORY,5965,Hardship,19.99,0.00,19.99
"Regeneration, Economy and Growth",Culture Sport and Tourism,011215,Museums Heritage & Collections 011215,Supplies and Services,304259,Equipment and Materials,08-Jul-2021,000007623772506,AMZNMktplace,5999,Equipment-purchase and rental,47.92,8.00,39.92
"Regeneration, Economy and Growth",Culture Sport and Tourism,030712,VCD - Project Delivery,Supplies and Services,384199,Miscellaneous Expenses,08-Jul-2021,000007623772510,PAYPAL WEBALON,5817,Other hired and contracted services,5.68,0.00,5.68
Children and Young Peoples Services,Head of Early Help Inclusion & Vulnerable Children.,088104,BA/BC/Crook 0-19 Targeted Family Support,Supplies and Services,304259,Equipment and Materials,08-Jul-2021,000007623772668,PAYPAL FALCONINTER ON,5331,Equipment-purchase and rental,128.97,0.00,128.97
Children and Young Peoples Services,Head of Childrens Social Care,085380,Operations Manager LAC Resources,Supplies and Services,328041,Clothing uniforms and laundry E328,08-Jul-2021,000007623772674,ARGOS LTD,5310,Clothing uniforms and laundry,26.94,0.00,26.94
Children and Young Peoples Services,Head of Early Help Inclusion & Vulnerable Children.,085954,Walworth,Supplies and Services,328041,Clothing uniforms and laundry E328,08-Jul-2021,000007623772724,FOOTASYLUM PLC,5691,Clothing uniforms and laundry,89.98,0.00,89.98
Children and Young Peoples Services,Head of Early Help Inclusion & Vulnerable Children.,085952,Secure Education,Supplies and Services,372009,Subscriptions E372,08-Jul-2021,000007623772728,PAYPAL SWIFTPRINTU,2741,Subscriptions 372009,28.47,0.00,28.47
Children and Young Peoples Services,Head of Early Help Inclusion & Vulnerable Children.,073998,TTF-Co-ordinator Grant,Supplies and Services,324117,Provisions E324,08-Jul-2021,000007623772776,ASDA GEORGE COM LEEDS,5411,Catering costs - provisions,63.95,10.66,53.29
Neighbourhoods and Climate Change,Environmental Services,010367,C&G - South Grounds Maintenance,Supplies and Services,304221,Equipment and Materials,08-Jul-2021,000007623772810,SCREWFIX DIRECT,5211,Direct materials,195.48,0.00,195.48
Children and Young Peoples Services,Head of Childrens Social Care,085551,Short Break Services-Park Hse Sher,Supplies and Services,348037,Subsistence E348,08-Jul-2021,000007623772854,MCDONALDS,5814,Subsistence,24.41,0.00,24.41
Children and Young Peoples Services,Head of Education and Skills,071732,Dean Bank Childcare,Supplies and Services,324117,Provisions E324,08-Jul-2021,000007623772910,B&M 410 - DARLINGTON,5399,Catering costs - provisions,147.32,0.00,147.32
Children and Young Peoples Services,Head of Education and Skills,071732,Dean Bank Childcare,Supplies and Services,324117,Provisions E324,08-Jul-2021,000007623772916,ASDA GROCERIES ONLINE,5411,Catering costs - provisions,28.50,0.00,28.50
Children and Young Peoples Services,Head of Education and Skills,071732,Dean Bank Childcare,Supplies and Services,324117,Provisions E324,08-Jul-2021,000007623772920,ASDA SUPERSTORE 4987,5411,Catering costs - provisions,66.71,0.00,66.71
"Regeneration, Economy and Growth",Culture Sport and Tourism,054813,Gala Theatre - Technical,Supplies and Services,384999,Miscellaneous Expenses,08-Jul-2021,000007623772934,CVP,5946,Other expenses,270.00,0.00,270.00
Neighbourhoods and Climate Change,Environmental Services,031221,North Pennines - Bowlees,Supplies and Services,324117,Provisions E324,08-Jul-2021,000007623772964,TESCO STORES 4358,5411,Catering costs - provisions,24.80,0.00,24.80
"Regeneration, Economy and Growth",Development and Housing,031500,Housing Solutions - Core,Supplies and Services,348037,Subsistence E348,08-Jul-2021,000007623772974,CROXDALE INN,5812,Subsistence,180.00,0.00,180.00
"Regeneration, Economy and Growth",Development and Housing,031500,Housing Solutions - Core,Supplies and Services,348037,Subsistence E348,08-Jul-2021,000007623772980,CROXDALE INN,5812,Subsistence,500.00,0.00,500.00
"Regeneration, Economy and Growth",Development and Housing,031500,Housing Solutions - Core,Supplies and Services,348037,Subsistence E348,08-Jul-2021,000007623772988,CROXDALE INN,5812,Subsistence,120.00,0.00,120.00
"Regeneration, Economy and Growth",Development and Housing,031500,Housing Solutions - Core,Supplies and Services,348037,Subsistence E348,08-Jul-2021,000007623772992,CROXDALE INN,5812,Subsistence,500.00,0.00,500.00
Children and Young Peoples Services,Head of Childrens Social Care,085332,Middlestone Moor CU,Supplies and Services,304403,Equipment and Materials,08-Jul-2021,000007623772996,AMZNMktplace,5999,Other consumables,17.95,0.00,17.95
"Regeneration, Economy and Growth",Development and Housing,031623,Rough Sleeping,Payments In advance A932,932001,Payments in advance,08-Jul-2021,000007623773048,SORELLA GROUP LTD,6513,Payments in advance,385.66,0.00,385.66
Children and Young Peoples Services,Head of Childrens Social Care,085334,West Rainton Satelite Home,Supplies and Services,324117,Provisions E324,08-Jul-2021,000007623773074,SAINSBURYS 2199,5411,Catering costs - provisions,15.00,0.00,15.00
Children and Young Peoples Services,Head of Early Help Inclusion & Vulnerable Children.,085956,Lumley,Supplies and Services,384302,Miscellaneous Expenses,08-Jul-2021,000007623773078,AMZNMKTPLACE AMAZON.CO,5999,Activity expenses,4.99,0.83,4.16
Children and Young Peoples Services,Head of Early Help Inclusion & Vulnerable Children.,085954,Walworth,Supplies and Services,384302,Miscellaneous Expenses,08-Jul-2021,000007623773080,AMZNMKTPLACE AMAZON.CO,5999,Activity expenses,17.95,2.99,14.96
Children and Young Peoples Services,Head of Early Help Inclusion & Vulnerable Children.,085956,Lumley,Supplies and Services,308013,Furniture,08-Jul-2021,000007623773086,AMZNMKTPLACE AMAZON.CO,5999,Curtains and carpets,27.91,0.00,27.91
Children and Young Peoples Services,Head of Early Help Inclusion & Vulnerable Children.,085954,Walworth,Supplies and Services,384302,Miscellaneous Expenses,08-Jul-2021,000007623773088,Amazon.co.uk MB7PP5SZ5,5969,Activity expenses,6.99,1.17,5.82
Children and Young Peoples Services,Head of Early Help Inclusion & Vulnerable Children.,085954,Walworth,Transfer Payments,515002,Social Services Clients,08-Jul-2021,000007623773100,JD SPORTS INTERNET,5941,Pocket money,90.00,0.00,90.00
Children and Young Peoples Services,Head of Early Help Inclusion & Vulnerable Children.,085954,Walworth,Transfer Payments,515002,Social Services Clients,08-Jul-2021,000007623773106,JD SPORTS INTERNET,5941,Pocket money,64.00,0.00,64.00
Children and Young Peoples Services,Head of Early Help Inclusion & Vulnerable Children.,085962,Aycliffe Secure - Durham,Transfer Payments,515002,Social Services Clients,08-Jul-2021,000007623773108,AMZNMKTPLACE AMAZON.CO,5999,Pocket money,-27.99,0.00,-27.99
Neighbourhoods and Climate Change,Environmental Services,011060,C&G - Hardwick Park Catering,Premises,145009,Cleaning and Domestic Supplies,08-Jul-2021,000007623773122,ALLIANCE DISPOSABLES L,2842,Other cleaning and domestic costs,85.06,14.18,70.88
Neighbourhoods and Climate Change,Environmental Services,011060,C&G - Hardwick Park Catering,Premises,145009,Cleaning and Domestic Supplies,08-Jul-2021,000007623773124,ALLIANCE DISPOSABLES L,2842,Other cleaning and domestic costs,97.25,16.21,81.04
Neighbourhoods and Climate Change,Environmental Services,011060,C&G - Hardwick Park Catering,Supplies and Services,324117,Provisions E324,08-Jul-2021,000007623773128,JR HOLLAND FOODSERVICE,5499,Catering costs - provisions,75.58,0.00,75.58
Neighbourhoods and Climate Change,Environmental Services,011060,C&G - Hardwick Park Catering,Supplies and Services,324117,Provisions E324,08-Jul-2021,000007623773134,JR HOLLAND FOODSERVICE,5499,Catering costs - provisions,1.88,0.00,1.88
Neighbourhoods and Climate Change,Environmental Services,011060,C&G - Hardwick Park Catering,Supplies and Services,324117,Provisions E324,08-Jul-2021,000007623773136,JR HOLLAND FOODSERVICE,5499,Catering costs - provisions,12.88,0.00,12.88
Neighbourhoods and Climate Change,Environmental Services,010367,C&G - South Grounds Maintenance,Supplies and Services,304221,Equipment and Materials,08-Jul-2021,000007623773240,HOMEBASE LTD 822,5200,Direct materials,41.00,0.00,41.00
Children and Young Peoples Services,Head of Childrens Social Care,085333,Coxhoe Satelite Home,Supplies and Services,324117,Provisions E324,08-Jul-2021,000007623773266,TESCO STORES 2371,5411,Catering costs - provisions,189.40,0.00,189.40
Children and Young Peoples Services,Head of Childrens Social Care,085333,Coxhoe Satelite Home,Supplies and Services,304221,Equipment and Materials,08-Jul-2021,000007623773272,B & Q 1343,5200,Direct materials,6.18,0.00,6.18
Children and Young Peoples Services,Head of Childrens Social Care,085357,LAC Bespoke Placements,Supplies and Services,384999,Miscellaneous Expenses,08-Jul-2021,000007623773300,Amazon.co.uk 3C0VN67C5,5969,Other expenses,13.65,0.00,13.65
Children and Young Peoples Services,Head of Childrens Social Care,085351,Framwellgate Moor CU,Supplies and Services,348037,Subsistence E348,08-Jul-2021,000007623773310,Just Eat,5814,Subsistence,33.27,0.00,33.27
Children and Young Peoples Services,Head of Childrens Social Care,085351,Framwellgate Moor CU,Supplies and Services,304403,Equipment and Materials,08-Jul-2021,000007623773314,AMZNMKTPLACE AMAZON.CO,5999,Other consumables,4.79,0.80,3.99
Children and Young Peoples Services,Head of Childrens Social Care,085351,Framwellgate Moor CU,Supplies and Services,304403,Equipment and Materials,08-Jul-2021,000007623773318,AMZNMKTPLACE AMAZON.CO,5999,Other consumables,8.91,1.49,7.42
Children and Young Peoples Services,Head of Childrens Social Care,085351,Framwellgate Moor CU,Supplies and Services,324117,Provisions E324,08-Jul-2021,000007623773336,ASDA GROCERIES ONLINE,5411,Catering costs - provisions,95.29,0.00,95.29
Children and Young Peoples Services,Head of Childrens Social Care,085351,Framwellgate Moor CU,Supplies and Services,304403,Equipment and Materials,08-Jul-2021,000007623773342,AMZNMktplace,5999,Other consumables,7.99,1.33,6.66
Children and Young Peoples Services,Head of Childrens Social Care,085633,Families First Chester-Le-Street,Supplies and Services,364340,Grants to Voluntary Organisations,08-Jul-2021,000007623773386,WWW.GONORTHEAST.CO.UK,4111,Contact expenses,20.00,0.00,20.00
Children and Young Peoples Services,Head of Childrens Social Care,085633,Families First Chester-Le-Street,Supplies and Services,364340,Grants to Voluntary Organisations,08-Jul-2021,000007623773390,WWW.GONORTHEAST.CO.UK,4111,Contact expenses,20.00,0.00,20.00
Neighbourhoods and Climate Change,Environmental Services,010301,C&G - North Grounds Maintenance,Supplies and Services,304221,Equipment and Materials,08-Jul-2021,000007623773410,GREENHAM TRADING LTD,5085,Direct materials,87.71,0.00,87.71
Resources BK0010,Digital and Customer Services,065335,School Services - Implementations,Supplies and Services,304639,Equipment and Materials,08-Jul-2021,000007623773438,ALIEXPRESS,5311,Technicians-supplies,73.06,0.00,73.06
Resources BK0010,Digital and Customer Services,065335,School Services - Implementations,Supplies and Services,304639,Equipment and Materials,08-Jul-2021,000007623773444,SCREWFIX DIRECT,5211,Technicians-supplies,21.69,0.00,21.69
Resources BK0010,Digital and Customer Services,065335,School Services - Implementations,Supplies and Services,304639,Equipment and Materials,08-Jul-2021,000007623773448,ALIEXPRESS.COM,5311,Technicians-supplies,-48.67,0.00,-48.67
"Regeneration, Economy and Growth",Business Durham CL0850,030690,Durham Dales Centre - Tourist Information Centre,Supplies and Services,304337,Equipment and Materials,08-Jul-2021,000007623773502,ZELLY UK TRADING LTD,5651,Consumables/items for resale,376.20,0.00,376.20
Children and Young Peoples Services,Head of Childrens Social Care,085334,West Rainton Satelite Home,Supplies and Services,324117,Provisions E324,08-Jul-2021,000007623773568,WM MORRISONS STORE,5411,Catering costs - provisions,20.00,0.00,20.00
"Regeneration, Economy and Growth",Development and Housing,031576,B& B - Temp Accom,Supplies and Services,364320,Grants to Voluntary Organisations,08-Jul-2021,000007623773574,BUDGET H EXPRESS HOTEL,7011,Accommodation assistance,34.00,0.00,34.00
"Regeneration, Economy and Growth",Development and Housing,031576,B& B - Temp Accom,Supplies and Services,364320,Grants to Voluntary Organisations,08-Jul-2021,000007623773576,BUDGET H EXPRESS HOTEL,7011,Accommodation assistance,500.00,0.00,500.00
Children and Young Peoples Services,Head of Education and Skills,071802,Louisa Cent Nursery,Supplies and Services,328041,Clothing uniforms and laundry E328,08-Jul-2021,000007623773616,W BOYES & CO LTD CONSE,5310,Clothing uniforms and laundry,1.95,0.00,1.95
Children and Young Peoples Services,Head of Childrens Social Care,085332,Middlestone Moor CU,Transport,235057,Public Transport,08-Jul-2021,000007623773680,ARRIVA UK BUS,4131,Staff travelling,14.80,0.00,14.80
"Regeneration, Economy and Growth",Culture Sport and Tourism,054233,Bishop Auckland Town Hall Library,Supplies and Services,324117,Provisions E324,08-Jul-2021,000007623773716,WM MORRISONS STORE,5411,Catering costs - provisions,42.08,0.00,42.08
Children and Young Peoples Services,Head of Childrens Social Care,085331,New Lea Childrens Home,Supplies and Services,332047,Printing Stationery and Gen Off Exps,08-Jul-2021,000007623773746,CINEWORLD,7832,Stationery,21.73,0.00,21.73
"Regeneration, Economy and Growth",Communications Management,060270,Communications and Marketing,Supplies and Services,336005,Advertising E336,08-Jul-2021,000007623773756,FACEBK WXD9Z3B4B2,7311,Advertising other than for staff,500.00,0.00,500.00
Neighbourhoods and Climate Change,Technical Services CM0300,010010,Gilesgate DSHI 08/09,Supplies and Services,372009,Subscriptions E372,08-Jul-2021,000007623773760,CREATIVE_FED,8699,Subscriptions 372009,25.00,0.00,25.00
Resources BK0010,COVID19 - Resources,091007,COVID19 - Resources,Supplies and Services,340001,Postages E340,08-Jul-2021,000007623773764,ROYAL MAIL REDIRECTION,9402,Postages,216.00,0.00,216.00
Adult and Health Services,Head of Adults,055310,Positive Journeys (Tudhoe),Supplies and Services,304403,Equipment and Materials,08-Jul-2021,000007623773778,AMZNMktplace,5999,Other consumables,5.76,0.96,4.80
Adult and Health Services,Head of Adults,055310,Positive Journeys (Tudhoe),Supplies and Services,304403,Equipment and Materials,08-Jul-2021,000007623773782,AMZNMktplace,5999,Other consumables,9.99,1.67,8.32
Adult and Health Services,Head of Adults,055310,Positive Journeys (Tudhoe),Supplies and Services,304403,Equipment and Materials,08-Jul-2021,000007623773786,AMZNMktplace,5999,Other consumables,40.26,6.71,33.55
"Regeneration, Economy and Growth",Development and Housing,031576,B& B - Temp Accom,Supplies and Services,364320,Grants to Voluntary Organisations,08-Jul-2021,000007623773800,CROXDALE INN,5812,Accommodation assistance,120.00,0.00,120.00
"Regeneration, Economy and Growth",Culture Sport and Tourism,011291,Peterlee Leisure Centre,Supplies and Services,372009,Subscriptions E372,08-Jul-2021,000007628175590,TVLICENSING.CO.UK,7392,Subscriptions 372009,159.00,0.00,159.00
"Regeneration, Economy and Growth",Culture Sport and Tourism,011292,Seaham Leisure Centre,Supplies and Services,372009,Subscriptions E372,08-Jul-2021,000007628175594,TVLICENSING.CO.UK,7392,Subscriptions 372009,159.00,0.00,159.00
Neighbourhoods and Climate Change,Environmental Services,011060,C&G - Hardwick Park Catering,Supplies and Services,324117,Provisions E324,08-Jul-2021,000007628176490,BATLEYS PERTH,5300,Catering costs - provisions,157.56,26.26,131.30
Neighbourhoods and Climate Change,Environmental Services,011060,C&G - Hardwick Park Catering,Supplies and Services,324117,Provisions E324,08-Jul-2021,000007628176490 - 1,BATLEYS PERTH,5300,Catering costs - provisions,48.62,,48.62
Neighbourhoods and Climate Change,Environmental Services,011060,C&G - Hardwick Park Catering,Supplies and Services,324117,Provisions E324,08-Jul-2021,000007628176498,BATLEYS PERTH,5300,Catering costs - provisions,46.56,7.76,38.80
Neighbourhoods and Climate Change,Environmental Services,011060,C&G - Hardwick Park Catering,Supplies and Services,324117,Provisions E324,08-Jul-2021,000007628176498 - 1,BATLEYS PERTH,5300,Catering costs - provisions,7.48,,7.48
"Regeneration, Economy and Growth",Corporate Property and Land,021235,Catering - Wharton Park,Supplies and Services,324117,Provisions E324,08-Jul-2021,7628178004,BATLEYS PERTH,5300,Catering costs - provisions,150.36,25.06,125.30
"Regeneration, Economy and Growth",Corporate Property and Land,021235,Catering - Wharton Park,Supplies and Services,324117,Provisions E324,08-Jul-2021,7628178004 - 1,BATLEYS PERTH,5300,Catering costs - provisions,6.93,,6.93
Children and Young Peoples Services,Head of Early Help Inclusion & Vulnerable Children.,085954,Walworth,Supplies and Services,304403,Equipment and Materials,09-Jul-2021,000007623772734,AMZNMktplace,5999,Other consumables,64.95,10.85,54.10
Children and Young Peoples Services,Head of Education and Skills,071732,Dean Bank Childcare,Supplies and Services,304403,Equipment and Materials,09-Jul-2021,000007623772922,AMZNMktplace,5999,Other consumables,99.50,0.00,99.50
Children and Young Peoples Services,Head of Education and Skills,071732,Dean Bank Childcare,Supplies and Services,304403,Equipment and Materials,09-Jul-2021,000007623772926,AMZNMktplace,5999,Other consumables,4.99,0.00,4.99
Children and Young Peoples Services,Head of Education and Skills,071732,Dean Bank Childcare,Supplies and Services,304403,Equipment and Materials,09-Jul-2021,000007623772930,AMZNMktplace,5999,Other consumables,5.50,0.92,4.58
Children and Young Peoples Services,Head of Childrens Social Care,085351,Framwellgate Moor CU,Supplies and Services,304403,Equipment and Materials,09-Jul-2021,000007623773344,AMZNMktplace,5999,Other consumables,69.99,11.67,58.32
"Regeneration, Economy and Growth",Business Durham CL0850,030689,Inward Investment and Aftercare,Supplies and Services,304999,Equipment and Materials,09-Jul-2021,000007628175058,MAILCHIMP MONTHLY,5968,Misc equipment tools and materials,76.84,0.00,76.84
"Regeneration, Economy and Growth",Transport and Contracted Services,032170,Integrated Passenger Transport,Supplies and Services,304259,Equipment and Materials,09-Jul-2021,000007628175142,SP MID-ULSTER ROTATI,5533,Equipment-purchase and rental,97.81,0.00,97.81
Children and Young Peoples Services,Head of Childrens Social Care,085501,Child Care Cases Legal Expenses,Supplies and Services,304403,Equipment and Materials,09-Jul-2021,000007628175218,STOCKTON BOROUGH COUNC,9399,Other consumables,11.00,0.00,11.00
Children and Young Peoples Services,Head of Education and Skills,075021,DurhamWorks Progression and Learning,Supplies and Services,364301,Grants to Voluntary Organisations,09-Jul-2021,000007628175230,HARTLEPOOL BC,9399,Hardship,11.00,0.00,11.00
Children and Young Peoples Services,Head of Education and Skills,075021,DurhamWorks Progression and Learning,Supplies and Services,364301,Grants to Voluntary Organisations,09-Jul-2021,000007628175244,SCREWFIX DIRECT,5211,Hardship,49.38,8.23,41.15
Children and Young Peoples Services,Head of Education and Skills,075021,DurhamWorks Progression and Learning,Supplies and Services,364301,Grants to Voluntary Organisations,09-Jul-2021,000007628175244 - 1,SCREWFIX DIRECT,5211,Hardship,20.07,,20.07
Children and Young Peoples Services,Head of Education and Skills,075021,DurhamWorks Progression and Learning,Supplies and Services,364301,Grants to Voluntary Organisations,09-Jul-2021,000007628175248,SCREWFIX DIRECT,5211,Hardship,47.94,7.99,39.95
Children and Young Peoples Services,Head of Education and Skills,075021,DurhamWorks Progression and Learning,Supplies and Services,364301,Grants to Voluntary Organisations,09-Jul-2021,000007628175248 - 1,SCREWFIX DIRECT,5211,Hardship,40.04,,40.04
"Regeneration, Economy and Growth",Culture Sport and Tourism,011215,Museums Heritage & Collections 011215,Supplies and Services,304259,Equipment and Materials,09-Jul-2021,000007628175270,Amazon.co.uk 8V5EP47I5,5969,Equipment-purchase and rental,14.70,2.46,12.24
Children and Young Peoples Services,Head of Childrens Social Care,085341,High Etherley Satelite Home,Supplies and Services,324117,Provisions E324,09-Jul-2021,000007628175370,TESCO STORES 6329,5411,Catering costs - provisions,78.10,0.00,78.10
Children and Young Peoples Services,Head of Childrens Social Care,085341,High Etherley Satelite Home,Supplies and Services,304221,Equipment and Materials,09-Jul-2021,000007628175378,B & Q 1120,5200,Direct materials,10.04,0.00,10.04
Children and Young Peoples Services,Head of Childrens Social Care,085341,High Etherley Satelite Home,Supplies and Services,304221,Equipment and Materials,09-Jul-2021,000007628175386,B & Q 1221,5200,Direct materials,196.38,0.00,196.38
"Regeneration, Economy and Growth",Development and Housing,030544,Rural Employability - Client Engagement,Employees,040149,Recruitment Instruction and Training,09-Jul-2021,000007628175606,WWW.MOBILETESTING.UK.C,8220,Training-all costs,185.00,0.00,185.00
Children and Young Peoples Services,Head of Childrens Social Care,085380,Operations Manager LAC Resources,Supplies and Services,304403,Equipment and Materials,09-Jul-2021,000007628175612,AMZNMktplace,5999,Other consumables,31.98,5.33,26.65
Children and Young Peoples Services,Head of Childrens Social Care,085380,Operations Manager LAC Resources,Supplies and Services,324117,Provisions E324,09-Jul-2021,000007628175624,ASDA GEORGE COM LEEDS,5411,Catering costs - provisions,72.95,0.00,72.95
Children and Young Peoples Services,Head of Childrens Social Care,085380,Operations Manager LAC Resources,Supplies and Services,328041,Clothing uniforms and laundry E328,09-Jul-2021,000007628175628,ARGOS LTD,5310,Clothing uniforms and laundry,61.38,0.00,61.38
Children and Young Peoples Services,Head of Early Help Inclusion & Vulnerable Children.,085962,Aycliffe Secure - Durham,Supplies and Services,332047,Printing Stationery and Gen Off Exps,09-Jul-2021,000007628175770,Vue Entertainment Ltd,7832,Stationery,14.97,0.00,14.97
Children and Young Peoples Services,Head of Early Help Inclusion & Vulnerable Children.,085952,Secure Education,Supplies and Services,304403,Equipment and Materials,09-Jul-2021,000007628175774,AMZNMKTPLACE AMAZON.CO,5999,Other consumables,4.99,0.83,4.16
Children and Young Peoples Services,Head of Early Help Inclusion & Vulnerable Children.,085952,Secure Education,Supplies and Services,304403,Equipment and Materials,09-Jul-2021,000007628175776,AMZNMKTPLACE AMAZON.CO,5999,Other consumables,4.99,0.83,4.16
Children and Young Peoples Services,Head of Early Help Inclusion & Vulnerable Children.,085952,Secure Education,Supplies and Services,304403,Equipment and Materials,09-Jul-2021,000007628175778,AMZNMKTPLACE AMAZON.CO,5999,Other consumables,4.99,0.83,4.16
Children and Young Peoples Services,Head of Early Help Inclusion & Vulnerable Children.,085952,Secure Education,Supplies and Services,304403,Equipment and Materials,09-Jul-2021,000007628175782,AMZNMKTPLACE AMAZON.CO,5999,Other consumables,4.99,0.83,4.16
Children and Young Peoples Services,Head of Early Help Inclusion & Vulnerable Children.,085952,Secure Education,Supplies and Services,304403,Equipment and Materials,09-Jul-2021,000007628175790,AMZNMKTPLACE AMAZON.CO,5999,Other consumables,4.99,0.83,4.16
Resources BK0010,Digital and Customer Services,065481,Technical Services 065481,Supplies and Services,372009,Subscriptions E372,09-Jul-2021,000007628175980,WEB NETWORKSOLUTIONS,5968,Subscriptions 372009,174.62,0.00,174.62
Children and Young Peoples Services,Head of Childrens Social Care,085342,16 Hickstead Rise (previously 9 Cedar Ave),Supplies and Services,348037,Subsistence E348,09-Jul-2021,000007628175998,Pizza Go,5812,Subsistence,23.95,0.00,23.95
Children and Young Peoples Services,Head of Education and Skills,071732,Dean Bank Childcare,Supplies and Services,304259,Equipment and Materials,09-Jul-2021,000007628176054,Amazon Music 784HB3095,5735,Equipment-purchase and rental,14.99,0.00,14.99
Children and Young Peoples Services,Head of Education and Skills,071732,Dean Bank Childcare,Supplies and Services,304403,Equipment and Materials,09-Jul-2021,000007628176060,AMZNMktplace,5999,Other consumables,159.20,0.00,159.20
Children and Young Peoples Services,Head of Education and Skills,071732,Dean Bank Childcare,Supplies and Services,324117,Provisions E324,09-Jul-2021,000007628176062,B&M 035 - SHILDON,5399,Catering costs - provisions,233.39,0.00,233.39
Children and Young Peoples Services,Head of Education and Skills,071732,Dean Bank Childcare,Supplies and Services,324117,Provisions E324,09-Jul-2021,000007628176066,TESCO STORES 2916,5411,Catering costs - provisions,139.35,0.00,139.35
Children and Young Peoples Services,Head of Education and Skills,071732,Dean Bank Childcare,Supplies and Services,328041,Clothing uniforms and laundry E328,09-Jul-2021,000007628176078,ORIGINAL FACTORY S,5311,Clothing uniforms and laundry,30.20,0.00,30.20
"Regeneration, Economy and Growth",Culture Sport and Tourism,054813,Gala Theatre - Technical,Supplies and Services,384999,Miscellaneous Expenses,09-Jul-2021,000007628176110,SWANFLIGHT.COM,5948,Other expenses,161.82,0.00,161.82
"Regeneration, Economy and Growth",Culture Sport and Tourism,054813,Gala Theatre - Technical,Supplies and Services,304403,Equipment and Materials,09-Jul-2021,000007628176112,AMZNMktplace,5999,Other consumables,33.98,0.00,33.98
Children and Young Peoples Services,Head of Childrens Social Care,085334,West Rainton Satelite Home,Transport,215995,Running Costs of Vehicles,09-Jul-2021,000007628176158,GULF WEST RAINTON,5541,Vehicle running expenses,40.00,0.00,40.00
Neighbourhoods and Climate Change,Environmental Services,026591,C&G - Hardwick Park,Supplies and Services,304083,Equipment and Materials,09-Jul-2021,000007628176210,WWW.NISBETS.COM,5964,Catering equipment,28.78,0.00,28.78
Children and Young Peoples Services,Head of Childrens Social Care,085332,Middlestone Moor CU,Supplies and Services,304999,Equipment and Materials,09-Jul-2021,000007628176238,Amazon Prime 4K6AC7RS5,5968,Misc equipment tools and materials,7.99,0.00,7.99
"Regeneration, Economy and Growth",Development and Housing,030776,LINKCD Flexible Fund,Supplies and Services,304259,Equipment and Materials,09-Jul-2021,000007628176258,GEN REGISTER OFFICE,9399,Equipment-purchase and rental,38.00,0.00,38.00
"Regeneration, Economy and Growth",Development and Housing,031576,B& B - Temp Accom,Supplies and Services,364320,Grants to Voluntary Organisations,09-Jul-2021,000007628176266,BUDGET H EXPRESS HOTEL,7011,Accommodation assistance,25.44,4.24,21.20
"Regeneration, Economy and Growth",Development and Housing,031576,B& B - Temp Accom,Supplies and Services,364320,Grants to Voluntary Organisations,09-Jul-2021,000007628176266 - 1,BUDGET H EXPRESS HOTEL,7011,Accommodation assistance,63.56,,63.56
"Regeneration, Economy and Growth",Development and Housing,031623,Rough Sleeping,Transport,235073,Public Transport,09-Jul-2021,000007628176322,GO NORTH EAST LIMITED,4131,Travel-clients/students/children,7.00,0.00,7.00
"Regeneration, Economy and Growth",Development and Housing,031576,B& B - Temp Accom,Supplies and Services,352001,Conference Expenses,09-Jul-2021,000007628176328,AYCLIFFE BIZ,7011,Conferencesseminars fees etc,266.00,0.00,266.00
"Regeneration, Economy and Growth",Development and Housing,031576,B& B - Temp Accom,Supplies and Services,364320,Grants to Voluntary Organisations,09-Jul-2021,000007628176334,AYCLIFFE BIZ,7011,Accommodation assistance,266.00,0.00,266.00
"Regeneration, Economy and Growth",Development and Housing,031576,B& B - Temp Accom,Supplies and Services,364320,Grants to Voluntary Organisations,09-Jul-2021,000007628176338,AYCLIFFE BIZ,7011,Accommodation assistance,76.00,0.00,76.00
Children and Young Peoples Services,Head of Early Help Inclusion & Vulnerable Children.,085956,Lumley,Supplies and Services,384302,Miscellaneous Expenses,09-Jul-2021,000007628176388,AMZNMKTPLACE AMAZON.CO,5999,Activity expenses,35.22,5.87,29.35
Children and Young Peoples Services,Head of Early Help Inclusion & Vulnerable Children.,085956,Lumley,Supplies and Services,384302,Miscellaneous Expenses,09-Jul-2021,000007628176388 - 1,AMZNMKTPLACE AMAZON.CO,5999,Activity expenses,16.66,,16.66
Children and Young Peoples Services,Head of Early Help Inclusion & Vulnerable Children.,085954,Walworth,Supplies and Services,384302,Miscellaneous Expenses,09-Jul-2021,000007628176396,AMZNMKTPLACE AMAZON.CO,5999,Activity expenses,3.81,0.00,3.81
Neighbourhoods and Climate Change,Environmental Services,026591,C&G - Hardwick Park,Supplies and Services,304221,Equipment and Materials,09-Jul-2021,000007628176446,SCREWFIX DIRECT,5211,Direct materials,18.97,3.16,15.81
Neighbourhoods and Climate Change,Environmental Services,011060,C&G - Hardwick Park Catering,Supplies and Services,324117,Provisions E324,09-Jul-2021,000007628176508,FREEMAN CATERING BUTCH,5422,Catering costs - provisions,37.98,0.00,37.98
Neighbourhoods and Climate Change,Environmental Services,011060,C&G - Hardwick Park Catering,Supplies and Services,324117,Provisions E324,09-Jul-2021,000007628176510,FREEMAN CATERING BUTCH,5422,Catering costs - provisions,45.82,0.00,45.82
Neighbourhoods and Climate Change,Environmental Services,011060,C&G - Hardwick Park Catering,Premises,145009,Cleaning and Domestic Supplies,09-Jul-2021,000007628176516,ALLIANCE DISPOSABLES L,2842,Other cleaning and domestic costs,80.35,13.39,66.96
Neighbourhoods and Climate Change,Environmental Services,031238,North Pennines - Tees Swale,Supplies and Services,340001,Postages E340,09-Jul-2021,000007628176528,POST OFFICE COUNTER,9402,Postages,16.85,0.00,16.85
"Regeneration, Economy and Growth",Corporate Property and Land,021234,Catering - Locomotion,Supplies and Services,324117,Provisions E324,09-Jul-2021,000007628176538,FREEMAN CATERING BUTCH,5422,Catering costs - provisions,24.67,0.00,24.67
"Regeneration, Economy and Growth",Corporate Property and Land,021234,Catering - Locomotion,Premises,145009,Cleaning and Domestic Supplies,09-Jul-2021,000007628176544,ALLIANCE DISPOSABLES L,2842,Other cleaning and domestic costs,28.72,4.79,23.93
"Regeneration, Economy and Growth",Corporate Property and Land,021234,Catering - Locomotion,Supplies and Services,324117,Provisions E324,09-Jul-2021,000007628176552,JR HOLLAND FOODSERVICE,5499,Catering costs - provisions,68.80,0.00,68.80
"Regeneration, Economy and Growth",Corporate Property and Land,021234,Catering - Locomotion,Supplies and Services,324117,Provisions E324,09-Jul-2021,000007628176556,JR HOLLAND FOODSERVICE,5499,Catering costs - provisions,2.43,0.00,2.43
Children and Young Peoples Services,Head of Childrens Social Care,085352,New Childrens Home (previously Tow Law),Supplies and Services,304999,Equipment and Materials,09-Jul-2021,000007628176658,BOOTS UK ECOMM,5912,Misc equipment tools and materials,59.99,0.00,59.99
"Regeneration, Economy and Growth",Business Durham CL0850,030672,Operations Team,Supplies and Services,324117,Provisions E324,09-Jul-2021,000007628176850,SumUp Durham Cricket,5811,Catering costs - provisions,114.75,0.00,114.75
Children and Young Peoples Services,Head of Education and Skills,078554,Adult Skills-Main,Supplies and Services,328041,Clothing uniforms and laundry E328,09-Jul-2021,000007628176932,ELVET FLOWERS,5992,Clothing uniforms and laundry,50.00,0.00,50.00
Children and Young Peoples Services,Head of Childrens Social Care,085357,LAC Bespoke Placements,Supplies and Services,384999,Miscellaneous Expenses,09-Jul-2021,000007628176944,Amazon.co.uk 3O90W0JD5,5969,Other expenses,15.66,0.00,15.66
Children and Young Peoples Services,Head of Childrens Social Care,085351,Framwellgate Moor CU,Supplies and Services,304403,Equipment and Materials,09-Jul-2021,000007628176952,AMZNMktplace,5999,Other consumables,11.35,1.89,9.46
Children and Young Peoples Services,Head of Childrens Social Care,085351,Framwellgate Moor CU,Supplies and Services,304403,Equipment and Materials,09-Jul-2021,000007628176956,AMZNMKTPLACE AMAZON.CO,5999,Other consumables,10.70,0.00,10.70
Adult and Health Services,Head of Adults,055643,Hawthorn House LD Respite Unit,Supplies and Services,324117,Provisions E324,09-Jul-2021,000007628177028,FREEMAN CATERING BUTCH,5422,Catering costs - provisions,37.08,0.00,37.08
Adult and Health Services,Head of Adults,055643,Hawthorn House LD Respite Unit,Supplies and Services,324117,Provisions E324,09-Jul-2021,000007628177032,JR HOLLAND FOODSERVICE,5499,Catering costs - provisions,19.38,0.00,19.38
Adult and Health Services,Head of Adults,055643,Hawthorn House LD Respite Unit,Supplies and Services,324117,Provisions E324,09-Jul-2021,000007628177036,JR HOLLAND FOODSERVICE,5499,Catering costs - provisions,19.67,0.00,19.67
Children and Young Peoples Services,Head of Childrens Social Care,085334,West Rainton Satelite Home,Supplies and Services,324117,Provisions E324,09-Jul-2021,000007628177048,TESCO STORES 2371,5411,Catering costs - provisions,141.98,0.00,141.98
Children and Young Peoples Services,Head of Childrens Social Care,085334,West Rainton Satelite Home,Supplies and Services,324117,Provisions E324,09-Jul-2021,000007628177052,TESCO STORES 2371,5411,Catering costs - provisions,18.70,0.00,18.70
Children and Young Peoples Services,Head of Childrens Social Care,085334,West Rainton Satelite Home,Supplies and Services,324117,Provisions E324,09-Jul-2021,000007628177060,TESCO STORES 2371,5411,Catering costs - provisions,9.90,0.00,9.90
Children and Young Peoples Services,Head of Childrens Social Care,085363,LAC & Permanence Team 3,Supplies and Services,338045,Services,09-Jul-2021,000007628177134,DARLINGTON BC INTERNET,9399,Legal expenses 338045,22.00,0.00,22.00
Children and Young Peoples Services,Head of Childrens Social Care,085363,LAC & Permanence Team 3,Supplies and Services,338045,Services,09-Jul-2021,000007628177136,DARLINGTON BC INTERNET,9399,Legal expenses 338045,22.00,0.00,22.00
Children and Young Peoples Services,Head of Childrens Social Care,085363,LAC & Permanence Team 3,Supplies and Services,338045,Services,09-Jul-2021,000007628177142,Durham County CNCL,9399,Legal expenses 338045,44.00,0.00,44.00
Resources BK0010,Digital and Customer Services,065335,School Services - Implementations,Supplies and Services,304639,Equipment and Materials,09-Jul-2021,000007628177150,ZANDPARTS EUR,5732,Technicians-supplies,64.29,0.00,64.29
Resources BK0010,Procurement Sales & Business Services,065503,Business Support - Spectrum,Supplies and Services,384999,Miscellaneous Expenses,09-Jul-2021,000007628177274,LEGO System A/S,5945,Other expenses,65.00,0.00,65.00
Resources BK0010,Procurement Sales & Business Services,065503,Business Support - Spectrum,Supplies and Services,308011,Furniture,09-Jul-2021,000007628177276,WF WAYFAIR3606702864,5712,Furniture repair and replacement,157.98,0.00,157.98
Resources BK0010,Procurement Sales & Business Services,065503,Business Support - Spectrum,Supplies and Services,304259,Equipment and Materials,09-Jul-2021,000007628177284,Durham County CNCL,9399,Equipment-purchase and rental,11.00,0.00,11.00
"Regeneration, Economy and Growth",Culture Sport and Tourism,054235,Bishop Auckland Town Hall Cafe,Supplies and Services,324117,Provisions E324,09-Jul-2021,000007628177318,JR HOLLAND FOODSERVICE,5499,Catering costs - provisions,254.15,0.00,254.15
Children and Young Peoples Services,Head of Childrens Social Care,085334,West Rainton Satelite Home,Supplies and Services,324117,Provisions E324,09-Jul-2021,000007628177394,TESCO STORES 6329,5411,Catering costs - provisions,201.65,0.00,201.65
Children and Young Peoples Services,Head of Childrens Social Care,085334,West Rainton Satelite Home,Supplies and Services,304999,Equipment and Materials,09-Jul-2021,000007628177400,SUPERDRUG STORES PLC,5912,Misc equipment tools and materials,5.00,0.00,5.00
Children and Young Peoples Services,Head of Childrens Social Care,085334,West Rainton Satelite Home,Supplies and Services,304999,Equipment and Materials,09-Jul-2021,000007628177404,SUPERDRUG STORES PLC,5912,Misc equipment tools and materials,13.29,0.00,13.29
Children and Young Peoples Services,Head of Childrens Social Care,085334,West Rainton Satelite Home,Supplies and Services,304221,Equipment and Materials,09-Jul-2021,000007628177408,B & Q 1120,5200,Direct materials,48.00,0.00,48.00
Children and Young Peoples Services,Head of Childrens Social Care,085334,West Rainton Satelite Home,Supplies and Services,328041,Clothing uniforms and laundry E328,09-Jul-2021,000007628177416,POUNDLAND LTD 1554,5310,Clothing uniforms and laundry,13.50,0.00,13.50
Children and Young Peoples Services,Head of Childrens Social Care,085334,West Rainton Satelite Home,Supplies and Services,328041,Clothing uniforms and laundry E328,09-Jul-2021,000007628177418,POUNDLAND LTD 1554,5310,Clothing uniforms and laundry,4.00,0.00,4.00
Children and Young Peoples Services,Head of Childrens Social Care,085334,West Rainton Satelite Home,Supplies and Services,328041,Clothing uniforms and laundry E328,09-Jul-2021,000007628177422,POUNDLAND LTD 1554,5310,Clothing uniforms and laundry,15.25,0.00,15.25
Children and Young Peoples Services,Head of Childrens Social Care,085334,West Rainton Satelite Home,Supplies and Services,328041,Clothing uniforms and laundry E328,09-Jul-2021,000007628177432,POUNDLAND LTD 1554,5310,Clothing uniforms and laundry,3.00,0.00,3.00
Children and Young Peoples Services,Head of Childrens Social Care,085334,West Rainton Satelite Home,Supplies and Services,328041,Clothing uniforms and laundry E328,09-Jul-2021,000007628177440,POUNDLAND LTD 1554,5310,Clothing uniforms and laundry,2.00,0.00,2.00
"Regeneration, Economy and Growth",Development and Housing,031576,B& B - Temp Accom,Supplies and Services,364320,Grants to Voluntary Organisations,09-Jul-2021,000007628177444,TOAST LETTINGS,7011,Accommodation assistance,320.00,0.00,320.00
"Regeneration, Economy and Growth",Business Durham CL0850,030671,Business Space 030671,Supplies and Services,304403,Equipment and Materials,09-Jul-2021,000007628177450,AMZNMktplace,5999,Other consumables,37.06,0.00,37.06
Children and Young Peoples Services,Head of Childrens Social Care,085333,Coxhoe Satelite Home,Supplies and Services,324117,Provisions E324,09-Jul-2021,000007628177552,TESCO STORES 2916,5411,Catering costs - provisions,137.86,0.00,137.86
Children and Young Peoples Services,Head of Childrens Social Care,085333,Coxhoe Satelite Home,Supplies and Services,324117,Provisions E324,09-Jul-2021,000007628177556,TESCO STORES 2916,5411,Catering costs - provisions,42.70,0.00,42.70
Children and Young Peoples Services,Head of Education and Skills,071802,Louisa Cent Nursery,Supplies and Services,324117,Provisions E324,09-Jul-2021,000007628177568,ASDA GROCERIES ONLINE,5411,Catering costs - provisions,171.55,0.00,171.55
Children and Young Peoples Services,Head of Education and Skills,071802,Louisa Cent Nursery,Supplies and Services,324117,Provisions E324,09-Jul-2021,000007628177580,ASDA GROCERIES ONLINE,5411,Catering costs - provisions,-0.69,0.00,-0.69
Children and Young Peoples Services,Head of Childrens Social Care,085380,Operations Manager LAC Resources,Supplies and Services,304403,Equipment and Materials,09-Jul-2021,000007628177778,WWW.PARTYDELIGHTS.CO.U,5947,Other consumables,45.89,0.00,45.89
"Regeneration, Economy and Growth",Culture Sport and Tourism,054233,Bishop Auckland Town Hall Library,Supplies and Services,324117,Provisions E324,09-Jul-2021,000007628177800,HERON FOODS,5411,Catering costs - provisions,2.50,0.00,2.50
Adult and Health Services,Head of Adults,052229,Countywide AMHP Team,Supplies and Services,338048,Services,09-Jul-2021,000007628177852,HMCOURTS-SERVICE.G,9222,Court costs 338048,75.00,0.00,75.00
"Regeneration, Economy and Growth",Development and Housing,031576,B& B - Temp Accom,Supplies and Services,364320,Grants to Voluntary Organisations,09-Jul-2021,000007628177916,CROXDALE INN,5812,Accommodation assistance,150.00,0.00,150.00
"Regeneration, Economy and Growth",Corporate Property and Land,030691,Catering - Durham Dales Centre,Supplies and Services,324117,Provisions E324,09-Jul-2021,7628176974,FREEMAN CATERING BUTCH,5422,Catering costs - provisions,63.43,0.00,63.43
"Regeneration, Economy and Growth",Corporate Property and Land,021235,Catering - Wharton Park,Supplies and Services,324117,Provisions E324,09-Jul-2021,7628178018,JR HOLLAND FOODSERVICE,5499,Catering costs - provisions,25.91,0.00,25.91
"Regeneration, Economy and Growth",Business Durham CL0850,030689,Inward Investment and Aftercare,Third Party Payments,430100,Rendered by Private Contractors,10-Jul-2021,000007628175060,BLS monday.com,7399,Payments to sub-contractors,148.80,0.00,148.80
Children and Young Peoples Services,Head of Education and Skills,071801,Selby Cottage Childcare Centre,Supplies and Services,304403,Equipment and Materials,10-Jul-2021,000007628175120,AMZNMKTPLACE AMAZON.CO,5999,Other consumables,24.38,4.07,20.31
Children and Young Peoples Services,Head of Education and Skills,071801,Selby Cottage Childcare Centre,Supplies and Services,304403,Equipment and Materials,10-Jul-2021,000007628175128,AMZNMKTPLACE AMAZON.CO,5999,Other consumables,16.99,2.83,14.16
Neighbourhoods and Climate Change,Environmental Services,031070,E&D - Landscape 031070,Supplies and Services,304403,Equipment and Materials,10-Jul-2021,000007628175146,AMZNMktplace,5999,Other consumables,3.99,0.67,3.32
Children and Young Peoples Services,Head of Childrens Social Care,085331,New Lea Childrens Home,Supplies and Services,348037,Subsistence E348,10-Jul-2021,000007628175540,MCDONALDS,5814,Subsistence,7.26,0.00,7.26
Children and Young Peoples Services,Head of Childrens Social Care,085331,New Lea Childrens Home,Supplies and Services,304259,Equipment and Materials,10-Jul-2021,000007628175550,JD SPORTS 193,5941,Equipment-purchase and rental,50.10,0.00,50.10
Children and Young Peoples Services,Head of Childrens Social Care,085331,New Lea Childrens Home,Supplies and Services,304403,Equipment and Materials,10-Jul-2021,000007628175556,CEX,5065,Other consumables,155.00,0.00,155.00
Children and Young Peoples Services,Head of Childrens Social Care,085331,New Lea Childrens Home,Supplies and Services,324117,Provisions E324,10-Jul-2021,000007628175558,ASDA SUPERSTORE,5411,Catering costs - provisions,11.48,0.00,11.48
Children and Young Peoples Services,Head of Childrens Social Care,085332,Middlestone Moor CU,Transfer Payments,515140,Social Services Clients,10-Jul-2021,000007628175674,JD SPORTS INTERNET,5941,Clothing allowances,54.39,0.00,54.39
Children and Young Peoples Services,Head of Childrens Social Care,085332,Middlestone Moor CU,Supplies and Services,324117,Provisions E324,10-Jul-2021,000007628175682,ASDA SUPERSTORE 4987,5411,Catering costs - provisions,48.27,0.00,48.27
Children and Young Peoples Services,Head of Childrens Social Care,085332,Middlestone Moor CU,Supplies and Services,324117,Provisions E324,10-Jul-2021,000007628175698,LIDL GB SPENNYMOOR,5411,Catering costs - provisions,4.27,0.00,4.27
Children and Young Peoples Services,Head of Childrens Social Care,085358,Orchard House Sacriston Solo Home,Supplies and Services,324117,Provisions E324,10-Jul-2021,000007628175924,SAINSBURYS 0776,5411,Catering costs - provisions,122.54,0.00,122.54
Children and Young Peoples Services,Head of Childrens Social Care,085358,Orchard House Sacriston Solo Home,Supplies and Services,328041,Clothing uniforms and laundry E328,10-Jul-2021,000007628175928,BOOHOO.COM,5691,Clothing uniforms and laundry,58.99,0.00,58.99
Children and Young Peoples Services,Head of Childrens Social Care,085358,Orchard House Sacriston Solo Home,Supplies and Services,324117,Provisions E324,10-Jul-2021,000007628175930,ASDA GEORGE COM LEEDS,5411,Catering costs - provisions,117.50,0.00,117.50
Children and Young Peoples Services,Head of Education and Skills,071732,Dean Bank Childcare,Supplies and Services,304403,Equipment and Materials,10-Jul-2021,000007628176082,AMZNMktplace,5999,Other consumables,6.98,1.16,5.82
Children and Young Peoples Services,Head of Education and Skills,071732,Dean Bank Childcare,Supplies and Services,324117,Provisions E324,10-Jul-2021,000007628176090,B&M 595 - TEESBAY,5399,Catering costs - provisions,172.50,0.00,172.50
Children and Young Peoples Services,Head of Education and Skills,071732,Dean Bank Childcare,Supplies and Services,304999,Equipment and Materials,10-Jul-2021,000007628176092,HOME BARGAINS,5251,Misc equipment tools and materials,157.10,0.00,157.10
"Regeneration, Economy and Growth",Culture Sport and Tourism,054813,Gala Theatre - Technical,Supplies and Services,304221,Equipment and Materials,10-Jul-2021,000007628176116,SHOP.ETCCONNECT.COM,5085,Direct materials,76.41,0.00,76.41
"Regeneration, Economy and Growth",Culture Sport and Tourism,054813,Gala Theatre - Technical,Third Party Payments,430100,Rendered by Private Contractors,10-Jul-2021,000007628176118,SPROUTVIDEO LLC,7399,Payments to sub-contractors,145.54,0.00,145.54
Children and Young Peoples Services,Head of Early Help Inclusion & Vulnerable Children.,085956,Lumley,Supplies and Services,324117,Provisions E324,10-Jul-2021,000007628176400,TESCO STORES 6329,5411,Catering costs - provisions,88.04,0.00,88.04
Children and Young Peoples Services,Head of Childrens Social Care,085334,West Rainton Satelite Home,Supplies and Services,348037,Subsistence E348,10-Jul-2021,000007628177076,iZ Laylas Italian,5812,Subsistence,12.00,0.00,12.00
Children and Young Peoples Services,Head of Childrens Social Care,085334,West Rainton Satelite Home,Supplies and Services,384237,Miscellaneous Expenses,10-Jul-2021,000007628177082,WWW.ADVENTUREVALLEY.CO,7999,Recreational exps outings parties,52.30,0.00,52.30
Children and Young Peoples Services,Head of Childrens Social Care,085334,West Rainton Satelite Home,Transport,235057,Public Transport,10-Jul-2021,000007628177084,SOUTH TYNESIDE COUNCIL,7523,Staff travelling,1.70,0.00,1.70
Children and Young Peoples Services,Head of Childrens Social Care,085334,West Rainton Satelite Home,Supplies and Services,328041,Clothing uniforms and laundry E328,10-Jul-2021,000007628177090,OCEAN BEACH PLEASURE P,7996,Clothing uniforms and laundry,20.00,0.00,20.00
Children and Young Peoples Services,Head of Childrens Social Care,085334,West Rainton Satelite Home,Supplies and Services,304403,Equipment and Materials,10-Jul-2021,000007628177096,SumUp South Shields,5999,Other consumables,6.00,0.00,6.00
Children and Young Peoples Services,Head of Early Help Inclusion & Vulnerable Children.,085957,Secure Management,Supplies and Services,304999,Equipment and Materials,10-Jul-2021,000007628177226,Microsoft Ultimate 1 M,5816,Misc equipment tools and materials,10.99,1.83,9.16
Children and Young Peoples Services,Head of Childrens Social Care,085351,Framwellgate Moor CU,Supplies and Services,372009,Subscriptions E372,10-Jul-2021,000007628177540,NETFLIX.COM,4899,Subscriptions 372009,13.99,0.00,13.99
Neighbourhoods and Climate Change,Environmental Services,031200,North Pennines Core,Supplies and Services,344033,Telephones,10-Jul-2021,000007628178138,ZOOM.US 888-799-9666,4814,Telephones general-all costs,134.40,0.00,134.40
Children and Young Peoples Services,Head of Childrens Social Care,085333,Coxhoe Satelite Home,Supplies and Services,332047,Printing Stationery and Gen Off Exps,10-Jul-2021,000007628178176,Vue Cinemas,7832,Stationery,5.49,0.00,5.49
Children and Young Peoples Services,Head of Childrens Social Care,085333,Coxhoe Satelite Home,Supplies and Services,332047,Printing Stationery and Gen Off Exps,10-Jul-2021,000007628178180,Vue Entertainment Ltd,7832,Stationery,14.97,0.00,14.97
Children and Young Peoples Services,Head of Childrens Social Care,085333,Coxhoe Satelite Home,Supplies and Services,324117,Provisions E324,10-Jul-2021,000007628178182,PPOINT_ DARLO NEWS & O,5499,Catering costs - provisions,5.08,0.00,5.08
Children and Young Peoples Services,Head of Education and Skills,071732,Dean Bank Childcare,Supplies and Services,324117,Provisions E324,11-Jul-2021,000007628176096,CO-OP GROUP 010503,5411,Catering costs - provisions,5.54,0.00,5.54
"Regeneration, Economy and Growth",Culture Sport and Tourism,054813,Gala Theatre - Technical,Supplies and Services,304403,Equipment and Materials,11-Jul-2021,000007628176120,AMZNMKTPLACE AMAZON.CO,5999,Other consumables,101.33,0.00,101.33
"Regeneration, Economy and Growth",Development and Housing,031500,Housing Solutions - Core,Supplies and Services,352001,Conference Expenses,11-Jul-2021,000007628176234,BUDGET H EXPRESS HOTEL,7011,Conferencesseminars fees etc,89.00,0.00,89.00
Children and Young Peoples Services,Head of Childrens Social Care,085334,West Rainton Satelite Home,Supplies and Services,348037,Subsistence E348,11-Jul-2021,000007628176372,KINGS CAFE,5814,Subsistence,6.00,0.00,6.00
Children and Young Peoples Services,Head of Childrens Social Care,085334,West Rainton Satelite Home,Supplies and Services,384237,Miscellaneous Expenses,11-Jul-2021,000007628176378,ADVENTURE VALLEY,7999,Recreational exps outings parties,9.20,0.00,9.20
Children and Young Peoples Services,Head of Childrens Social Care,085334,West Rainton Satelite Home,Supplies and Services,384237,Miscellaneous Expenses,11-Jul-2021,000007628176380,ADVENTURE VALLEY,7999,Recreational exps outings parties,18.20,0.00,18.20
Children and Young Peoples Services,Head of Early Help Inclusion & Vulnerable Children.,085954,Walworth,Supplies and Services,324117,Provisions E324,11-Jul-2021,000007628176408,TESCO STORES 6329,5411,Catering costs - provisions,81.36,0.00,81.36
Neighbourhoods and Climate Change,Environmental Services,031228,North Pennines - Fellfoot Forward,Supplies and Services,324117,Provisions E324,11-Jul-2021,000007628176474,HALLBANKGATE HUB LIMIT,5411,Catering costs - provisions,52.14,0.00,52.14
Adult and Health Services,Head of Adults,055301,Stanley Pathways,Supplies and Services,304403,Equipment and Materials,11-Jul-2021,000007628176884,AMZNMktplace,5999,Other consumables,10.99,1.83,9.16
Adult and Health Services,Head of Adults,055301,Stanley Pathways,Supplies and Services,304403,Equipment and Materials,11-Jul-2021,000007628176892,AMZNMktplace,5999,Other consumables,90.64,15.13,75.51
Children and Young Peoples Services,Head of Childrens Social Care,085342,16 Hickstead Rise (previously 9 Cedar Ave),Supplies and Services,348037,Subsistence E348,11-Jul-2021,000007628176898,KFC THINFORD DURHAM PR,5814,Subsistence,3.96,0.00,3.96
Children and Young Peoples Services,Head of Childrens Social Care,085342,16 Hickstead Rise (previously 9 Cedar Ave),Supplies and Services,348037,Subsistence E348,11-Jul-2021,000007628176902,KFC THINFORD DURHAM PR,5814,Subsistence,35.98,0.00,35.98
Children and Young Peoples Services,Head of Childrens Social Care,085342,16 Hickstead Rise (previously 9 Cedar Ave),Supplies and Services,304403,Equipment and Materials,11-Jul-2021,000007628176910,AMZNMKTPLACE AMAZON.CO,5999,Other consumables,9.32,0.00,9.32
Children and Young Peoples Services,Head of Childrens Social Care,085342,16 Hickstead Rise (previously 9 Cedar Ave),Supplies and Services,304403,Equipment and Materials,11-Jul-2021,000007628176920,AMZNMKTPLACE AMAZON.CO,5999,Other consumables,7.49,0.00,7.49
Children and Young Peoples Services,Head of Childrens Social Care,085351,Framwellgate Moor CU,Supplies and Services,324117,Provisions E324,11-Jul-2021,000007628176962,ASDA GROCERIES ONLINE,5411,Catering costs - provisions,196.90,0.00,196.90
Children and Young Peoples Services,Head of Childrens Social Care,085351,Framwellgate Moor CU,Supplies and Services,324117,Provisions E324,11-Jul-2021,000007628176968,ASDA GROCERIES ONLINE,5411,Catering costs - provisions,-0.39,0.00,-0.39
Children and Young Peoples Services,Head of Childrens Social Care,085342,16 Hickstead Rise (previously 9 Cedar Ave),Transport,215995,Running Costs of Vehicles,11-Jul-2021,000007628177172,TESCO PAY AT PUMP 4088,5542,Vehicle running expenses,7.13,0.00,7.13
Children and Young Peoples Services,Head of Education and Skills,071802,Louisa Cent Nursery,Supplies and Services,304999,Equipment and Materials,11-Jul-2021,000007628177588,HOME BARGAINS CONSETT,5251,Misc equipment tools and materials,1.78,0.00,1.78
Children and Young Peoples Services,Head of Education and Skills,071802,Louisa Cent Nursery,Supplies and Services,328041,Clothing uniforms and laundry E328,11-Jul-2021,000007628177592,POUNDLAND LTD 1597,5310,Clothing uniforms and laundry,4.00,0.00,4.00
Children and Young Peoples Services,Head of Early Help Inclusion & Vulnerable Children.,085962,Aycliffe Secure - Durham,Supplies and Services,348037,Subsistence E348,11-Jul-2021,000007628177786,Just Eat,5814,Subsistence,58.45,0.00,58.45
Children and Young Peoples Services,Head of Early Help Inclusion & Vulnerable Children.,085962,Aycliffe Secure - Durham,Supplies and Services,348037,Subsistence E348,11-Jul-2021,000007628177794,Just Eat,5814,Subsistence,26.90,0.00,26.90
Neighbourhoods and Climate Change,Environmental Services,010383,C&G - South Street Cleansing,Supplies and Services,348037,Subsistence E348,11-Jul-2021,000007628178058,Pasha Pizza,5812,Subsistence,49.32,0.00,49.32
Adult and Health Services,Head of Adults,055309,Peterlee Pathways,Supplies and Services,328041,Clothing uniforms and laundry E328,11-Jul-2021,000007628178210,THE RANGE,5311,Clothing uniforms and laundry,7.99,0.00,7.99
Adult and Health Services,Head of Adults,055643,Hawthorn House LD Respite Unit,Supplies and Services,324117,Provisions E324,11-Jul-2021,000007633335376,BATLEYS PERTH,5300,Catering costs - provisions,13.20,2.20,11.00
Adult and Health Services,Head of Adults,055643,Hawthorn House LD Respite Unit,Supplies and Services,324117,Provisions E324,11-Jul-2021,000007633335376 - 1,BATLEYS PERTH,5300,Catering costs - provisions,49.33,,49.33
"Regeneration, Economy and Growth",Business Durham CL0850,030689,Inward Investment and Aftercare,Supplies and Services,304999,Equipment and Materials,12-Jul-2021,000007628175064,MAILCHIMP MONTHLY,5968,Misc equipment tools and materials,2.11,0.00,2.11
Resources BK0010,Digital and Customer Services,065481,Technical Services 065481,Supplies and Services,372009,Subscriptions E372,12-Jul-2021,000007628175990,WEB NETWORKSOLUTIONS,5968,Subscriptions 372009,4.80,0.00,4.80
"Regeneration, Economy and Growth",Culture Sport and Tourism,054813,Gala Theatre - Technical,Supplies and Services,304221,Equipment and Materials,12-Jul-2021,000007628176124,SHOP.ETCCONNECT.COM,5085,Direct materials,2.10,0.00,2.10
"Regeneration, Economy and Growth",Culture Sport and Tourism,054813,Gala Theatre - Technical,Third Party Payments,430100,Rendered by Private Contractors,12-Jul-2021,000007628176128,SPROUTVIDEO LLC,7399,Payments to sub-contractors,4.00,0.00,4.00
"Regeneration, Economy and Growth",Business Durham CL0850,030689,Inward Investment and Aftercare,Supplies and Services,304999,Equipment and Materials,12-Jul-2021,000007633334724,123 REG LTD,5968,Misc equipment tools and materials,38.38,0.00,38.38
Children and Young Peoples Services,Head of Childrens Social Care,085633,Families First Chester-Le-Street,Supplies and Services,364340,Grants to Voluntary Organisations,12-Jul-2021,000007633334736,WWW.GONORTHEAST.CO.UK,4111,Contact expenses,25.00,0.00,25.00
Children and Young Peoples Services,Head of Childrens Social Care,085332,Middlestone Moor CU,Supplies and Services,324117,Provisions E324,12-Jul-2021,000007633334800,TESCO STORES 2371,5411,Catering costs - provisions,112.24,0.00,112.24
